date,department,beneficiary,amount,summary of purpose,category,Transaction number,SAP vendor number
19.01.2024,Collection Fund,GREATER LONDON AUTHORITY,"9,289,051.00",NNDR ACCOUNT - GLA SHARE,EXTERNAL AGENCIES AND BODIES,5902618360,1000015827
17.01.2024,Environment Neighbourhoods and Growth,GREATER LONDON AUTHORITY,"4,800,000.00",CAPITAL PS (REGEN),CONSTRUCTION,5902617995,1000015827
19.01.2024,Suspense,HM REVENUE & CUSTOMS,"4,339,948.95",SUSPENSE ACCOUNT (COMPANY CODE 1000),INLAND REVENUE,2103802096,1016231
19.01.2024,Suspense,HM REVENUE & CUSTOMS,"4,003,344.01",SUSPENSE ACCOUNT (COMPANY CODE 1000),INLAND REVENUE,2103802095,1016231
16.01.2024,Housing,KENT COUNTY COUNCIL - LASER,"2,467,264.40",HEATING ACCOUNT,GAS,5902617660,1000012926
24.01.2024,Housing,HILL PARTNERSHIP LTD,"2,426,361.61",CAPITAL PS (HRA),CONSTRUCTION MAIN CONTRACT -CERTIFICATED,2103814865,3000002185
25.01.2024,Environment Neighbourhoods and Growth,VEOLIA ES SOUTHWARK LTD,"2,419,399.43",WASTE PFI,PFI/PPP PAYMENTS,5902619235,1000056979
24.01.2024,Environment Neighbourhoods and Growth,VEOLIA ES SOUTHWARK LTD,"2,377,801.73",WASTE PFI,PFI/PPP PAYMENTS,5902619034,1000056979
05.01.2024,Environment Neighbourhoods and Growth,BL CW HOLDINGS LTD,"1,799,404.59",CAPITAL PS (REGEN),CONSTRUCTION FEES  - EXTERNAL,5902615930,1000086680
25.01.2024,Environment Neighbourhoods and Growth,BL CW HOLDINGS LTD,"1,644,177.50",CAPITAL PS (REGEN),CONSTRUCTION FEES  - EXTERNAL,5902619104,1000086680
12.01.2024,Children and Adults,TEACHERS' PENSIONS,"1,512,782.18",TEACHERS PENSION MONTHLY RETURN,PAYROLL CREDITORS - TEACHERS PENSIONS & AVCS,5902617272,1000015184
25.01.2024,Environment Neighbourhoods and Growth,BL CW HOLDINGS LTD,"1,504,105.96",CAPITAL PS (REGEN),CONSTRUCTION FEES  - EXTERNAL,5902619132,1000086680
15.01.2024,Finance,DEPARTMENT FOR BUSINESS ENERGY & INDUSTRIAL STRATEGY,"1,466,480.00",EBSS ALTERNATIVE FUNDING,GRANTS,2103809864,1000086529
19.01.2024,Housing,EQUANS REGENERATION LTD,"1,026,260.00",CAPITAL PS (HRA),CONSTRUCTION MAIN CONTRACT -CERTIFICATED,2103806900,3000002035
19.01.2024,Governance and Assurance,MATRIX SCM LIMITED,"943,692.86",WEEKLY PAYMENTS,AGENCY STAFF,5902618349,1000089740
26.01.2024,Governance and Assurance,MATRIX SCM LIMITED,"925,178.27",WEEKLY PAYMENTS,AGENCY STAFF,5902619375,1000089740
30.01.2024,Collection Fund,GREATER LONDON AUTHORITY,"823,053.00",GLA CROSSRAIL BUSINESS RATE SUPPLEMENT,LEVIES,5902619719,1000015827
11.01.2024,Housing,A & E ELKINS LTD,"771,877.12",CAPITAL PS (HRA),CONSTRUCTION MAIN CONTRACT -CERTIFICATED,2103806849,4012501
24.01.2024,Housing,SMITH & BYFORD LTD,"728,278.54",SMITH AND BYFORD,I-WORLD CONTRACTORS HOLDING ACCOUNT,2103814860,3000000520
14.01.2024,Housing,HILL PARTNERSHIP LTD,"721,323.89",CAPITAL PS (HRA),CONSTRUCTION MAIN CONTRACT -CERTIFICATED,2103805768,3000002185
12.01.2024,Governance and Assurance,MATRIX SCM LIMITED,"669,067.88",WEEKLY PAYMENTS,AGENCY STAFF,5902617221,1000089740
16.01.2024,Children and Adults,NHS SOUTH WEST LONDON ICB,"620,089.80",LD LTS 18-64,RESIDENTIAL CARE,5902617767,1000090442
19.01.2024,Collection Fund,MINISTRY OF HOUSING COMMUNITIES & LOCAL GOVERNMENT,"619,186.00",NNDR CLG SHARE,EXTERNAL AGENCIES AND BODIES,5902618363,1000081809
08.01.2024,Children and Adults,CHANGE GROW LIVE SERVICES LTD,"605,830.82",ADULT SM SERVICE,OTHER CONTRACTORS,5902615965,1000082721
10.01.2024,Children and Adults,THE ST THOMAS THE APOSTLE COLLEGE,"601,029.00",THE ST THOMAS THE APOSTLE COLLEGE,SCHOOLS CAPITATION,5902616656,5001000074
14.01.2024,Housing,A & E ELKINS LTD,"562,105.92",CAPITAL PS (HRA),CONSTRUCTION,2103806847,4012501
13.01.2024,Housing,OCO LIMITED,"560,021.53",PAYMENTS CONTROL ACCOUNT - OCO,I-WORLD CONTRACTORS HOLDING ACCOUNT,5902616859,1006066
23.01.2024,Environment Neighbourhoods and Growth,APCOA PARKING (UK) LTD,"504,995.73",PARKING OVERHEADS,OTHER CONTRACTORS,5902618829,1718645
10.01.2024,Children and Adults,ST SAVIOURS & ST OLAVES SCHOOL,"500,250.00",ST SAVIOUR & OLAVE'S CE,SCHOOLS CAPITATION,5902616676,5001000084
15.01.2024,Children and Adults,POST OFFICE LTD,"500,000.00",HOLIDAY SCHL MEAL VOUCHERS,GRANTS,5902617457,1000087679
05.01.2024,Governance and Assurance,MATRIX SCM LIMITED,"430,559.06",WEEKLY PAYMENTS,AGENCY STAFF,5902615914,1000089740
19.01.2024,Finance,TRANSPORT FOR LONDON GROUP PLANNING,"421,017.92",MAYORAL CIL,LEVIES,5902618481,1000065130
03.01.2024,Children and Adults,NEWCASTLE COLLEGE GROUP,"392,820.67",FURTHER EDUCATION,STATEMENTED FEES,2103804572,1000080965
31.01.2024,Housing,HITACHI SOLUTIONS EUROPE LIMITED,"390,000.00",CAPITAL PS (HOUSING GF),ICT ACQUISITION,5902620171,1000084180
15.01.2024,Children and Adults,NOTTINGHAM REHAB LTD,"389,387.67",ICES CONTRACT,EQUIPMENT PURCHASE & REPAIR,5902617521,1000066462
21.01.2024,Finance,TRANSPORT FOR LONDON - TFL CIL,"372,799.91",S106 & CIL ADMINISTRATION,LEVIES,5902617454,1000090435
31.01.2024,Housing,SALTASH ENTERPRISES LTD,"370,594.10",CAPITAL PS (HRA),CONSTRUCTION MAIN CONTRACT -CERTIFICATED,2103817260,4013605
11.01.2024,Housing,GLENMAN CORPORATION LTD,"358,800.90",CAPITAL PS (HRA),CONSTRUCTION MAIN CONTRACT -CERTIFICATED,2103806887,3000002230
12.01.2024,Housing,LEATHERMARKET JMB HOUSING,"356,670.73",LEATHERMARKET CO-OP,M&M ALLOWANCE CO-OPS,5902617179,11182872
11.01.2024,Finance,ZURICH MUNICIPAL,"352,901.19",CPHA  MANAGED PROPERTIES,PROPERTY INSURANCE COSTS,5902617031,11011168
15.01.2024,Children and Adults,NOTTINGHAM REHAB LTD,"347,753.47",ICES CONTRACT,EQUIPMENT PURCHASE & REPAIR,5902617520,1000066462
24.01.2024,Housing,ZFA ACCOMMODATION LTD,"342,845.00",NIGHTLY TA (NSC),EXTERNAL AGENCIES AND BODIES,5902619013,1000082620
29.01.2024,Children and Adults,SOUTH LONDON & MAUDSLEY HOSPITAL,"341,135.00",SLAM SPOT MH RES,EXTERNAL AGENCIES AND BODIES,5902619536,1000013096
29.01.2024,Children and Adults,SOUTH LONDON & MAUDSLEY HOSPITAL,"327,765.00",SLAM SPOT MH RES,EXTERNAL AGENCIES AND BODIES,5902619535,1000013096
19.01.2024,Housing,NATIONWIDE ACCOMMODATION,"310,321.74",NIGHTLY TA (NSC),EXTERNAL AGENCIES AND BODIES,5902618469,1000076112
30.01.2024,Finance,MINISTRY OF HOUSING COMMUNITIES & LOCAL GOVERNMENT,"289,110.00",ENERGY BILLS REBATE GRANT,GRANTS,2103817259,1000081809
31.01.2024,Environment Neighbourhoods and Growth,QUADRON SERVICES LIMITED,"270,187.85",CLIENT SERV(GRNS MAIN),OTHER CONTRACTORS,5902620351,1000066528
15.01.2024,Housing,A & E ELKINS LTD,"264,693.08",CAPITAL PS (HRA),CONSTRUCTION MAIN CONTRACT -CERTIFICATED,2103808404,4012501
08.01.2024,Environment Neighbourhoods and Growth,GLENMAN CORPORATION LTD,"261,638.31",CAPITAL PS (REGEN),CONSTRUCTION MAIN CONTRACT -CERTIFICATED,2103805189,3000002230
10.01.2024,Children and Adults,PHOENIX PRIMARY SCHOOL,"261,582.00",PHOENIX PRIMARY SCHOOL,SCHOOLS CAPITATION,5902616552,5001000032
24.01.2024,Environment Neighbourhoods and Growth,GUILDMORE LTD,"250,997.49",CAPITAL PS (REGEN),CONSTRUCTION MAIN CONTRACT -CERTIFICATED,2103814862,3000002150
29.01.2024,Corporate,4 FUTURES PHASE 1 LIMITED,"250,642.05",ONGOING SCHOOLS PFI COSTS,PFI/PPP PAYMENTS,5902619621,1000061400
31.01.2024,Children and Adults,HIGHSHORE SCHOOL,"249,390.46",TRUST FUND DRAW DOWN,SCHOOLS CAPITATION,2103817783,5001000046
12.01.2024,Housing,ZFA ACCOMMODATION LTD,"246,701.94",NIGHTLY TA (NSC),EXTERNAL AGENCIES AND BODIES,5902617234,1000082620
08.01.2024,Housing,EQUANS REGENERATION LTD,"246,242.28",CAPITAL PS (HRA),CONSTRUCTION MAIN CONTRACT -CERTIFICATED,2103805192,3000002035
29.01.2024,Corporate,4 FUTURES PHASE 2 LTD,"235,804.20",ONGOING SCHOOLS PFI COSTS,PFI/PPP PAYMENTS,5902619639,1000068567
29.01.2024,Corporate,4 FUTURES PHASE 2 LTD,"235,804.20",ONGOING SCHOOLS PFI COSTS,PFI/PPP PAYMENTS,5902619639,1000068567
10.01.2024,Children and Adults,BESSEMER GRANGE PRIMARY SCHOOL,"235,656.00",BESSEMER GRANGE PRIMARY SCHOOL,SCHOOLS CAPITATION,5902616495,5001000009
22.01.2024,Housing,NIBLOCK (BUILDERS) LTD,"230,950.85",CAPITAL PS (HRA),CONSTRUCTION,2103812965,3000000235
03.01.2024,Housing,GUILDMORE LTD,"229,196.71",CAPITAL PS (HRA),CONSTRUCTION MAIN CONTRACT -CERTIFICATED,2103804629,3000002150
10.01.2024,Children and Adults,GOODRICH PRIMARY SCHOOL,"228,097.00",GOODRICH PRIMARY SCHOOL,SCHOOLS CAPITATION,5902616539,5001000028
26.01.2024,Children and Adults,GOODRICH PRIMARY SCHOOL,"228,097.00",GOODRICH PRIMARY SCHOOL,SCHOOLS CAPITATION,5902619379,5001000028
15.01.2024,Children and Adults,ALLPAY LTD (0-25),"225,000.00",SCH TRANS � TRAVEL,OTHER PAYMENTS FOR CLIENTS,5902617391,1000083062
15.01.2024,Housing,SMITH & BYFORD LTD,"223,817.31",CAPITAL PS (HRA),CONSTRUCTION,2103809802,3000000520
13.01.2024,Housing,GLENMAN CORPORATION LTD,"222,299.70",CAPITAL PS (HRA),CONSTRUCTION MAIN CONTRACT -CERTIFICATED,2103806862,3000002230
10.01.2024,Children and Adults,JOHN RUSKIN PRIMARY SCHOOL,"221,989.00",JOHN RUSKIN PRIMARY SCHOOL,SCHOOLS CAPITATION,5902616572,5001000040
31.01.2024,Environment Neighbourhoods and Growth,F M CONWAY LTD,"218,047.26",CAPITAL PS (LEISURE),CONSTRUCTION,2103817754,4001384
11.01.2024,Housing,TKC HOUSING LIMITED,"213,678.87",PSL PLACEMENTS,EXTERNAL AGENCIES AND BODIES,5902616261,1000088199
22.01.2024,Housing,WILLOW ESTATE AGENTS (LONDON) LTD,"211,040.56",NIGHTLY TA (NSC),EXTERNAL AGENCIES AND BODIES,5902618584,1000060607
10.01.2024,Children and Adults,CRAWFORD PRIMARY SCHOOL,"209,469.00",CRAWFORD PRIMARY SCHOOL,SCHOOLS CAPITATION,5902616533,5001000024
10.01.2024,Children and Adults,MICHAEL FARADAY PRIMARY SCHOOL,"206,283.00",MICHAEL FARADAY PRIMARY SCHOOL,SCHOOLS CAPITATION,5902616589,5001000048
10.01.2024,Children and Adults,ST JAMES CE PRIMARY SCHOOL,"206,053.00",ST JAMES' CE PRIMARY SCHOOL,SCHOOLS CAPITATION,5902616645,5001000070
10.01.2024,Children and Adults,ALBION PRIMARY SCHOOL,"204,446.00",ALBION PRIMARY SCHOOL,SCHOOLS CAPITATION,5902616481,5001000000
10.01.2024,Children and Adults,DULWICH WOOD PRIMARY SCHOOL,"204,089.00",DULWICH WOOD PRIMARY SCHOOL,SCHOOLS CAPITATION,5902616581,5001000042
31.01.2024,Children and Adults,CHERRY GARDEN SCHOOL,"203,293.62",TRUST FUND DRAW DOWN,SCHOOLS CAPITATION,2103817787,5001000020
10.01.2024,Children and Adults,SOUTHWARK PARK PRIMARY SCHOOL,"199,293.00",SOUTHWARK PARK PRIMARY SCHOOL,SCHOOLS CAPITATION,5902616627,5001000062
10.01.2024,Children and Adults,HEBER PRIMARY SCHOOL,"197,113.00",HEBER PRIMARY SCHOOL,SCHOOLS CAPITATION,5902616560,5001000035
10.01.2024,Housing,VEOLIA ES (UK)LTD,"194,235.44",HEATING ACCOUNT,GAS,5902616790,1824835
10.01.2024,Children and Adults,ST ANTHONYS RC SCHOOL,"193,935.00",ST ANTHONY'S CATHOLIC PRIMARY SCHOOL,SCHOOLS CAPITATION,5902616631,5001000064
12.01.2024,Corporate,INLAND REVENUE,"193,234.27",VAT INPUTS - ADJUSTMENTS,CONSTRUCTION INDUSTRY TAX,2103806979,4003039
31.01.2024,Environment Neighbourhoods and Growth,F M CONWAY LTD,"190,471.02",CAPITAL PS (LEISURE),CONSTRUCTION,2103817752,4001384
10.01.2024,Housing,FINEFAIR LTD,"188,137.37",PSL PLACEMENTS,EXTERNAL AGENCIES AND BODIES,5902616879,1000075570
10.01.2024,Children and Adults,ALFRED SALTER PRIMARY SCHOOL,"187,229.00",ALFRED SALTER PRIMARY SCHOOL,SCHOOLS CAPITATION,5902616485,5001000005
10.01.2024,Children and Adults,BRUNSWICK PARK PRIMARY SCHOOL,"185,605.00",BRUNSWICK PARK PRIMARY SCHOOL,SCHOOLS CAPITATION,5902616503,5001000013
29.01.2024,Environment Neighbourhoods and Growth,GUILDMORE LTD,"180,705.23",CAPITAL PS (REGEN),CONSTRUCTION MAIN CONTRACT -CERTIFICATED,2103815635,3000002150
10.01.2024,Children and Adults,CAMELOT PRIMARY SCHOOL,"179,542.00",CAMELOT PRIMARY SCHOOL,SCHOOLS CAPITATION,5902616509,5001000014
23.01.2024,Housing,BCS (ELECTRICAL & BUILDING SERVICES LTD),"179,326.52",BCS,I-WORLD CONTRACTORS HOLDING ACCOUNT,5902618857,1000062321
10.01.2024,Environment Neighbourhoods and Growth,F M CONWAY LTD,"178,358.58",HIGHWAY MAINTENANCE OVERHEADS,HIGHWAYS TERM CONTRACT,2103805769,4001384
10.01.2024,Children and Adults,OLIVER GOLDSMITH PRIMARY SCHOOL,"177,788.00",OLIVER GOLDSMITH PRIMARY SCHOOL,SCHOOLS CAPITATION,5902616594,5001000051
10.01.2024,Children and Adults,HIGHSHORE SCHOOL,"175,500.00",HIGHSHORE,HIGH NEEDS - TOP UP FUNDING,5902616586,5001000046
10.01.2024,Children and Adults,ST JOHNS & ST CLEMENTS CE SCHOOL,"175,491.00",ST JOHN'S & ST CLEMENT'S CE PRIMARY SCHO,SCHOOLS CAPITATION,5902616652,5001000073
10.01.2024,Children and Adults,KEYWORTH PRIMARY SCHOOL,"170,721.00",KEYWORTH PRIMARY SCHOOL,SCHOOLS CAPITATION,5902616578,5001000041
15.01.2024,Environment Neighbourhoods and Growth,MARK BAILEY ASSOCIATES LTD,"170,688.00",PUBLIC LIGHTING,MATERIALS,5902617474,1000061353
10.01.2024,Children and Adults,CHERRY GARDEN SCHOOL,"169,333.00",CHERRY GARDEN PRIMARY SCHOOL,HIGH NEEDS - TOP UP FUNDING,5902616525,5001000020
10.01.2024,Children and Adults,GRANGE PRIMARY SCHOOL,"168,700.00",GRANGE PRIMARY SCHOOL,SCHOOLS CAPITATION,5902616542,5001000029
10.01.2024,Children and Adults,ENGLISH MARTYRS RC PRIMARY SCHOOL,"168,613.00",ENGLISH MARTYRS RC PRIMARY SCHOOL,SCHOOLS CAPITATION,5902616546,5001000030
18.01.2024,Housing,LETTING INTERNATIONAL LTD,"167,822.00",NIGHTLY TA (NSC),EXTERNAL AGENCIES AND BODIES,5902618236,1000070102
18.01.2024,Housing,BROWNING EST MGMT ASSN,"166,317.50",BROWNING EMB,M&M ALLOWANCE CO-OPS,5902616888,1000059362
03.01.2024,Children and Adults,IVYDALE PRIMARY SCHOOL,"163,122.00",CHILD & FAM CENTRES,EXTERNAL AGENCIES AND BODIES,5902615462,5001000038
03.01.2024,Housing,OCO LIMITED,"161,372.83",PAYMENTS CONTROL ACCOUNT - OCO,I-WORLD CONTRACTORS HOLDING ACCOUNT,5902615429,1006066
03.01.2024,Children and Adults,NEWCASTLE COLLEGE GROUP,"160,091.39",FURTHER EDUCATION,STATEMENTED FEES,2103804576,1000080965
10.01.2024,Strategy and Communities,SOUTHWARK CITIZENS ADVICE,"159,000.00",LEGAL GRANTS,EXTERNAL AGENCIES AND BODIES,5902616737,1874379
08.01.2024,Housing,THEORI HOUSING MANAGEMENT SERVICES,"158,561.75",PSL PLACEMENTS,EXTERNAL AGENCIES AND BODIES,5902616035,1000079264
19.01.2024,Children and Adults,NEILCOTT SPECIAL WORKS LTD,"155,725.49",CAPITAL PS (EDUCATION),CONSTRUCTION FEES  - EXTERNAL,5902618005,1000049404
08.01.2024,Housing,ZFA ACCOMMODATION LTD,"152,815.15",PSL PLACEMENTS,EXTERNAL AGENCIES AND BODIES,5902616028,1000082620
10.01.2024,Children and Adults,TUKE SCHOOL,"152,750.00",TUKE SCHOOL,HIGH NEEDS - TOP UP FUNDING,5902616694,5001000097
10.01.2024,Housing,KENT COUNTY COUNCIL - LASER,"151,432.45",HEATING ACCOUNT,ELECTRICITY,5902616409,1000012926
15.01.2024,Environment Neighbourhoods and Growth,BLAKEDOWN LANDSCAPES,"148,922.35",CAPITAL PS (REGEN),CONSTRUCTION MAIN CONTRACT,2103808409,4005399
03.01.2024,Children and Adults,DULWICH WOOD CHILDRENS CENTRE,"148,741.00",CHILD & FAM CENTRES,EXTERNAL AGENCIES AND BODIES,5902615464,5001000099
10.01.2024,Children and Adults,ST FRANCIS'S RC PRIMARY SCHOOL,"148,391.00",ST FRANCIS RC PRIMARY SCHOOL,SCHOOLS CAPITATION,5902616635,5001000067
10.01.2024,Children and Adults,THE ST THOMAS THE APOSTLE COLLEGE,"147,515.00",YPLA SCHL SIXTH FORM,SCHOOLS CAPITATION,5902616657,5001000074
31.01.2024,DSO,ARMINA LTD,"145,465.72",SR TEMPORARY ACCOMMODATION DD,OTHER CONTRACTORS,2103817862,3000002121
19.01.2024,Housing,FAIR COMMUNITY HSG SERVICES LTD,"144,069.50",FAIR CHS TMO,M&M ALLOWANCE CO-OPS,5902617095,1000039650
09.01.2024,Housing,GLOUCESTER GROVE ESTATE TMO,"142,060.25",GLOUCESTER GROVE ESTATE,M&M ALLOWANCE CO-OPS,5902616371,1000073072
17.01.2024,Housing,A & E ELKINS LTD,"141,550.48",CAPITAL PS (HRA),CONSTRUCTION MAIN CONTRACT -CERTIFICATED,2103810000,4012501
03.01.2024,Housing,SMITH & BYFORD LTD,"140,141.00",SMITH AND BYFORD,I-WORLD CONTRACTORS HOLDING ACCOUNT,5902615436,11212119
25.01.2024,Housing,MAIER LANG LIMITED,"136,573.98",NIGHTLY TA (NSC),EXTERNAL AGENCIES AND BODIES,5902619079,1000084930
22.01.2024,Suspense,LONDON MUTUAL CREDIT UNION,"136,060.00",SUSPENSE ACCOUNT (COMPANY CODE 1000),PAYROLL - 3RD PARTY DEDUCTIONS,2103813280,1000015860
10.01.2024,Children and Adults,RYE OAK PRIMARY SCHOOL,"135,089.00",RYE OAK  DFES,SCHOOLS CAPITATION,5902616615,5001000059
15.01.2024,Housing,SMITH & BYFORD LTD,"134,686.84",CAPITAL PS (HRA),CONSTRUCTION,2103809800,3000000520
22.01.2024,Children and Adults,NEILCOTT SPECIAL WORKS LTD,"133,452.87",CAPITAL PS (EDUCATION),CONSTRUCTION,5902618482,1000049404
03.01.2024,Children and Adults,PILGRIM'S WAY PRIMARY SCHOOL,"133,309.00",CHILD & FAM CENTRES,EXTERNAL AGENCIES AND BODIES,5902615463,5001000054
09.01.2024,Housing,GLOUCESTER GROVE ESTATE TMO,"131,027.00",GLOUCESTER GROVE ESTATE,M&M ALLOWANCE CO-OPS,5902616371,1000073072
10.01.2024,Children and Adults,BETHLEM & MAUDSLEY HOSPITAL SCHOOL,"130,340.00",MAUDSLEY & BETHLEM,HIGH NEEDS - TOP UP FUNDING,5902616499,5001000010
20.01.2024,Housing,BONDS BUILDERS AND CONTRACTORS LTD,"130,333.53",CAPITAL PS (HRA),CONSTRUCTION MAIN CONTRACT -CERTIFICATED,2103809989,3000002137
24.01.2024,Housing,KENT COUNTY COUNCIL - LASER,"130,332.63",RESIDENT SERVICES BUSINESS SUPPORT,ELECTRICITY,5902619049,1000012926
10.01.2024,Children and Adults,ILDERTON PRIMARY SCHOOL,"129,347.00",ILDERTON PRIMARY SCHOOL,SCHOOLS CAPITATION,5902616565,5001000037
15.01.2024,Housing,MX ESTATES LTD,"129,330.75",NIGHTLY TA (NSC),EXTERNAL AGENCIES AND BODIES,5902617461,1000083639
09.01.2024,Housing,BLOOM PROCUREMENT SERVICES LTD,"129,049.20",LEDBURY ESTATE,SECURITY SERVICES,5902616224,1000082531
10.01.2024,Children and Adults,DULWICH VILLAGE CE INFANTS SCHOOL,"128,946.00",DULWICH VILLAGE CE INFANTS' SCHOOL,SCHOOLS CAPITATION,5902616536,5001000027
10.01.2024,Children and Adults,HIGHSHORE SCHOOL,"127,500.00",HIGHSHORE,HIGH NEEDS - BASE FUNDING,5902616585,5001000046
10.01.2024,Children and Adults,HAYMERLE SCHOOL,"124,417.00",HAYMERLE PRIMARY SCHOOL,HIGH NEEDS - TOP UP FUNDING,5902616584,5001000045
25.01.2024,Children and Adults,CITY OF LONDON CORPORATION,"124,182.29",SEXUAL HEALTH - STI,MEDICAL / HEALTH & SAFETY SERVICES,5902619246,1000052061
11.01.2024,Housing,EQUANS REGENERATION (APOLLO) LTD,"123,354.00",CAPITAL PS (HRA),CONSTRUCTION MAIN CONTRACT -CERTIFICATED,2103806888,4000449
10.01.2024,Children and Adults,ST JOSEPHS RC JUNIOR  SCHOOL,"123,142.00",ST JOSEPHS RC JUNIOR(5203) SCHOOL,SCHOOLS CAPITATION,5902616517,5001000017
10.01.2024,Housing,STAR PEOPLE LTD,"121,464.10",NIGHTLY TA (NSC),EXTERNAL AGENCIES AND BODIES,5902616873,1000088790
21.01.2024,Finance,TRANSPORT FOR LONDON - TFL CIL,"119,908.80",S106 & CIL ADMINISTRATION,LEVIES,5902617454,1000090435
10.01.2024,Children and Adults,CAMELOT PRIMARY SCHOOL,"119,466.35",CAMELOT PRIMARY SCHOOL,SCHOOLS CAPITATION,5902616512,5001000014
19.01.2024,Housing,SMITH & BYFORD LTD,"118,396.39",CAPITAL PS (HRA),CONSTRUCTION,2103812026,3000000520
10.01.2024,Children and Adults,ST JAMES THE GREAT RC SCHOOL,"115,945.00",ST JAMES THE GREAT RC PRIMARY SCHOOL,SCHOOLS CAPITATION,5902616649,5001000071
27.01.2024,Children and Adults,MIHOMECARE LTD,"115,920.00",REABLEMENT CONTRACT,HOMECARE - IC,5902618340,1000042594
31.01.2024,Children and Adults,ST FRANCIS'S RC PRIMARY SCHOOL,"115,598.24",TRUST FUND DRAW DOWN,SCHOOLS CAPITATION,2103817785,5001000067
10.01.2024,Children and Adults,CRAMPTON PRIMARY SCHOOL,"113,229.00",CRAMPTON PRIMARY SCHOOL,SCHOOLS CAPITATION,5902616530,5001000023
15.01.2024,Finance,DEPARTMENT FOR BUSINESS ENERGY & INDUSTRIAL STRATEGY,"112,200.00",EBSS ALTERNATIVE FUEL,GRANTS,2103809865,1000086529
10.01.2024,Children and Adults,ST JOHNS RC PRIMARY SCHOOL,"109,938.00",ST JOHN'S RC PRIMARY SCHOOL,SCHOOLS CAPITATION,5902616660,5001000075
15.01.2024,Children and Adults,VALUE IN CARE LTD,"109,520.65",LD LTS 18-64,RESIDENTIAL CARE,2103808841,1000041975
10.01.2024,Children and Adults,ST JOSEPHS CATHOLIC PRIMARY SCHOOL,"109,513.00",ST JOSEPHS RC (3476) PRIMARY SCHOOL,SCHOOLS CAPITATION,5902616668,5001000078
10.01.2024,Children and Adults,CATHEDRAL SCHOOL OF ST SAVIOUR & MARY,"107,888.00",THE CATHEDRAL OF ST. SAVIOUR & ST OLAVES,SCHOOLS CAPITATION,5902616681,5001000088
10.01.2024,Environment Neighbourhoods and Growth,THAMES WATER UTILITIES LTD,"107,840.00",CAPITAL PS (LEISURE),CONSTR'N SUB CONTRACT - NON CERTIFICATED,5902616795,1000051868
10.01.2024,Children and Adults,PILGRIM'S WAY PRIMARY SCHOOL,"107,575.00",PILGRIMS WAY PRIMARY SCHOOL,SCHOOLS CAPITATION,5902616603,5001000054
10.01.2024,Children and Adults,BOUCHER C OF E PRIMARY SCHOOL,"106,752.00",BOUTCHER CE PRIMARY SCHOOL,SCHOOLS CAPITATION,5902616500,5001000011
03.01.2024,Children and Adults,1ST PLACE CHILDREN & PARENTS CENTRE,"105,116.00",CHILD & FAM CENTRES,EXTERNAL AGENCIES AND BODIES,5902615448,1000049952
28.01.2024,Children and Adults,CITY OF LONDON CORPORATION,"104,775.69",SEXUAL HEALTH - STI,MEDICAL / HEALTH & SAFETY SERVICES,5902618905,1000052061
10.01.2024,Children and Adults,BELLENDEN PRIMARY SCHOOL,"104,329.00",BELLENDEN PRIMARY SCHOOL,SCHOOLS CAPITATION,5902616489,5001000007
15.01.2024,Children and Adults,NCYPE,"104,171.49",PHY LTS 18-64,RESIDENTIAL CARE,2103809618,1264546
19.01.2024,Finance,LONDON BRIDGE BUSINESS IMPROVEMENT,"103,802.26",TEAM LONDON BRIDGE,EXTERNAL AGENCIES AND BODIES,5902618425,1000050879
10.01.2024,Children and Adults,ST JOSEPHS CATHOLIC SCHOOL,"103,446.00",ST JOSEPHS RC (3484) SCHOOL,SCHOOLS CAPITATION,5902616664,5001000076
10.01.2024,Children and Adults,ROBERT BROWNING PRIMARY SCHOOL,"103,224.00",ROBERT BROWNING PRIMARY SCHOOL,SCHOOLS CAPITATION,5902616610,5001000057
10.01.2024,Children and Adults,ST PETERS CE SCHOOL,"101,694.00",ST PETER'S CE PRIMARY SCHOOL,SCHOOLS CAPITATION,5902616673,5001000083
15.01.2024,Strategy and Communities,COMMUNITY SOUTHWARK,"100,320.75",CVS & VOLUNTEERING,GRANTS,5902617380,1000018147
10.01.2024,Children and Adults,FRIARS PRIMARY (FOUNDATION) SCHOOL,"99,265.00",FRIARS FOUNDATION PRIMARY SCHOOL,SCHOOLS CAPITATION,5902616556,5001000033
25.01.2024,Housing,NIBLOCK (BUILDERS) LTD,"99,219.50",CAPITAL PS (HRA),CONSTRUCTION MAIN CONTRACT -CERTIFICATED,2103814877,3000000235
19.01.2024,Housing,NATIONWIDE ACCOMMODATION,"99,121.13",PSL PLACEMENTS,EXTERNAL AGENCIES AND BODIES,5902618387,1000076112
10.01.2024,Children and Adults,CHELSEA AND WESTMINSTER HOSPITAL,"97,804.30",SEXUAL HEALTH - STI,MEDICAL / HEALTH & SAFETY SERVICES,5902616715,1000072053
10.01.2024,Children and Adults,CHELSEA AND WESTMINSTER HOSPITAL,"97,804.30",SEXUAL HEALTH - STI,MEDICAL / HEALTH & SAFETY SERVICES,5902616723,1000072053
10.01.2024,Children and Adults,SNOWSFIELDS PRIMARY SCHOOL,"97,656.00",SNOWSFIELDS PRIMARY SCHOOL,SCHOOLS CAPITATION,5902616621,5001000061
10.01.2024,Children and Adults,CHARLOTTE  SHARMAN PRIMARY SCHOOL,"96,267.00",CHARLOTTE SHARMAN PRIMARY SCHOOL,SCHOOLS CAPITATION,5902616514,5001000016
19.01.2024,Corporate,HM REVENUE & CUSTOMS,"96,088.13",APPRENTICESHIP LEVY,APPRENTICESHIP LEVY,2103802112,1016231
10.01.2024,Children and Adults,TOWER BRIDGE PRIMARY SCHOOL,"95,256.00",TOWER BRIDGE PRIMARY SCHOOL,SCHOOLS CAPITATION,5902616690,5001000095
15.01.2024,Housing,ARCHITECTURAL DECORATORS LTD,"93,955.58",CAPITAL PS (HRA),CONSTRUCTION MAIN CONTRACT -CERTIFICATED,2103808407,3000001065
15.01.2024,Children and Adults,EQUINOX CARE,"93,587.25",S75 SUPHSG SCH LBS LEAD,EXTERNAL AGENCIES AND BODIES,5902617434,11297438
15.01.2024,Children and Adults,EQUINOX CARE,"93,587.25",S75 SUPHSG SCH LBS LEAD,EXTERNAL AGENCIES AND BODIES,5902617440,11297438
10.01.2024,Environment Neighbourhoods and Growth,SSCL MPS POLICE SERVICE,"93,316.00",NIGHT TIME ECONOMY,PROFESSIONAL FEES,5902616862,1000035048
10.01.2024,Environment Neighbourhoods and Growth,SSCL MPS POLICE SERVICE,"92,964.00",NIGHT TIME ECONOMY,PROFESSIONAL FEES,5902616865,1000035048
05.01.2024,Environment Neighbourhoods and Growth,ALLPAY LTD,"92,385.00",NO RECOURSE TO PUBLIC FUNDS,OTHER PAYMENTS FOR CLIENTS,5902615940,1000078859
10.01.2024,Children and Adults,ST GEORGES CE SCHOOL,"92,127.00",ST GEORGE'S CE PRIMARY SCHOOL,SCHOOLS CAPITATION,5902616642,5001000069
10.01.2024,Children and Adults,ST GEORGES RC SCHOOL,"92,116.00",ST GEORGE'S CATHEDRAL RC PRIMARY SCHOOL,SCHOOLS CAPITATION,5902616639,5001000068
10.01.2024,Children and Adults,SOUTHWARK INCLUSIVE LEARNING SERVICE,"92,071.00",SILS,HIGH NEEDS - TOP UP FUNDING,5902616701,5001000105
10.01.2024,Children and Adults,HOLLYDALE PRIMARY SCHOOL,"91,852.00",HOLLYDALE PRIMARY SCHOOL,SCHOOLS CAPITATION,5902616562,5001000036
10.01.2024,Children and Adults,COMBER GROVE PRIMARY SCHOOL,"91,381.00",COMBER GROVE PRIMARY SCHOOL,SCHOOLS CAPITATION,5902616527,5001000022
08.01.2024,Environment Neighbourhoods and Growth,TRANSPORT FOR LONDON,"90,933.60",CAPITAL PS (LEISURE),CONSTRUCTION,2103804976,3000001395
31.01.2024,DSO,CRATUS BUILDING SERVICES LIMITED,"90,616.19",SR - VOIDS TEAM,OTHER CONTRACTORS,2103817858,3000001055
21.01.2024,Finance,TRANSPORT FOR LONDON - TFL CIL,"90,552.49",S106 & CIL ADMINISTRATION,LEVIES,5902617454,1000090435
26.01.2024,Housing,SILK & MACKMAN SERVICES LTD,"90,270.72",PAYMENTS CONTROL ACCOUNT SILK & MACKMAN,I-WORLD CONTRACTORS HOLDING ACCOUNT,5902619290,1000035282
11.01.2024,Strategy and Communities,SOUTHWARK LAW CENTRE,"89,040.00",LEGAL GRANTS,EXTERNAL AGENCIES AND BODIES,5902616745,1981325
09.01.2024,Environment Neighbourhoods and Growth,F M CONWAY LTD,"88,665.99",CAPITAL PS (LEISURE),CONSTR'N SUB CONTRACT - NON CERTIFICATED,2103805770,4001384
11.01.2024,Housing,PROPERTYPLACEBOOK LTD,"87,872.00",NIGHTLY TA (NSC),EXTERNAL AGENCIES AND BODIES,5902617067,1000077817
17.01.2024,Housing,DEYNSFORD TENANT MANAGEMENT ORGANISATION,"86,363.00",D'EYNSFORD ESTATE,M&M ALLOWANCE CO-OPS,5902617949,1000075613
30.01.2024,Environment Neighbourhoods and Growth,HATCH ENTERPRISE,"86,000.00",SOUTHWARK PIONEER FUND,EXTERNAL AGENCIES AND BODIES,5902619832,1000082676
15.01.2024,Children and Adults,INDEPENDENCE HOMES LTD,"85,477.71",SEN LTS 18-64,RESIDENTIAL CARE,2103809295,1000058961
15.01.2024,Children and Adults,VALUE IN CARE LTD,"85,256.27",LD LTS 18-64,RESIDENTIAL CARE,2103760498,1000041975
31.01.2024,Children and Adults,ST JOSEPHS CATHOLIC INFANTS SCHOOL,"84,890.00",TRUST FUND DRAW DOWN,SCHOOLS CAPITATION,2103817786,5001000018
05.01.2024,Children and Adults,ST MUNGOS,"84,583.25",S75 SUPHSG SCH LBS LEAD,EXTERNAL AGENCIES AND BODIES,5902615920,1000017600
10.01.2024,Children and Adults,ST SAVIOURS & ST OLAVES SCHOOL,"84,467.00",YPLA SCHL SIXTH FORM,SCHOOLS CAPITATION,5902616677,5001000084
03.01.2024,Children and Adults,NEWCASTLE COLLEGE GROUP,"84,143.40",FURTHER EDUCATION,STATEMENTED FEES,2103804574,1000080965
22.01.2024,Housing,SITTARA LTD,"83,467.04",NIGHTLY TA (NSC),EXTERNAL AGENCIES AND BODIES,5902618496,1000080857
17.01.2024,Finance,TRANSPORT FOR LONDON GROUP PLANNING,"81,947.79",12/AP/3558 90-91 & 92 BLACKFRIARS RD,S106 A/C,5902617918,1000065130
17.01.2024,Finance,TRANSPORT FOR LONDON GROUP PLANNING,"81,751.75","128-150 BLACKFRIARS ROAD, SE1",S106 A/C,5902617918,1000065130
17.01.2024,Finance,TRANSPORT FOR LONDON GROUP PLANNING,"81,401.01","128-150 BLACKFRIARS ROAD, SE1",S106 A/C,5902617918,1000065130
19.01.2024,Housing,SMITH & BYFORD LTD,"81,145.40",CAPITAL PS (HRA),CONSTRUCTION,2103812025,3000000520
17.01.2024,Children and Adults,ANN BERNADT NURSERY SCHOOL,"80,000.00",ANN BERNADT (SUMNER),EARLY YEARS - 3 AND 4 YEAR OLDS,2103810474,5001000085
29.01.2024,Children and Adults,NEWLANDS ACADEMY,"79,940.00",AC & FREE - SPECIAL,STATEMENTED FEES,2103815829,1000072567
10.01.2024,Children and Adults,SOUTHWARK INCLUSIVE LEARNING SERVICE,"79,167.00",SILS,HIGH NEEDS - BASE FUNDING,5902616700,5001000105
16.01.2024,Environment Neighbourhoods and Growth,MARWOOD ELECTRICAL COMPANY LTD,"79,138.78",PUBLIC LIGHTING,MATERIALS,5902617798,1001874
10.01.2024,Children and Adults,TUKE SCHOOL,"78,403.00",TUKE SCHOOL,HIGH NEEDS - BASE FUNDING,5902616693,5001000097
31.01.2024,Children and Adults,THAMES REACH,"78,236.34",S75 SUPHSG SCH LBS LEAD,EXTERNAL AGENCIES AND BODIES,5902620173,1723415
22.01.2024,Housing,MX ESTATES LTD,"77,904.24",PSL PLACEMENTS,EXTERNAL AGENCIES AND BODIES,5902618712,1000083639
10.01.2024,Housing,KENT COUNTY COUNCIL - LASER,"77,786.21",RESIDENT SERVICES BUSINESS SUPPORT,ELECTRICITY,5902616878,1000012926
03.01.2024,Children and Adults,NEWCASTLE COLLEGE GROUP,"76,547.99",FURTHER EDUCATION,STATEMENTED FEES,2103804575,1000080965
15.01.2024,Housing,SMITH & BYFORD LTD,"75,037.72",CAPITAL PS (HRA),CONSTRUCTION,2103809800,3000000520
15.01.2024,Housing,APCOA PARKING (UK) LTD,"74,975.31",PARKING CONTROL,OTHER CONTRACTORS,5902617358,1718645
30.01.2024,Housing,CRS DRAWING AND DESIGN LTD,"74,420.00",CAPITAL PS (HRA),CONSTRUCTION,5902619775,1000085835
10.01.2024,Children and Adults,EVELINA HOSPITAL SCHOOL,"74,231.00",EVELINA HOSPITAL SCHOOL,HIGH NEEDS - TOP UP FUNDING,5902616550,5001000031
31.01.2024,DSO,SER CONTRACTOR LTD,"74,212.13",SR - VOIDS TEAM,OTHER CONTRACTORS,2103817859,3000002234
12.01.2024,Housing,ZFA ACCOMMODATION LTD,"73,463.06",NIGHTLY TA (NSC),EXTERNAL AGENCIES AND BODIES,5902617234,1000082620
17.01.2024,Environment Neighbourhoods and Growth,JUPITER PLAY & LEISURE LTD,"72,915.00",DULWICH AREA TEAM,OTHER R&M,5902617900,1000083600
15.01.2024,Housing,SEVILLE DEVELOPMENTS LIMITED,"72,475.49",CAPITAL PS (HRA),CONSTRUCTION MAIN CONTRACT -CERTIFICATED,5902617347,1000090393
03.01.2024,Children and Adults,ALLPAY LTD (APPOINTEESHIPS - ADULTS,"72,000.00",APPOINTEESHIPS,EXTERNAL AGENCIES AND BODIES,2103804461,1000079890
26.01.2024,Children and Adults,ALLPAY LTD (APPOINTEESHIPS - ADULTS,"72,000.00",APPOINTEESHIPS,EXTERNAL AGENCIES AND BODIES,2103815265,1000079890
30.01.2024,Housing,CRS DRAWING AND DESIGN LTD,"71,280.00",CAPITAL PS (HRA),CONSTRUCTION,5902619771,1000085835
16.01.2024,Housing,ZFA ACCOMMODATION LTD,"71,248.50",TA PLACEMENTS,EXTERNAL AGENCIES AND BODIES,5902617706,1000082620
30.01.2024,Housing,PULSE ASSOCIATES LTD (T/A PULSE CONSULT),"69,940.00",CAPITAL PS (HRA),CONSTRUCTION FEES - EMPLOYERS AGENT,5902619682,1000087233
18.01.2024,Housing,STACK LONDON LTD,"69,551.87",CAPITAL PS (HRA),CONSTRUCTION MAIN CONTRACT -CERTIFICATED,2103810712,3000002216
10.01.2024,Children and Adults,PETER HILLS CE SCHOOL,"69,509.00",PETER HILLS CE PRIMARY SCHOOL,SCHOOLS CAPITATION,5902616598,5001000053
25.01.2024,Housing,GUIDELINE LIFT SERVICES LTD,"69,322.70",GUIDELINE,I-WORLD CONTRACTORS HOLDING ACCOUNT,5902619142,1000064176
04.01.2024,Housing,IDEAL QUARTERS LTD,"69,309.65",PSL PLACEMENTS,EXTERNAL AGENCIES AND BODIES,5902615630,1000079241
15.01.2024,Children and Adults,KISIMUL GROUP LTD,"69,245.98",LD LTS 18-64,SUPPORTED LIVING,2103809487,1000079657
13.01.2024,Housing,NIBLOCK (BUILDERS) LTD,"69,040.04",CAPITAL PS (HRA),CONSTRUCTION MAIN CONTRACT -CERTIFICATED,2103804975,3000000235
30.01.2024,Children and Adults,BRANDON TRUST,"68,937.26",LD LTS 65+,SUPPORTED LIVING,2103816820,1000042417
10.01.2024,Children and Adults,VICTORY SCHOOL,"68,672.00",VICTORY PRIMARY SCHOOL,SCHOOLS CAPITATION,5902616696,5001000098
17.01.2024,Children and Adults,PRIORS COURT SERVICES LTD,"67,989.40",CHILDREN�S RESID,RESIDENTIAL CARE,2103810455,1000085127
10.01.2024,Environment Neighbourhoods and Growth,SSCL MPS POLICE SERVICE,"66,955.00",NIGHT TIME ECONOMY,PROFESSIONAL FEES,5902616866,1000035048
08.01.2024,Environment Neighbourhoods and Growth,TRANSPORT FOR LONDON,"66,655.60",CAPITAL PS (LEISURE),CONSTRUCTION,2103804979,3000001395
10.01.2024,Children and Adults,ST MARY MAGDALENE CE SCHOOL,"66,404.00",ST MARY MAGDALENE CE PRIMARY SCHOOL,SCHOOLS CAPITATION,5902616671,5001000080
15.01.2024,Housing,EQUANS REGENERATION (APOLLO) LTD,"66,289.17",CAPITAL PS (HRA),CONSTRUCTION MAIN CONTRACT -CERTIFICATED,2103808351,4000449
15.01.2024,Children and Adults,GIMS CARE SOLUTION LIMITED,"66,028.00",CHILDREN�S RESID,RESIDENTIAL CARE,2103809732,1000090263
18.01.2024,Housing,HOMES 2 LET UK LTD,"65,701.40",NIGHTLY TA (NSC),EXTERNAL AGENCIES AND BODIES,5902618114,1000079868
10.01.2024,Children and Adults,ST JOSEPHS CATHOLIC INFANTS SCHOOL,"65,237.00",ST JOSEPHS RC INFANT(5204),SCHOOLS CAPITATION,5902616519,5001000018
31.01.2024,DSO,BCS (ELECTRICAL & BUILDING) LTD,"64,883.58",SR - VOIDS TEAM,OTHER CONTRACTORS,2103817856,3000001471
05.01.2024,Housing,WILLOWBROOK TENANT MANAGEMENT CO-OP LTD,"63,928.75",WILLOWBROOK CO-OP,M&M ALLOWANCE CO-OPS,5902615904,11311402
16.01.2024,Children and Adults,SOUTHSIDE PARTNERSHIP LTD,"63,353.72",S75 SUPHSG SCH LBS LEAD,EXTERNAL AGENCIES AND BODIES,5902617646,1716624
29.01.2024,Housing,BUGLER DEVELOPMENTS LIMITED,"63,218.05",CAPITAL PS (HRA),CONSTRUCTION SITE COSTS,5902619618,1000088776
22.01.2024,Housing,LETTING INTERNATIONAL LTD,"63,103.16",PSL PLACEMENTS,EXTERNAL AGENCIES AND BODIES,5902618604,1000070102
15.01.2024,Housing,JUDGE AND PRIESTLEY SOLICITORS,"62,423.00",DISREPAIR,BUILDING R&M,5902617484,1472217
23.01.2024,Corporate,LEATHERMARKET JMB HOUSING,"62,380.91",VAT INPUTS - ADJUSTMENTS,VAT CONTROL ACCOUNT,2103813890,11182872
05.01.2024,Housing,HADDON HALL RESIDENTS TMO,"62,364.75",HADDON HALL CO-OP,M&M ALLOWANCE CO-OPS,5902615909,1040504
30.01.2024,Children and Adults,AEGIS 24/7 LTD,"61,964.35",CHILDREN�S RESID,RESIDENTIAL CARE,2103816607,1000089533
24.01.2024,Housing,REDACTED PERSONAL DATA,"60,987.21",CAPITAL PS (HOUSING GF),CAPITAL GRANTS,5902618976,1000090606
03.01.2024,Environment Neighbourhoods and Growth,WARWICK LANDSCAPING LTD,"60,565.76",CAPITAL PS (LEISURE),CONSTRUCTION MAIN CONTRACT -CERTIFICATED,2103804628,3000001705
10.01.2024,Children and Adults,HAYMERLE SCHOOL,"60,278.00",HAYMERLE PRIMARY SCHOOL,HIGH NEEDS - BASE FUNDING,5902616583,5001000045
15.01.2024,Environment Neighbourhoods and Growth,F M CONWAY LTD,"60,272.00",CAPITAL PS (REGEN),CONSTRUCTION FEES  - EXTERNAL,2103808405,4001384
31.01.2024,DSO,SANDERSONS BUILDING SERVICES LTD,"60,240.83",SR - VOIDS TEAM,OTHER CONTRACTORS,2103817857,3000002065
12.01.2024,Children and Adults,LOOK AHEAD CARE AND SUPPORT LTD,"59,591.50",S75 SUPHSG SCH LBS LEAD,EXTERNAL AGENCIES AND BODIES,5902616276,1000047299
24.01.2024,Housing,NIBLOCK (BUILDERS) LTD,"59,570.69",CAPITAL PS (HRA),CONSTRUCTION MAIN CONTRACT -CERTIFICATED,2103814870,3000000235
25.01.2024,Children and Adults,SEVA CHILDCARE LTD,"58,924.00",DISABILITIES LAC,RESIDENTIAL CARE,2103815219,1000090283
31.01.2024,DSO,GC CONSTRUCT LTD,"57,999.08",SR - VOIDS TEAM,OTHER CONTRACTORS,2103817855,3000002106
30.01.2024,Environment Neighbourhoods and Growth,MARWOOD ELECTRICAL COMPANY LTD,"57,580.38",PUBLIC LIGHTING,MATERIALS,5902619846,1001874
31.01.2024,DSO,PROPERTY FACILITIES GROUP PLC,"57,368.72",SR COMMUNAL - DELIVERY TEAM,OTHER CONTRACTORS,2103817897,3000001420
31.01.2024,Housing,WENTWORTH HOUSING LTD,"57,234.49",PSL PLACEMENTS,EXTERNAL AGENCIES AND BODIES,5902619865,1000083640
17.01.2024,Finance,TRANSPORT FOR LONDON GROUP PLANNING,"56,314.19",17/AP/4546 180 ILDERTON ROAD SE15 1NT,S106 A/C,5902617918,1000065130
10.01.2024,Children and Adults,ST JUDES CHURCH OF ENGLAND PRIMARY,"56,091.00",ST JUDE'S CE PRIMARY SCHOOL,SCHOOLS CAPITATION,5902616521,5001000019
15.01.2024,Housing,KIND & COMPANY (BUILDERS) LTD,"56,000.00",CAPITAL PS (HRA),CONSTRUCTION SITE COSTS,2103808359,3000001608
09.01.2024,Housing,KIND & COMPANY (BUILDERS) LTD,"55,964.62",CAPITAL PS (HRA),CONSTRUCTION SITE COSTS,2103805771,3000001608
31.01.2024,Housing,WENTWORTH HOUSING LTD,"55,662.13",PSL PLACEMENTS,EXTERNAL AGENCIES AND BODIES,5902620350,1000083640
25.01.2024,Housing,DIAMOND PROPERTY MANAGEMENT LTD,"55,543.85",NIGHTLY TA (NSC),EXTERNAL AGENCIES AND BODIES,5902619106,1000088789
30.01.2024,Children and Adults,SOLACE CARE PARTNERS LTD,"55,451.47",CHILDREN�S RESID,RESIDENTIAL CARE,2103816606,1000090499
10.01.2024,Children and Adults,CHELSEA AND WESTMINSTER HOSPITAL,"55,403.02",SEXUAL HEALTH - STI,MEDICAL / HEALTH & SAFETY SERVICES,5902616718,1000072053
08.01.2024,Children and Adults,STONEGROVE LIMITED,"55,314.70",CAPITAL PS (EDUCATION),CONSTRUCTION,2103805190,3000001525
19.01.2024,Environment Neighbourhoods and Growth,TRAMPOLINE NH C.I.C,"55,000.00",SOUTHWARK PIONEER FUND,EXTERNAL AGENCIES AND BODIES,5902617193,1000087336
03.01.2024,Housing,SPOKEMEAD MAINTENANCE LTD,"54,318.58",PAYMENTS CONTROL ACCOUNT - SPOKEMEAD,I-WORLD CONTRACTORS HOLDING ACCOUNT,2103804438,4002791
25.01.2024,Environment Neighbourhoods and Growth,TYCO INTEGRATED FIRE & SECURITY,"54,226.00",TOWN CENTRE CCTV,OTHER CONTRACTORS,5902619160,1000077948
05.01.2024,Environment Neighbourhoods and Growth,BL CW HOLDINGS LTD,"53,982.14",CAPITAL PS (REGEN),CONSTRUCTION FEES  - EXTERNAL,5902615934,1000086680
10.01.2024,Children and Adults,BETHLEM & MAUDSLEY HOSPITAL SCHOOL,"53,333.00",MAUDSLEY & BETHLEM,HIGH NEEDS - BASE FUNDING,5902616498,5001000010
18.01.2024,Finance,LONDON BRIDGE BUSINESS IMPROVEMENT,"53,327.54",TEAM LONDON BRIDGE,EXTERNAL AGENCIES AND BODIES,5902618137,1000050879
10.01.2024,Finance,PECKHAM LEVELS LTD,"52,879.77",PROFESSIONAL SERVICES GENERAL,GRANTS,5902616435,1000084365
22.01.2024,Housing,TAAKSVALE HOUSING LTD,"52,870.29",NIGHTLY TA (NSC),EXTERNAL AGENCIES AND BODIES,5902618708,1000073665
19.01.2024,Housing,DUCTCLEAN (UK) LTD,"52,167.00",DUCTCLEAN,I-WORLD CONTRACTORS HOLDING ACCOUNT,2103812027,3000001635
15.01.2024,Finance,WATES PROPERTY SERVICES LTD,"51,949.10",DANGEROUS STRUCTURES,OTHER CONTRACTORS,5902617503,11322039
19.01.2024,Children and Adults,BLAK DIAMOND SOCIAL CARE LTD,"51,910.50",SEMI-IND LAC 16-17,EXTERNAL AGENCIES AND BODIES,2103812261,1000090161
13.01.2024,Housing,TWO TOWERS HOUSING CO-OP LTD,"51,891.75",TWO TOWERS,M&M ALLOWANCE CO-OPS,5902617183,1000006843
13.01.2024,Housing,FALCON POINT MANAGEMENT GROUP LTD,"51,445.50",FALCON POINT TMO,M&M ALLOWANCE CO-OPS,5902615932,11117573
15.01.2024,Housing,FRANKLYN SHAW ASSOCIATES LTD,"51,235.06",FRANKLIN SHAW ASSOCIATES,I-WORLD CONTRACTORS HOLDING ACCOUNT,2103808408,3000001465
15.01.2024,Housing,ARCHITECTURAL DECORATORS LTD,"51,060.29",CAPITAL PS (HRA),CONSTRUCTION MAIN CONTRACT -CERTIFICATED,2103808345,3000001065
15.01.2024,Housing,EQUANS REGENERATION LTD,"50,306.20",CAPITAL PS (HRA),CONSTRUCTION MAIN CONTRACT -CERTIFICATED,2103808348,3000002035
13.01.2024,Children and Adults,LONDON CARE LTD,"49,389.35",EXTRA CARE CONTRACT,HOMECARE - C&V,5902616262,1000003398
25.01.2024,Environment Neighbourhoods and Growth,BL CW HOLDINGS LTD,"49,325.32",CAPITAL PS (REGEN),CONSTRUCTION FEES  - EXTERNAL,5902619105,1000086680
29.01.2024,DSO,J KASH LTD,"49,265.61",SR COMMUNAL - DELIVERY TEAM,OTHER CONTRACTORS,2103815706,3000002219
10.01.2024,Children and Adults,THE ST THOMAS THE APOSTLE COLLEGE,"49,200.00",YPLA SCHL SIXTH FORM,SCHOOLS CAPITATION,2103806680,5001000074
19.01.2024,Housing,NORBURY PROPERTY SERVICES (LONDON) LTD,"49,180.30",NIGHTLY TA (NSC),EXTERNAL AGENCIES AND BODIES,5902618317,1000075566
10.01.2024,Housing,LONDON & QUADRANT HOUSING TRUST,"48,869.37",MANOR PLACE HOSTEL,EXTERNAL AGENCIES AND BODIES,5902616070,1000014718
13.01.2024,Children and Adults,LONDON CARE LTD,"47,766.85",EXTRA CARE CONTRACT,HOMECARE - C&V,5902616264,1000003398
15.01.2024,Housing,EQUANS REGENERATION LTD,"47,618.34",CAPITAL PS (HRA),CONSTRUCTION MAIN CONTRACT -CERTIFICATED,2103808347,3000002035
10.01.2024,Children and Adults,ROTHERHITHE PRIMARY SCHOOL,"46,922.25",PUPIL PREMIUM,SCHOOLS CAPITATION,2103806627,1000089862
13.01.2024,Children and Adults,LONDON CARE LTD,"46,030.06",EXTRA CARE CONTRACT,HOMECARE - C&V,5902616258,1000003398
24.01.2024,Housing,CROMWOOD HOUSING,"45,645.50",NIGHTLY TA (NSC),EXTERNAL AGENCIES AND BODIES,5902619041,1000071450
01.01.2024,Children and Adults,IVYDALE PRIMARY SCHOOL,"45,211.50",SHORT BREAKS INNV FUND,EXTERNAL AGENCIES AND BODIES,5902615284,5001000038
25.01.2024,Environment Neighbourhoods and Growth,BL CW HOLDINGS LTD,"45,123.17",CAPITAL PS (REGEN),CONSTRUCTION FEES  - EXTERNAL,5902619131,1000086680
09.01.2024,Children and Adults,NORTHUMBERLAND COUNTY COUNCIL,"44,950.00",CHILDREN�S RESID,RESIDENTIAL CARE,2103805765,1000030424
29.01.2024,Housing,BUGLER DEVELOPMENTS LIMITED,"44,797.46",CAPITAL PS (HRA),CONSTRUCTION SITE COSTS,5902619616,1000088776
19.01.2024,Children and Adults,THE JEN GROUP LLP,"44,792.50",COVID-19 CONTROL OUTBREAK MGMNT.FUND,EXTERNAL AGENCIES AND BODIES,5902617759,1000090622
10.01.2024,Children and Adults,CHERRY GARDEN SCHOOL,"44,777.00",CHERRY GARDEN PRIMARY SCHOOL,HIGH NEEDS - BASE FUNDING,5902616524,5001000020
10.01.2024,Children and Adults,AGINCARE (SOUTHWARK) LIMITED,"44,713.67",PHY LTS 65+,RESIDENTIAL CARE,5902616884,1000089635
10.01.2024,Children and Adults,BEORMUND PRIMARY SCHOOL,"44,500.00",BEORMUND PRIMARY SCHOOL,HIGH NEEDS - TOP UP FUNDING,5902616493,5001000008
29.01.2024,DSO,BCS (ELECTRICAL & BUILDING) LTD,"44,430.81",SR - VOIDS TEAM,OTHER CONTRACTORS,2103815647,3000001471
10.01.2024,Children and Adults,EVELINA HOSPITAL SCHOOL,"44,167.00",EVELINA HOSPITAL SCHOOL,HIGH NEEDS - BASE FUNDING,5902616549,5001000031
15.01.2024,Children and Adults,ROYAL HOSPITAL FOR NEURODISABILITY,"44,111.66",PHY LTS 18-64,NURSING PLACEMENTS FEES,2103809695,1010365
10.01.2024,Children and Adults,THE CHARTER SCHOOL EDUCATIONAL TRUST,"44,000.00",EHCP INCLUSION FUND,HIGH NEEDS - TOP UP FUNDING,2103806774,1000064975
31.01.2024,Housing,WEBBER AND QUENTIN LTD,"43,967.00",WEBBER & QUENTIN TMO,M&M ALLOWANCE CO-OPS,5902620004,1000077088
03.01.2024,Housing,NATIONWIDE ACCOMMODATION,"43,832.50",NIGHTLY TA (NSC),EXTERNAL AGENCIES AND BODIES,5902615414,1000076112
15.01.2024,Children and Adults,INTEGRATED FOSTERING SERVICES LTD,"43,825.01",FRIENDS & FAMILY FOSTERING,EXTERNAL AGENCIES AND BODIES,2103809741,1000082605
14.01.2024,Children and Adults,CHANGE GROW LIVE SERVICES LTD,"43,500.00",SSMTRG,OTHER CONTRACTORS,5902616071,1000082721
24.01.2024,Environment Neighbourhoods and Growth,METIS CONSULTANTS LIMITED,"43,258.59",STREETS FOR PEOPLE - WALKING,CONSULTANTS SERVICES,5902619030,1000086330
15.01.2024,Environment Neighbourhoods and Growth,STONEGROVE LIMITED,"42,516.04",CAPITAL PS (REGEN),CONSTRUCTION FEES - INTERNAL,2103808358,3000001525
13.01.2024,Children and Adults,SOUTHWARK CARERS,"41,666.65",OLDER PEOPLES HUBS,EXTERNAL AGENCIES AND BODIES,5902616089,1050893
23.01.2024,Housing,JON MILLER IT LTD,"41,400.00",CAPITAL PS (HOUSING GF),ICT ACQUISITION,5902618824,1000088937
30.01.2024,Children and Adults,IVORY COTTAGE LTD,"41,077.46",CHILDREN�S RESID,RESIDENTIAL CARE,2103816609,1000089809
25.01.2024,Children and Adults,ALZHEIMER'S SOCIETY,"41,000.00",LOCAL COMMUNITY OFFER,EXTERNAL AGENCIES AND BODIES,5902618260,1000005179
17.01.2024,Finance,TRANSPORT FOR LONDON GROUP PLANNING,"40,670.95",17/AP/4778 49-65 SOUTHAMPTON WAYSE5 7SW,S106 A/C,5902617918,1000065130
31.01.2024,DSO,ARMINA LTD,"40,565.63",CAMBERWELL DD,OTHER CONTRACTORS,2103817866,3000002121
18.01.2024,Children and Adults,CEDAR HOUSE (KENT) LTD,"40,395.21",CHILDREN�S RESID,RESIDENTIAL CARE,2103810696,1000090433
16.01.2024,Governance and Assurance,ATALIAN SERVEST LTD,"40,224.55",FM SERVICES BY INTERSERVE,BUILDING R&M,5902617535,1000088775
30.01.2024,DSO,CRATUS BUILDING SERVICES LIMITED,"40,214.54",ELECTRICAL TEAM,OTHER CONTRACTORS,2103816284,3000001055
09.01.2024,Environment Neighbourhoods and Growth,PECAN LTD,"40,084.00",CHIEF EXECUTIVE'S OFFICE,EXTERNAL AGENCIES AND BODIES,5902616241,11263114
26.01.2024,Environment Neighbourhoods and Growth,VEOLIA ES SOUTHWARK LTD,"40,027.95",WASTE PFI,VEHICLE FUEL,5902619327,1000056979
31.01.2024,Children and Adults,FAITHFUL & GOULD,"39,814.00",CAPITAL PS (EDUCATION),CONSTRUCTION FEES  - EXTERNAL,5902620095,1000061390
05.01.2024,Children and Adults,COMMITTED CARE HOUSING,"39,216.29",SEMI-IND LAC 16-17,EXTERNAL AGENCIES AND BODIES,2103804920,1000086257
15.01.2024,Strategy and Communities,COMMUNITY SOUTHWARK,"38,750.00",HEALTHWATCH,GRANTS,5902617411,1000018147
23.01.2024,Finance,PRECISELY SOFTWARE LIMITED,"38,639.06",APPLICATIONS,SUBSCRIPTIONS,5902618876,1000088954
09.01.2024,Children and Adults,BLAK DIAMOND SOCIAL CARE LTD,"38,493.01",SEMI-IND LAC 16-17,EXTERNAL AGENCIES AND BODIES,2103805732,1000090161
19.01.2024,Corporate,TUKE SCHOOL,"38,419.53",EDUCATION VAT INPUTS,VAT CONTROL ACCOUNT,2103812169,5001000097
10.01.2024,Environment Neighbourhoods and Growth,COTTRELL AND VERMEULEN ARCH LTD,"37,843.00",CAPITAL PS (REGEN),CONSTRUCTION FEES - ARCHITECT,5902616890,1000012119
10.01.2024,Environment Neighbourhoods and Growth,COTTRELL AND VERMEULEN ARCH LTD,"37,843.00",CAPITAL PS (REGEN),CONSTRUCTION FEES - ARCHITECT,5902616893,1000012119
10.01.2024,Environment Neighbourhoods and Growth,COTTRELL AND VERMEULEN ARCH LTD,"37,843.00",CAPITAL PS (REGEN),CONSTRUCTION FEES - ARCHITECT,5902616894,1000012119
22.01.2024,Housing,NORBURY PROPERTY SERVICES (LONDON) LTD,"37,674.00",NIGHTLY TA (NSC),EXTERNAL AGENCIES AND BODIES,5902618625,1000075566
30.01.2024,Children and Adults,ROSEDENE NURSING HOME,"37,395.88",LD LTS 18-64,OTHER PAYMENTS FOR CLIENTS,2103816844,1163215
05.01.2024,Children and Adults,PROSPERO RECRUITMENT LTD,"37,337.85",ALTERNATIVE PROVISION,EXTERNAL AGENCIES AND BODIES,5902615918,1000082492
11.01.2024,Environment Neighbourhoods and Growth,F M CONWAY LTD,"36,769.51",CAPITAL PS (LEISURE),CONSTRUCTION,2103806842,4001384
18.01.2024,Finance,DIGNITY FUNERALS LTD,"36,700.00",CORONER'S,OTHER CONTRACTORS,5902618154,1000041373
12.01.2024,Children and Adults,PEOPLE PLUS GROUP LTD (INDEPENDENT LIVING SERVICES),"36,670.65",CHILDREN PHB - SEL ICB,PAYMENTS TO CLIENTS (DIRECT PAYMENTS),2103807272,1000061886
16.01.2024,Housing,KINDLY PROPERTIES LTD,"36,473.75",NIGHTLY TA (NSC),EXTERNAL AGENCIES AND BODIES,5902617533,1000060734
19.01.2024,Children and Adults,BLAK DIAMOND SOCIAL CARE LTD,"36,358.35",SEMI-IND LAC 16-17,EXTERNAL AGENCIES AND BODIES,2103812258,1000090161
22.01.2024,Environment Neighbourhoods and Growth,KINDLY PROPERTIES LTD,"36,280.00",NO RECOURSE TO PUBLIC FUNDS,ACCOMMODATION CHARGES,5902618674,1000060734
14.01.2024,Housing,A & E ELKINS LTD,"36,106.19",CAPITAL PS (HRA),CONSTRUCTION,2103806846,4012501
19.01.2024,Environment Neighbourhoods and Growth,GLENDALE COUNTRYSIDE LTD,"36,101.51",TREES TERM CONTRACT,TREE MAINTENANCE,5902618404,1000070980
09.01.2024,Children and Adults,TUTELAGE CARE GROUP LTD,"36,020.29",CHILDREN�S RESID,RESIDENTIAL CARE,2103805764,1000088232
31.01.2024,DSO,ARMINA LTD,"35,930.80",PECKHAM & DULWICH DD,OTHER CONTRACTORS,2103817866,3000002121
14.01.2024,Children and Adults,WELFARE CALL (LAC) LTD,"35,701.38",VIRTUAL SCHOOL PP,DATA COMMUNICATIONS,5902616461,1000057872
24.01.2024,Housing,STACK LONDON LTD,"35,499.33",CAPITAL PS (HRA),CONSTRUCTION MAIN CONTRACT -CERTIFICATED,2103813891,3000002216
19.01.2024,Corporate,ST SAVIOURS & ST OLAVES SCHOOL,"35,438.33",EDUCATION VAT INPUTS,VAT CONTROL ACCOUNT,2103812200,5001000084
15.01.2024,Housing,THAMES VALLEY CONTROLS LTD,"35,092.12",THAMES VALLEY CONTROL,I-WORLD CONTRACTORS HOLDING ACCOUNT,5902617399,1295718
30.01.2024,Environment Neighbourhoods and Growth,NATIONWIDE ACCOMMODATION,"35,091.86",UKRAINIAN REFUGEES,ACCOMMODATION CHARGES,5902619827,1000076112
18.01.2024,Environment Neighbourhoods and Growth,TYCO INTEGRATED FIRE & SECURITY,"35,026.00",TOWN CENTRE CCTV,OTHER CONTRACTORS,5902618228,1000077948
03.01.2024,Housing,COOK TAYLOR WOODHOUSE SOLICITORS,"35,000.00",CAPITAL PS (HRA),CAPITAL GRANTS,2103803120,1000012924
16.01.2024,Environment Neighbourhoods and Growth,CENTRAL BUILDERS & SCAFFOLDING SERVICES LTD,"35,000.00",CAPITAL PS (LEISURE),CONSTRUCTION MAIN CONTRACT,2103809983,3000002247
31.01.2024,Children and Adults,NELL GWYNN NURSERY SCHOOL,"35,000.00",NELL GWYNN CHILDRENS CENTRE,EARLY YEARS - 2 YEAR OLD,2103817794,5001000049
29.01.2024,Finance,PUBLIC INTEREST LAW CENTRE,"35,000.00",STRATEGIC APPLICATIONS,COMPENSATION,5902619584,1000089545
25.01.2024,Environment Neighbourhoods and Growth,CIVICA UK LTD,"34,633.08",EH & TS MANAGER,SOFTWARE,5902619129,1730625
12.01.2024,Children and Adults,LOOK AHEAD CARE AND SUPPORT LTD,"34,586.50",S75 SUPHSG SCH LBS LEAD,EXTERNAL AGENCIES AND BODIES,5902615960,1000047299
26.01.2024,Children and Adults,LOOK AHEAD CARE AND SUPPORT LTD,"34,522.86",S75 SUPHSG SCH LBS LEAD,EXTERNAL AGENCIES AND BODIES,5902619435,1000047299
15.01.2024,Environment Neighbourhoods and Growth,STONEGROVE LIMITED,"34,516.25",CAPITAL PS (REGEN),CONSTRUCTION MAIN CONTRACT,2103808355,3000001525
18.01.2024,Environment Neighbourhoods and Growth,KENT COUNTY COUNCIL - LASER,"34,468.50",STREET LIGHTING REACTIVE,ELECTRICITY,5902618269,1000012926
09.01.2024,Children and Adults,OAKLEY HOUSE (KENT) LIMITED,"34,370.14",CHILDREN�S RESID,RESIDENTIAL CARE,2103805763,1000090039
29.01.2024,Children and Adults,CRESSEY OASIS EDUCATION LTD,"33,999.94",NMSS/ INDEP SPECIAL,STATEMENTED FEES,2103815883,1000068133
03.01.2024,Children and Adults,COIN STREET COMMUNITY BUILDERS LTD,"33,492.00",CHILD & FAM CENTRES,EXTERNAL AGENCIES AND BODIES,5902615449,1000050940
22.01.2024,Children and Adults,COUNTRY COURT CARE HOMES 2 LTD,"33,350.57",PHY LTS 65+,RESIDENTIAL CARE,5902617665,1000080172
13.01.2024,Children and Adults,SOUTHWARK CARERS,"33,333.32",OLDER PEOPLES HUBS,EXTERNAL AGENCIES AND BODIES,5902616091,1050893
19.01.2024,Environment Neighbourhoods and Growth,SITTARA LTD,"33,252.00",NO RECOURSE TO PUBLIC FUNDS,ACCOMMODATION CHARGES,5902618468,1000080857
24.01.2024,Finance,DIGNITY FUNERALS LTD,"33,250.00",CORONER'S,OTHER CONTRACTORS,5902618982,1000041373
18.01.2024,Environment Neighbourhoods and Growth,KENT COUNTY COUNCIL - LASER,"33,192.54",STREET LIGHTING REACTIVE,ELECTRICITY,5902618269,1000012926
19.01.2024,Corporate,HIGHSHORE SCHOOL,"32,844.58",EDUCATION VAT INPUTS,VAT CONTROL ACCOUNT,2103812159,5001000046
24.01.2024,DSO,CRATUS BUILDING SERVICES LIMITED,"32,560.43",SR - VOIDS TEAM,OTHER CONTRACTORS,2103814863,3000001055
14.01.2024,Environment Neighbourhoods and Growth,MHILD LIMITED,"32,330.00",NO RECOURSE TO PUBLIC FUNDS,ACCOMMODATION CHARGES,5902617299,1000090617
08.01.2024,Environment Neighbourhoods and Growth,TRANSPORT FOR LONDON,"31,813.67",CAPITAL PS (LEISURE),CONSTRUCTION,2103804978,3000001395
22.01.2024,Environment Neighbourhoods and Growth,PRIDE DEVELOPMENTS,"31,811.59",CAPITAL PS (REGEN),CONSTRUCTION MAIN CONTRACT,2103812959,3000002126
17.01.2024,Environment Neighbourhoods and Growth,PROPERTYPLACEBOOK LTD,"31,776.50",NO RECOURSE TO PUBLIC FUNDS,ACCOMMODATION CHARGES,5902617943,1000077817
18.01.2024,Environment Neighbourhoods and Growth,KENT COUNTY COUNCIL - LASER,"31,475.52",STREET LIGHTING REACTIVE,ELECTRICITY,5902618269,1000012926
09.01.2024,Environment Neighbourhoods and Growth,SYD BISHOP & SONS(DEMOLITION) LTD,"31,332.14",CAPITAL PS (REGEN),CONSTRUCTION FEES  - EXTERNAL,2103805766,3000000990
08.01.2024,Environment Neighbourhoods and Growth,SYD BISHOP & SONS(DEMOLITION) LTD,"31,332.14",CAPITAL PS (REGEN),CONSTRUCTION FEES  - EXTERNAL,5902615978,3000000990
10.01.2024,Children and Adults,DOG KENNEL HILL PRIMARY SCHOOL,"31,281.50",PUPIL PREMIUM,SCHOOLS CAPITATION,2103806604,1000089861
11.01.2024,Children and Adults,SOUTHSIDE PARTNERSHIP LTD,"31,213.98",S75 SUPHSG SCH LBS LEAD,EXTERNAL AGENCIES AND BODIES,5902616900,1716624
31.01.2024,Children and Adults,STAFFORDSHIRE COUNTY COUNCIL,"31,086.00",SPECIALIST CARE,CLIENT TRANSPORT,2103817938,1000072531
15.01.2024,Children and Adults,NETPEX LTD CORPORATE SERVICES,"31,030.00",CHILDREN�S RESID,RESIDENTIAL CARE,2103809730,1000076073
19.01.2024,Housing,APEX HOUSING SOLUTIONS LTD,"30,933.95",NIGHTLY TA (NSC),EXTERNAL AGENCIES AND BODIES,5902618471,1000079786
31.01.2024,Children and Adults,BOUCHER C OF E PRIMARY SCHOOL,"30,892.35",TRUST FUND DRAW DOWN,SCHOOLS CAPITATION,2103817784,5001000011
31.01.2024,Governance and Assurance,RELX (UK) LTD,"30,886.01",LEGAL SVCES MANAGEMENT,SOFTWARE,5902620280,1000090502
31.01.2024,Children and Adults,DULWICH WOOD PRIMARY SCHOOL,"30,709.05",TRUST FUND DRAW DOWN,SCHOOLS CAPITATION,2103817782,5001000042
03.01.2024,Children and Adults,NEWCASTLE COLLEGE GROUP,"30,700.66",FURTHER EDUCATION,STATEMENTED FEES,2103804573,1000080965
10.01.2024,Children and Adults,DULWICH WOOD CHILDRENS CENTRE,"30,639.00",DULWICH WOOD NURSERY SCHOOL,EARLY YEARS - 3 AND 4 YEAR OLDS,5902616698,5001000099
15.01.2024,Children and Adults,SPECTRA CARE LTD,"30,590.00",LD LTS 18-64,SUPPORTED LIVING,2103808998,1000086280
16.01.2024,Housing,DUCTCLEAN (UK) LTD,"30,538.00",DUCTCLEAN,I-WORLD CONTRACTORS HOLDING ACCOUNT,2103809870,3000001635
19.01.2024,Corporate,MARSTON GROUP LTD,"30,404.37",VAT INPUTS - ADJUSTMENTS,VAT CONTROL ACCOUNT,2103812101,1000076638
03.01.2024,DSO,SPECTRA-GLAZE SERVICES,"30,330.05",SR COMMUNAL - DELIVERY TEAM,OTHER CONTRACTORS,5902615598,1000077605
16.01.2024,Housing,BRENCHLEY GARDENS MANAGEMENT ASSOCIATION,"30,327.00",BRENCHLEY GARDENS,M&M ALLOWANCE CO-OPS,5902617528,11324247
23.01.2024,Environment Neighbourhoods and Growth,KENT COUNTY COUNCIL - LASER,"30,194.74",THE CASTLE CENTRE,GAS,5902618730,1000012926
19.01.2024,Children and Adults,THE CARE ADVANTAGE LTD,"30,040.54",SEMI-IND LAC 16-17,EXTERNAL AGENCIES AND BODIES,2103812226,1000090612
05.01.2024,Governance and Assurance,CIVICA UK LTD,"30,037.50",ELECTORAL REGISTRATION,SOFTWARE,2103805208,1730625
02.01.2024,Housing,AVRILLO LLP,"30,000.00",CAPITAL PS (HRA),CAPITAL GRANTS,2103802827,1000075169
15.01.2024,Environment Neighbourhoods and Growth,CENTRAL BUILDERS & SCAFFOLDING SERVICES LTD,"30,000.00",CAMBERWELL LEISURE CENTRE,BUILDING R&M,2103808370,3000002247
16.01.2024,Environment Neighbourhoods and Growth,CENTRAL BUILDERS & SCAFFOLDING SERVICES LTD,"30,000.00",CAPITAL PS (LEISURE),CONSTRUCTION MAIN CONTRACT,2103809984,3000002247
18.01.2024,Finance,LONDON COUNCILS,"30,000.00",IT MANAGEMENT,COMMS & COMPUTING CONTRACT CHARGES,5902617404,11237079
14.01.2024,Environment Neighbourhoods and Growth,MHILD LIMITED,"29,905.25",NO RECOURSE TO PUBLIC FUNDS,ACCOMMODATION CHARGES,5902617298,1000090617
31.01.2024,Housing,T BROWN & SONS (HEATING) LTD,"29,891.20",HEATING AND HOT WATER,HEATING -DISTRICT SERVICE (CONTRACT SUM),5902620182,1000040191
30.01.2024,Housing,CALFORD SEADEN LLP,"29,562.79",CAPITAL PS (HRA),CONSTRUCTION FEES  - EXTERNAL,5902619841,1061592
08.01.2024,Housing,FAITHDEAN PLC,"29,322.32",CAPITAL PS (HRA),CONSTRUCTION MAIN CONTRACT -CERTIFICATED,2103805193,3000002188
12.01.2024,Environment Neighbourhoods and Growth,NATIONWIDE ACCOMMODATION,"29,316.60",UKRAINIAN REFUGEES,ACCOMMODATION CHARGES,5902617286,1000076112
10.01.2024,Children and Adults,BEORMUND PRIMARY SCHOOL,"29,167.00",BEORMUND PRIMARY SCHOOL,HIGH NEEDS - BASE FUNDING,5902616492,5001000008
31.01.2024,Housing,GAS ADVISORY SERVICES LIMITED,"29,074.95",PHOENIX,I-WORLD CONTRACTORS HOLDING ACCOUNT,5902620149,1000064649
31.01.2024,Environment Neighbourhoods and Growth,KENT COUNTY COUNCIL - LASER,"28,967.45",PECKHAM PULSE LEISURE CENTRE,ELECTRICITY,5902620092,1000012926
17.01.2024,Environment Neighbourhoods and Growth,DIAMOND PROPERTY MANAGEMENT LTD,"28,931.50",NO RECOURSE TO PUBLIC FUNDS,ACCOMMODATION CHARGES,5902617814,1000088789
09.01.2024,Children and Adults,THE KENNEDY AND ELLIOTT PARTNERSHIP,"28,800.00",CHILDREN�S RESID,RESIDENTIAL CARE,2103805756,1000089711
30.01.2024,Children and Adults,THE KENNEDY AND ELLIOTT PARTNERSHIP,"28,800.00",CHILDREN�S RESID,RESIDENTIAL CARE,2103817059,1000089711
29.01.2024,Environment Neighbourhoods and Growth,ASBESTOS SOLUTIONS LIMITED,"28,720.00",CAPITAL PS (REGEN),CONSTRUCTION MAIN CONTRACT,2103813393,3000002114
10.01.2024,Housing,EASYMOVE EA LIMITED,"28,580.27",PSL PLACEMENTS,EXTERNAL AGENCIES AND BODIES,5902616798,1000066859
17.01.2024,Housing,NATIONWIDE ACCOMMODATION,"28,249.00",TA PLACEMENTS,EXTERNAL AGENCIES AND BODIES,5902618000,1000076112
17.01.2024,Housing,DMS PROPERTIES SERVICES LTD,"28,204.25",NIGHTLY TA (NSC),EXTERNAL AGENCIES AND BODIES,5902617984,1000081522
16.01.2024,Housing,STEF & PHILIPS LTD,"28,198.00",NIGHTLY TA (NSC),EXTERNAL AGENCIES AND BODIES,5902617668,1000088522
22.01.2024,Environment Neighbourhoods and Growth,ASBESTOS SOLUTIONS LIMITED,"28,150.00",CAPITAL PS (REGEN),CONSTRUCTION MAIN CONTRACT,2103812962,3000002114
24.01.2024,Finance,DIGNITY FUNERALS LTD,"28,100.00",CORONER'S,OTHER CONTRACTORS,5902618981,1000041373
18.01.2024,Environment Neighbourhoods and Growth,KENT COUNTY COUNCIL - LASER,"28,043.53",STREET LIGHTING REACTIVE,ELECTRICITY,5902618269,1000012926
11.01.2024,Housing,SALVATION ARMY HOUSING ASSOCIATION,"27,964.24",DAVID BARKER HOSTEL,EXTERNAL AGENCIES AND BODIES,5902616288,1000089956
17.01.2024,Children and Adults,ELIALI MPC LTD,"27,857.14",CHILDREN�S RESID,RESIDENTIAL CARE,2103810456,1000089944
30.01.2024,Children and Adults,TUTELAGE CARE GROUP LTD,"27,740.29",CHILDREN�S RESID,RESIDENTIAL CARE,2103816602,1000088232
03.01.2024,Housing,SPOKEMEAD MAINTENANCE LTD,"27,733.26",PAYMENTS CONTROL ACCOUNT - SPOKEMEAD,I-WORLD CONTRACTORS HOLDING ACCOUNT,2103804418,4002791
10.01.2024,Housing,RS REAL ESTATE LTD,"27,718.50",NIGHTLY TA (NSC),EXTERNAL AGENCIES AND BODIES,5902616475,1000072485
22.01.2024,Housing,DMS PROPERTIES SERVICES LTD,"27,553.50",NIGHTLY TA (NSC),EXTERNAL AGENCIES AND BODIES,5902618593,1000081522
16.01.2024,Housing,SK HOUSING LTD,"27,464.70",NIGHTLY TA (NSC),EXTERNAL AGENCIES AND BODIES,5902617526,1000070716
03.01.2024,Strategy and Communities,SOUTHWARK PENSIONERS CENTRE,"27,406.56",VCS GRANTS,GRANTS,5902615443,1000027831
31.01.2024,Environment Neighbourhoods and Growth,F M CONWAY LTD,"27,395.80",CAPITAL PS (LEISURE),CONSTRUCTION,2103817753,4001384
30.01.2024,Children and Adults,IVORY COTTAGE LTD,"27,235.71",CHILDREN�S RESID,EXTERNAL AGENCIES AND BODIES,2103816608,1000089809
15.01.2024,Children and Adults,INTEGRATED FOSTERING SERVICES LTD,"27,226.99",FRIENDS & FAMILY FOSTERING,EXTERNAL AGENCIES AND BODIES,2103809742,1000082605
18.01.2024,Environment Neighbourhoods and Growth,KENT COUNTY COUNCIL - LASER,"26,927.96",STREET LIGHTING REACTIVE,ELECTRICITY,5902618269,1000012926
10.01.2024,Finance,MONDAY.COM LTD,"26,740.00",TECHNOLOGY TRANSFORMATION,SOFTWARE,5902616746,1000090259
30.01.2024,Children and Adults,CHILDHOOD FIRST,"26,739.71",CHILDREN�S RESID,RESIDENTIAL CARE,2103816611,1000076330
22.01.2024,Children and Adults,WANDSWORTH COUNCIL,"26,440.83",OTHER LA SPECIAL,STATEMENTED FEES,2103812975,1000020692
18.01.2024,Environment Neighbourhoods and Growth,KENT COUNTY COUNCIL - LASER,"26,390.54",STREET LIGHTING REACTIVE,ELECTRICITY,5902618269,1000012926
12.01.2024,Housing,CALFORD SEADEN LLP,"26,302.91",CAPITAL PS (HRA),CONSTRUCTION FEES  - EXTERNAL,5902617198,1061592
04.01.2024,Children and Adults,IMAGO LTD,"26,233.75",YOUNG CARERS SERVICE,EXTERNAL AGENCIES AND BODIES,5902615683,1000076913
04.01.2024,Housing,RS REAL ESTATE LTD,"26,230.00",NIGHTLY TA (NSC),EXTERNAL AGENCIES AND BODIES,5902615745,1000072485
18.01.2024,Environment Neighbourhoods and Growth,KENT COUNTY COUNCIL - LASER,"26,052.56",STREET LIGHTING REACTIVE,ELECTRICITY,5902618269,1000012926
23.01.2024,Environment Neighbourhoods and Growth,KENT COUNTY COUNCIL - LASER,"25,896.57",CAMBERWELL LEISURE CENTRE,GAS,5902618732,1000012926
09.01.2024,Children and Adults,BLANDFORD HOUSE UK LTD,"25,829.64",DISABILITIES LAC,EXTERNAL AGENCIES AND BODIES,2103805761,1000088662
24.01.2024,Housing,KENT COUNTY COUNCIL - LASER,"25,822.08",RESIDENT SERVICES BUSINESS SUPPORT,ELECTRICITY,5902619049,1000012926
20.01.2024,Children and Adults,GROUNDSWELL UK,"25,789.50",COVID-19 CONTROL OUTBREAK MGMNT.FUND,EXTERNAL AGENCIES AND BODIES,5902617902,1000082774
30.01.2024,Children and Adults,TUTELAGE CARE HARTLEY LTD,"25,735.39",CHILDREN�S RESID,RESIDENTIAL CARE,2103816605,1000088664
15.01.2024,Children and Adults,INTEGRATED FOSTERING SERVICES LTD,"25,597.01",FRIENDS & FAMILY FOSTERING,EXTERNAL AGENCIES AND BODIES,2103809743,1000082605
14.01.2024,Children and Adults,IMPROVING HEALTH LTD,"25,571.00",HEALTH INTERVENTIONS,EXTERNAL AGENCIES AND BODIES,5902616299,1000079313
27.01.2024,Finance,POST OFFICE LTD,"25,475.36",COST OF LIVING FUND,EXTERNAL AGENCIES AND BODIES,5902619186,1000069858
28.01.2024,Housing,FAITHFUL & GOULD,"25,328.30",CAPITAL PS (HRA),CONSTRUCTION FEES - EMPLOYERS AGENT,5902618580,1000061390
03.01.2024,Children and Adults,OWNLIFE RESIDENTIAL LTD,"25,242.86",CHILDREN�S RESID,RESIDENTIAL CARE,2103804623,1000085398
30.01.2024,Housing,BUGLER DEVELOPMENTS LIMITED,"25,233.50",CAPITAL PS (HRA),CONSTRUCTION MAIN CONTRACT -CERTIFICATED,2103816285,3000002217
11.01.2024,Children and Adults,ALLPAY LTD (0-25),"25,000.00",SCH TRANS � TRAVEL,OTHER PAYMENTS FOR CLIENTS,5902617111,1000083062
12.01.2024,Housing,CREATION SOUTHWARK CIC,"25,000.00",CAPITAL PS (HRA),CONSTRUCTION FEES  - EXTERNAL,5902617185,1000084232
25.01.2024,Children and Adults,JONES LANG LASALLE LTD,"25,000.00",CAPITAL PS (SOC SERV),CONSTRUCTION FEES - ARCHITECT,5902619121,1000072428
31.01.2024,Finance,COMUZI LTD,"24,940.00",DIGITAL DELIVERY,CONSULTANTS SERVICES,5902620201,1000084003
16.01.2024,Environment Neighbourhoods and Growth,JAAMA LTD,"24,875.90",FLEET SERVICES MANAGEMENT,COMPUTER MAINTENANCE,5902617745,1000080704
15.01.2024,Housing,DURKAN LTD,"24,821.71",CAPITAL PS (HRA),CONSTRUCTION MAIN CONTRACT -CERTIFICATED,2103808344,3000000960
24.01.2024,Environment Neighbourhoods and Growth,PRIDE DEVELOPMENTS,"24,536.23",CAPITAL PS (REGEN),CONSTRUCTION MAIN CONTRACT,2103813893,3000002126
18.01.2024,Housing,FINEFAIR LTD,"24,406.61",NIGHTLY TA (NSC),EXTERNAL AGENCIES AND BODIES,5902618227,1000075570
05.01.2024,Housing,DELAWYK RESIDENTS MGT ORG LTD,"24,373.00",DELAWYK RMO RENT INCOME,M&M ALLOWANCE CO-OPS,5902615908,1000052920
18.01.2024,Governance and Assurance,CORPORATE DOCUMENT SERVICES LTD,"24,207.92",REPAIR AND MAINTENANCE SERVICES,PRINTING,5902618127,11324274
16.01.2024,Environment Neighbourhoods and Growth,PRIDE DEVELOPMENTS,"24,155.60",CAPITAL PS (REGEN),CONSTRUCTION MAIN CONTRACT,2103809855,3000002126
14.01.2024,Housing,LONDON CARE LTD,"24,154.20",CAPITAL PS (HRA),CONSTRUCTION MAIN CONTRACT -CERTIFICATED,5902616406,1000003398
22.01.2024,Environment Neighbourhoods and Growth,ZFA ACCOMMODATION LTD,"24,096.00",NO RECOURSE TO PUBLIC FUNDS,ACCOMMODATION CHARGES,5902618536,1000082620
09.01.2024,Children and Adults,THE ST THOMAS THE APOSTLE COLLEGE,"24,081.00",COVID-19 SCHOOLS GRANTS,SCHOOLS CAPITATION,2103805354,5001000074
14.01.2024,Environment Neighbourhoods and Growth,QUADRON SERVICES LIMITED,"24,000.00",CEMETERIES,GROUNDS MAINTENANCE,5902616303,1000066528
10.01.2024,Environment Neighbourhoods and Growth,HOMELY HOUSING LETS LTD,"23,774.52",NO RECOURSE TO PUBLIC FUNDS,ACCOMMODATION CHARGES,5902616415,1000050013
28.01.2024,Environment Neighbourhoods and Growth,KENT COUNTY COUNCIL - LASER,"23,731.40",PECKHAM PULSE LEISURE CENTRE,GAS,5902618653,1000012926
16.01.2024,Children and Adults,PIPLINGS NURSERY,"23,635.95",NURSERY ED GRANT 3 AND 4 YR OLDS,GRANTS,2103809875,1000070644
10.01.2024,Children and Adults,DULWICH WOOD CHILDRENS CENTRE,"23,571.00",DULWICH WOOD NURSERY SCHOOL,EARLY YEARS - 3 AND 4 YEAR OLDS,5902616699,5001000099
29.01.2024,Housing,NEWINGTON BUTTS MANAGEMENT LTD,"23,500.92",PRIVATE SERVICE CHARGES,SERVICE CHARGES,5902619569,1000081298
29.01.2024,Environment Neighbourhoods and Growth,GUILDMORE LTD,"23,481.47",CAPITAL PS (REGEN),CONSTRUCTION MAIN CONTRACT -CERTIFICATED,2103815635,3000002150
23.01.2024,Children and Adults,INTERPRETING DIRECT CO (UK) LTD,"23,476.50",CENTRAL SUPPORT,INTERPRETING SERVICES,5902618830,1000070133
03.01.2024,Environment Neighbourhoods and Growth,SALIX MECHANICAL SERVICES LLP,"23,432.00",CAPITAL PS (LEISURE),"PLANT, MACHINERY & EQUIPMENT ACQUISITION",5902615579,1000088961
23.01.2024,Environment Neighbourhoods and Growth,LEE VALLEY REGIONAL PARK AUTHORITY,"23,113.31",LEE VALLEY LEVY,LEVIES,5902618809,11020407
24.01.2024,DSO,SER CONTRACTOR LTD,"23,012.70",SR - VOIDS TEAM,OTHER CONTRACTORS,2103814864,3000002234
28.01.2024,Environment Neighbourhoods and Growth,VIVACITY LABS LIMITED,"22,833.00",CAPITAL PS (LEISURE),CONSTRUCTION FEES  - EXTERNAL,5902618683,1000083935
19.01.2024,Corporate,SOUTHWARK INCLUSIVE LEARNING SERVICE,"22,769.68",EDUCATION VAT INPUTS,VAT CONTROL ACCOUNT,2103812209,5001000105
19.01.2024,Housing,DUCTCLEAN (UK) LTD,"22,760.99",DUCTCLEAN,I-WORLD CONTRACTORS HOLDING ACCOUNT,2103812024,3000001635
05.01.2024,Environment Neighbourhoods and Growth,VEOLIA ES SOUTHWARK LTD,"22,743.36",WASTE PFI,PFI/PPP PAYMENTS,5902615922,1000056979
31.01.2024,Housing,CDPSOFT LTD,"22,693.84",HOUSING SOLUTIONS,SOFTWARE,5902620204,1000056778
19.01.2024,Environment Neighbourhoods and Growth,GLENDALE COUNTRYSIDE LTD,"22,643.59",TREES TERM CONTRACT,TREE MAINTENANCE,5902618411,1000070980
22.01.2024,Governance and Assurance,OLMEC,"22,500.00",CONTRACT COSTS � NON R/C,TRAINING,5902618531,1000086225
11.01.2024,Environment Neighbourhoods and Growth,KENT COUNTY COUNCIL - LASER,"22,487.76",PECKHAM PULSE LEISURE CENTRE,GAS,5902617076,1000012926
24.01.2024,DSO,GC CONSTRUCT LTD,"22,456.07",SR - VOIDS TEAM,OTHER CONTRACTORS,2103814861,3000002106
15.01.2024,Children and Adults,CORAM VOICE,"22,302.25",CHILDRENS ADVOCACY & INDEPENDENT VISITOR,ADVOCACY,5902617486,1000076392
19.01.2024,Corporate,HAYMERLE SCHOOL,"22,263.65",EDUCATION VAT INPUTS,VAT CONTROL ACCOUNT,2103812188,5001000045
16.01.2024,Children and Adults,WILLCOB CARE LTD,"22,232.00",SPECIALIST CARE,SECTION 17 PAYMENTS TO AGENCIES/CARERS,2103809976,1000090119
10.01.2024,Children and Adults,JOHN RUSKIN PRIMARY SCHOOL,"22,169.00",NURSERY ED GRANT 3 AND 4 YR OLDS,EARLY YEARS - 3 AND 4 YEAR OLDS,5902616571,5001000040
26.01.2024,Environment Neighbourhoods and Growth,YELLOW LINE PARKING LTD,"22,050.00",PROJECT SUPPORT,SOFTWARE,5902618213,1000083708
12.01.2024,Environment Neighbourhoods and Growth,TYCO INTEGRATED FIRE & SECURITY,"22,048.80",CAPITAL PS (LEISURE),CONSTRUCTION FEES  - EXTERNAL,5902617236,1000077948
09.01.2024,Children and Adults,CAMERON & COOPER LIMITED,"22,040.00",CHILDREN�S RESID,RESIDENTIAL CARE,2103805760,1000087598
22.01.2024,Children and Adults,WANDSWORTH COUNCIL,"22,023.44",OTHER LA SPECIAL,STATEMENTED FEES,2103812976,1000020692
10.01.2024,Children and Adults,THE GROVE CHILDRENS CENTRE,"21,996.00",THE GROVE NURSERY SCHOOL,EARLY YEARS - 3 AND 4 YEAR OLDS,5902616684,5001000090
12.01.2024,Children and Adults,LIONCARE LIMITED,"21,926.67",NMSS/ INDEP SPECIAL,STATEMENTED FEES,2103806918,1000065330
25.01.2024,Strategy and Communities,LONDON COUNCILS,"21,890.00",CORPORATE & DEPARTMENTAL EXPENDITURE,SUBSCRIPTIONS,5902619223,11237079
09.01.2024,Children and Adults,FAITHFUL & GOULD,"21,723.75",CAPITAL PS (SOC SERV),CONSTRUCTION FEES  - EXTERNAL,5902616301,1000061390
22.01.2024,Children and Adults,RIVERSTON SCHOOL,"21,671.00",INDEP MAINSTREAM,STATEMENTED FEES,2103812987,11213696
31.01.2024,Housing,NOTTING HILL HOUSING TRUST,"21,591.94",HYDE/AMICUS AND HALS,EXTERNAL AGENCIES AND BODIES,5902620090,1000043205
12.01.2024,Children and Adults,COMMITTED CARE HOUSING,"21,544.00",SEMI-IND LAC 16-17,EXTERNAL AGENCIES AND BODIES,2103806948,1000086257
12.01.2024,Children and Adults,COMMITTED CARE HOUSING,"21,494.00",SEMI-IND LAC 16-17,EXTERNAL AGENCIES AND BODIES,2103806947,1000086257
30.01.2024,Children and Adults,HEADSTART RESIDENTIAL CARE LIMITED,"21,478.66",CHILDREN�S RESID,RESIDENTIAL CARE,2103816601,1000088836
12.01.2024,Children and Adults,FRESH START CARE SOLUTIONS LTD,"21,478.57",SEMI-IND LAC 16-17,EXTERNAL AGENCIES AND BODIES,2103806941,1000070537
30.01.2024,Children and Adults,THE CALDECOTT FOUNDATION,"21,367.86",CHILDREN�S RESID,RESIDENTIAL CARE,2103816603,1000074757
26.01.2024,Environment Neighbourhoods and Growth,WSP UK LTD,"21,360.00",HIGHWAYS DEVELOPMENT,OTHER CONTRACTORS,5902619406,1000054214
09.01.2024,Children and Adults,COMMITTED CARE HOUSING,"21,330.57",SEMI-IND LAC 16-17,EXTERNAL AGENCIES AND BODIES,2103805722,1000086257
19.01.2024,Corporate,THE ST THOMAS THE APOSTLE COLLEGE,"21,250.36",EDUCATION VAT INPUTS,VAT CONTROL ACCOUNT,2103812166,5001000074
25.01.2024,Children and Adults,SWK DISABLEMENT ASSN,"21,000.00",ALL AGE DISABILITIES HUBS,EXTERNAL AGENCIES AND BODIES,5902618289,1000011698
19.01.2024,Environment Neighbourhoods and Growth,GLENDALE COUNTRYSIDE LTD,"20,931.68",TREES TERM CONTRACT,TREE MAINTENANCE,5902618409,1000070980
09.01.2024,Children and Adults,MCRAE RESIDENTIAL CARE SERVICES LTD,"20,815.26",CHILDREN�S RESID,RESIDENTIAL CARE,2103805758,1000050558
27.01.2024,Governance and Assurance,KENT COUNTY COUNCIL - LASER,"20,758.45",160 TOOLEY ST.,GAS,5902618585,1000012926
15.01.2024,Children and Adults,HESLEY GROUP LIMITED,"20,642.16",LD LTS 18-64,SUPPORTED LIVING,2103809381,1000089729
12.01.2024,Children and Adults,COMMITTED CARE HOUSING,"20,570.00",SEMI-IND LAC 16-17,EXTERNAL AGENCIES AND BODIES,2103806949,1000086257
31.01.2024,Children and Adults,INTERCOUNTRY ADOPTION CENTRE,"20,475.00",ADOPT LONDON SOUTH,PROFESSIONAL FEES,5902620188,1000035796
24.01.2024,Children and Adults,THE CAMDEN SOCIETY (SOCIAL CARE),"20,459.09",LD LTS 18-64,DAYCARE,2103814871,1000036369
22.01.2024,Environment Neighbourhoods and Growth,ROADWORKS INFORMATION LTD,"20,412.00",STREET WORKS OVERHEADS,SOFTWARE,5902618558,1000089315
10.01.2024,Children and Adults,BESSEMER GRANGE PRIMARY SCHOOL,"20,411.00",NURSERY ED GRANT 3 AND 4 YR OLDS,EARLY YEARS - 3 AND 4 YEAR OLDS,5902616494,5001000009
30.01.2024,Children and Adults,ROCKSTEADY CARE LTD,"20,366.67",CHILDREN�S RESID,RESIDENTIAL CARE,2103816604,1000089573
22.01.2024,Governance and Assurance,CIVICA ELECTION SERVICES LIMITED,"20,324.68",ELECTORAL REGISTRATION,LEGAL FEES & COURT COSTS,2103813328,1000088981
11.01.2024,Environment Neighbourhoods and Growth,LEASEPLAN UK LTD,"20,209.95",COMMERCIAL VEH CTRL A/C,HIRED VEHICLES,5902617079,11014756
19.01.2024,Environment Neighbourhoods and Growth,LEASEPLAN UK LTD,"20,209.95",COMMERCIAL VEH CTRL A/C,HIRED VEHICLES,5902618327,11014756
22.01.2024,Environment Neighbourhoods and Growth,CABLE TEST LTD,"20,165.70",PUBLIC LIGHTING,OTHER CONTRACTORS,5902618651,1000079183
16.01.2024,Environment Neighbourhoods and Growth,MARWOOD ELECTRICAL COMPANY LTD,"20,143.05",PUBLIC LIGHTING,MATERIALS,5902617800,1001874
05.01.2024,Children and Adults,COMMITTED CARE HOUSING,"20,126.71",SEMI-IND LAC 16-17,EXTERNAL AGENCIES AND BODIES,2103804923,1000086257
24.01.2024,Environment Neighbourhoods and Growth,PEMBROKE COLLEGE SETTLEMENT,"20,107.74",CAPITAL PS (LEISURE),CAPITAL GRANTS,5902618936,1000073444
19.01.2024,Housing,HM REVENUE & CUSTOMS,"20,103.02",APPRENTICE LEVY,APPRENTICESHIP LEVY,2103802113,1016231
19.01.2024,Corporate,GRANGE PRIMARY SCHOOL,"20,067.00",EDUCATION VAT INPUTS,VAT CONTROL ACCOUNT,2103812157,5001000029
22.01.2024,Children and Adults,COMMUNITY SOUTHWARK,"20,046.00",COMMUNITY HEALTH AMBASSADORS,EXTERNAL AGENCIES AND BODIES,5902618615,1000018147
10.01.2024,Children and Adults,CENTRAL & NORTH WEST LONDON,"20,033.42",SEXUAL HEALTH - STI,MEDICAL / HEALTH & SAFETY SERVICES,5902616730,1000066666
17.01.2024,Children and Adults,ALLPAY LTD (CHILDREN - INSTANT ISSU,"20,000.00",C & F FINANCE TEAM,OTHER PAYMENTS FOR CLIENTS,5902618029,1000079883
17.01.2024,Children and Adults,ALLPAY LTD (CHILDREN - PETTY CASH),"20,000.00",C & F FINANCE TEAM,OTHER PAYMENTS FOR CLIENTS,5902618062,1000079888
05.01.2024,Housing,APPLEGARTH HOUSE COOPERATIVE LTD,"19,994.50",APPLEGARTH HOUSE CO-OP,M&M ALLOWANCE CO-OPS,5902615905,1296074
15.01.2024,Housing,GAS ADVISORY SERVICES LIMITED,"19,951.06",PHOENIX,I-WORLD CONTRACTORS HOLDING ACCOUNT,5902617510,1000064649
24.01.2024,DSO,SPECTRA-GLAZE SERVICES,"19,950.44",SR COMMUNAL - DELIVERY TEAM,OTHER CONTRACTORS,5902619008,1000077605
30.01.2024,Children and Adults,LIONCARE LIMITED,"19,938.76",CHILDREN�S RESID,RESIDENTIAL CARE,2103816598,1000065330
29.01.2024,DSO,CRATUS BUILDING SERVICES LIMITED,"19,858.95",SR TEMPORARY ACCOMMODATION DD,OTHER CONTRACTORS,2103815780,3000001055
29.01.2024,Housing,1ST ACE SECURITY LTD,"19,857.60",LAKANAL (TENANCY),SECURITY SERVICES,5902619545,1000006992
19.01.2024,Corporate,MICHAEL FARADAY PRIMARY SCHOOL,"19,825.04",EDUCATION VAT INPUTS,VAT CONTROL ACCOUNT,2103812205,5001000048
05.01.2024,Children and Adults,CHANNELS & CHOICES FOSTERING LTD,"19,800.00",CHILDREN�S RESID,RESIDENTIAL CARE,2103804935,1000052855
19.01.2024,Environment Neighbourhoods and Growth,POTTERS FIELDS PARK MANAGEMENT TRUST,"19,742.00",CLIENT SERV(GRNS MAIN),SERVICE CHARGES,2103812108,1000053530
15.01.2024,Housing,JUDGE AND PRIESTLEY SOLICITORS,"19,693.50",DISREPAIR,BUILDING R&M,5902617477,1472217
22.01.2024,Children and Adults,SERENITY SCHOOL ELTHAM LTD,"19,667.00",NMSS/ INDEP SPECIAL,STATEMENTED FEES,2103812966,1000088850
22.01.2024,Children and Adults,SERENITY SCHOOL ELTHAM LTD,"19,667.00",NMSS/ INDEP SPECIAL,STATEMENTED FEES,2103812967,1000088850
10.01.2024,Children and Adults,GOODRICH PRIMARY SCHOOL,"19,625.00",NURSERY ED GRANT 3 AND 4 YR OLDS,EARLY YEARS - 3 AND 4 YEAR OLDS,5902616538,5001000028
11.01.2024,Housing,BETHEL ROCK LTD,"19,566.31",PSL PLACEMENTS,EXTERNAL AGENCIES AND BODIES,5902617135,1000080864
09.01.2024,Children and Adults,HIGHVIEW CARE LTD,"19,485.67",CHILDREN�S RESID,RESIDENTIAL CARE,2103805762,1000089728
13.01.2024,Children and Adults,LONDON CARE LTD,"19,323.36",TRANSFORMING COM E,HOMECARE - C&V,5902616260,1000003398
24.01.2024,Environment Neighbourhoods and Growth,CITYGLEN LTD,"19,305.30",NO RECOURSE TO PUBLIC FUNDS,ACCOMMODATION CHARGES,5902618974,1000026239
29.01.2024,Children and Adults,NEWLANDS ACADEMY,"19,273.74",AC & FREE - SPECIAL,STATEMENTED FEES,2103815790,1000072567
31.01.2024,Children and Adults,NATIONAL LITERACY TRUST,"19,250.00",FAMILY HUBS GRANT,EXTERNAL AGENCIES AND BODIES,5902620247,1000049473
08.01.2024,Children and Adults,FOOD FOR PURPOSE FFP CIC,"19,015.00",HEALTHY WEIGHT,EXTERNAL AGENCIES AND BODIES,5902616078,1000090614
29.01.2024,Environment Neighbourhoods and Growth,KENT COUNTY COUNCIL - LASER,"18,996.98",SDM BUDGET,ELECTRICITY,5902619507,1000012926
10.01.2024,Children and Adults,THE GROVE CHILDRENS CENTRE,"18,943.00",THE GROVE NURSERY SCHOOL,EARLY YEARS - 3 AND 4 YEAR OLDS,5902616686,5001000090
03.01.2024,Children and Adults,RESOURCES FOR AUTISM,"18,822.00",SHORT BREAKS INNV FUND,EXTERNAL AGENCIES AND BODIES,5902615560,1000062540
05.01.2024,Children and Adults,WESTGATE LIFESTYLE PROJECT LTD,"18,821.34",CHILDREN�S RESID,RESIDENTIAL CARE,2103804934,1000089215
15.01.2024,Children and Adults,THE BEECHES UK LTD,"18,776.88",LD LTS 18-64,SUPPORTED LIVING,2103808768,1000083173
10.01.2024,Children and Adults,JOHN RUSKIN PRIMARY SCHOOL,"18,750.00",LBS MAINSTREAM,HIGH NEEDS - TOP UP FUNDING,5902616576,5001000040
05.01.2024,Children and Adults,PROSPERO RECRUITMENT LTD,"18,732.50",ALTERNATIVE PROVISION,EXTERNAL AGENCIES AND BODIES,5902615917,1000082492
10.01.2024,Children and Adults,ST SAVIOURS & ST OLAVES SCHOOL,"18,699.00",COVID-19 SCHOOLS GRANTS,SCHOOLS CAPITATION,2103805370,5001000084
15.01.2024,Children and Adults,ALWAYS INCLUSIVE LTD,"18,620.00",LD LTS 18-64,SUPPORTED LIVING,2103808705,1000088268
08.01.2024,Finance,INFOSYS LIMITED,"18,589.00",CAPITAL PS (STRAT SERV),ICT ACQUISITION,5902615990,1000088973
15.01.2024,Children and Adults,POSITIVE SOLUTIONS KENT,"18,550.72",LD LTS 18-64,RESIDENTIAL CARE,2103808836,1000090389
19.01.2024,Environment Neighbourhoods and Growth,TRACSIS TRAFFIC DATA LTD,"18,495.00",CAPITAL PS (LEISURE),CAPITAL GRANTS,5902617243,1000079382
31.01.2024,DSO,ARMINA LTD,"18,363.86",DAMP & MOULD TEAM,OTHER CONTRACTORS,2103817866,3000002121
19.01.2024,Corporate,GOODRICH PRIMARY SCHOOL,"18,359.79",EDUCATION VAT INPUTS,VAT CONTROL ACCOUNT,2103812223,5001000028
20.01.2024,Housing,POWER ON CONNECTIONS LTD,"18,354.13",CAPITAL PS (HRA),UTILITIES INSTALLATION,5902618225,1000083135
18.01.2024,Environment Neighbourhoods and Growth,KENT COUNTY COUNCIL - LASER,"18,342.84",THE CASTLE CENTRE,GAS,5902618259,1000012926
31.01.2024,Children and Adults,REDACTED PERSONAL DATA,"18,043.75",ANCILLARY AND RECOVERY SERVICES,OTHER CONTRACTORS,5902620001,1000066175
10.01.2024,Children and Adults,JOHN RUSKIN PRIMARY SCHOOL,"18,000.00",EHCP INCLUSION FUND,HIGH NEEDS - TOP UP FUNDING,2103806759,5001000040
10.01.2024,Strategy and Communities,SOUTHWARK CITIZENS ADVICE,"18,000.00",LEGAL GRANTS,EXTERNAL AGENCIES AND BODIES,5902616737,1874379
19.01.2024,Corporate,HIGHSHORE SCHOOL,"17,956.60",EDUCATION VAT INPUTS,VAT CONTROL ACCOUNT,2103812219,5001000046
09.01.2024,Housing,LTA DIRECT LTD,"17,922.66",PSL PLACEMENTS,EXTERNAL AGENCIES AND BODIES,5902616342,1000085314
29.01.2024,Children and Adults,ORCHARD HILL COLLEGE,"17,829.06",SPECIALIST POST-16,STATEMENTED FEES,2103815868,1000070978
05.01.2024,Governance and Assurance,GARDINER & THEOBALD LLP,"17,775.00",CFM OPERATIONAL BUDGET,PROFESSIONAL FEES,5902615915,1000090338
31.01.2024,Housing,GAS ADVISORY SERVICES LIMITED,"17,743.34",PHOENIX,I-WORLD CONTRACTORS HOLDING ACCOUNT,5902620144,1000064649
22.01.2024,Housing,WALWORTH HOMES LTD,"17,700.00",CAPITAL PS (HRA),CONSTRUCTION FEES  - EXTERNAL,5902618601,1000079197
22.01.2024,Housing,WALWORTH HOMES LTD,"17,700.00",CAPITAL PS (HRA),CONSTRUCTION FEES  - EXTERNAL,5902618602,1000079197
19.01.2024,Corporate,CHERRY GARDEN SCHOOL,"17,682.20",EDUCATION VAT INPUTS,VAT CONTROL ACCOUNT,2103812189,5001000020
19.01.2024,Corporate,BRUNSWICK PARK PRIMARY SCHOOL,"17,591.44",EDUCATION VAT INPUTS,VAT CONTROL ACCOUNT,2103812181,5001000013
11.01.2024,Environment Neighbourhoods and Growth,KENT COUNTY COUNCIL - LASER,"17,531.30",SEVEN ISLANDS LEISURE CENTRE,ELECTRICITY,5902617092,1000012926
19.01.2024,Environment Neighbourhoods and Growth,KENT COUNTY COUNCIL - LASER,"17,531.30",SEVEN ISLANDS LEISURE CENTRE,ELECTRICITY,5902618284,1000012926
22.01.2024,Children and Adults,RIVERSTON SCHOOL,"17,521.00",INDEP MAINSTREAM,STATEMENTED FEES,2103812988,11213696
19.01.2024,Corporate,PHOENIX PRIMARY SCHOOL,"17,516.85",EDUCATION VAT INPUTS,VAT CONTROL ACCOUNT,2103812185,5001000032
15.01.2024,Children and Adults,ROSEDENE NURSING HOME,"17,468.80",LD LTS 18-64,RESIDENTIAL CARE,2103809335,1163215
30.01.2024,Children and Adults,MY CHOICE CHILDREN'S HOMES LIMITED,"17,439.71",CHILDREN�S RESID,RESIDENTIAL CARE,2103816600,1000085839
19.01.2024,Children and Adults,SNOWSFIELDS PRIMARY SCHOOL,"17,398.83",CAPITAL PS (EDUCATION),CONSTRUCTION FEES - INTERNAL,5902617675,5001000061
10.01.2024,Housing,RELIANCE RESIDENTIAL,"17,398.13",PSL PLACEMENTS,EXTERNAL AGENCIES AND BODIES,5902616856,1000084814
11.01.2024,Housing,RELIANCE RESIDENTIAL,"17,398.13",PSL PLACEMENTS,EXTERNAL AGENCIES AND BODIES,5902616886,1000084814
12.01.2024,Housing,ARMINA LTD,"17,379.97",DISREPAIR,BUILDING R&M,2103806904,3000002121
10.01.2024,Children and Adults,RYE OAK PRIMARY SCHOOL,"17,333.00",LBS RB / SEN UNIT,HIGH NEEDS - TOP UP FUNDING,5902616618,5001000059
10.01.2024,Children and Adults,ALBION PRIMARY SCHOOL,"17,329.00",NURSERY ED GRANT 3 AND 4 YR OLDS,EARLY YEARS - 3 AND 4 YEAR OLDS,5902616480,5001000000
15.01.2024,Children and Adults,DIAGRAMA HEALTH CARE,"17,304.64",LD LTS 18-64,RESIDENTIAL CARE,2103809217,1000075492
31.01.2024,Housing,BOND TURNER  SOLICITORS,"17,291.67",DISREPAIR,PAYMENTS FOR LEGAL SERVICES,2103817843,1000085362
25.01.2024,Children and Adults,STUDYBUGS LIMITED,"17,280.00",EDUC INCLUSION TEAM,TRAINING,5902617939,1000089783
26.01.2024,Environment Neighbourhoods and Growth,BRITISH TELECOM PLC,"17,195.74",CCTV,TELEPHONES (LAND LINES),5902619367,1756938
29.01.2024,Children and Adults,ORCHARD HILL COLLEGE,"17,115.98",SPECIALIST POST-16,STATEMENTED FEES,2103815853,1000070978
29.01.2024,Children and Adults,ORCHARD HILL COLLEGE,"17,113.58",SPECIALIST POST-16,STATEMENTED FEES,2103815852,1000070978
24.01.2024,Housing,CENTENNIAL PROPERTY LIMITED,"17,111.60",NIGHTLY TA (NSC),EXTERNAL AGENCIES AND BODIES,5902619076,1000083022
12.01.2024,Finance,VIRGIN MEDIA,"17,108.31",IT MANAGEMENT,COMMS & COMPUTING CONTRACT CHARGES,5902617197,1000026457
30.01.2024,Environment Neighbourhoods and Growth,KENT COUNTY COUNCIL - LASER,"17,080.49",SEVEN ISLANDS LEISURE CENTRE,ELECTRICITY,5902619693,1000012926
19.01.2024,Children and Adults,HAVERSTOCK,"17,066.25",CAPITAL PS (EDUCATION),CONSTRUCTION FEES - ARCHITECT,5902618346,1000074288
24.01.2024,Housing,MAIER LANG LIMITED,"16,997.00",PSL PLACEMENTS,EXTERNAL AGENCIES AND BODIES,5902619010,1000084930
12.01.2024,Housing,AJM ADAPTIONS LTD,"16,935.15",CAPITAL PS (HOUSING GF),CAPITAL GRANTS,5902617407,1000080297
30.01.2024,Environment Neighbourhoods and Growth,PROJECT CENTRE LTD,"16,920.00",TRANSPORT PROJECTS,OTHER CONTRACTORS,5902619772,1000072621
18.01.2024,Housing,HOMELY HOUSING LETS LTD,"16,907.40",NIGHTLY TA (NSC),EXTERNAL AGENCIES AND BODIES,5902618201,1000050013
30.01.2024,Children and Adults,HORIZON CARE & EDUCATION GROUP LTD,"16,881.67",CHILDREN�S RESID,RESIDENTIAL CARE,2103816587,1000075467
25.01.2024,Children and Adults,PILGRIM'S WAY PRIMARY SCHOOL,"16,854.76",SUPPORTING FAMILIES,OTHER PAYMENTS FOR CLIENTS,5902619278,5001000054
26.01.2024,Children and Adults,ACORN HOMES (UK) LTD,"16,828.66",CHILDREN�S RESID,RESIDENTIAL CARE,2103815410,1000080423
30.01.2024,Children and Adults,ACORN HOMES (UK) LTD,"16,828.66",CHILDREN�S RESID,RESIDENTIAL CARE,2103816599,1000080423
12.01.2024,Finance,VIRGIN MEDIA,"16,826.41",IT MANAGEMENT,COMMS & COMPUTING CONTRACT CHARGES,5902617196,1000026457
30.01.2024,Environment Neighbourhoods and Growth,KENT COUNTY COUNCIL - LASER,"16,806.95",DULWICH LEISURE CENTRE,ELECTRICITY,5902619715,1000012926
14.01.2024,Environment Neighbourhoods and Growth,KNOX BHAVAN ARCHITECTS LLP,"16,687.45",CAPITAL PS (REGEN),CONSTRUCTION FEES - ARCHITECT,5902616119,1000088675
22.01.2024,Environment Neighbourhoods and Growth,KNOX BHAVAN ARCHITECTS LLP,"16,687.45",CAPITAL PS (REGEN),CONSTRUCTION FEES - ARCHITECT,5902617856,1000088675
29.01.2024,Children and Adults,NEWLANDS ACADEMY,"16,656.32",AC & FREE - SPECIAL,STATEMENTED FEES,2103815789,1000072567
15.01.2024,Children and Adults,WELLSPRING CARE HOMES LIMITED,"16,632.00",LD LTS 18-64 AAD,SUPPORTED LIVING,2103808965,1000088216
12.01.2024,Housing,MAIER LANG LIMITED,"16,599.86",PSL PLACEMENTS,EXTERNAL AGENCIES AND BODIES,5902616265,1000084930
29.01.2024,Children and Adults,ORCHARD HILL COLLEGE,"16,591.22",SPECIALIST POST-16,STATEMENTED FEES,2103815874,1000070978
15.01.2024,Children and Adults,DOLPHIN HOMES LTD,"16,580.54",PHY LTS 18-64,OTHER PAYMENTS FOR CLIENTS,2103809489,1000079959
29.01.2024,Children and Adults,ORCHARD HILL COLLEGE,"16,576.09",SPECIALIST POST-16,STATEMENTED FEES,2103815858,1000070978
19.01.2024,Housing,DUCTCLEAN (UK) LTD,"16,563.71",DUCTCLEAN,I-WORLD CONTRACTORS HOLDING ACCOUNT,2103812029,3000001635
29.01.2024,Governance and Assurance,IN DIVERSE COMPANY LTD,"16,552.68",HR PAYROLL COSTS,PROFESSIONAL FEES,5902618811,1000089438
19.01.2024,Environment Neighbourhoods and Growth,GLENDALE COUNTRYSIDE LTD,"16,525.39",TREES TERM CONTRACT,TREE MAINTENANCE,5902618406,1000070980
29.01.2024,Environment Neighbourhoods and Growth,ZENZIE TINKER TEXTILE CONSERVATION LTD,"16,484.00",HERITAGE,PROFESSIONAL FEES,5902619623,1000083365
19.01.2024,Environment Neighbourhoods and Growth,TAAKSVALE HOUSING LTD,"16,472.50",NO RECOURSE TO PUBLIC FUNDS,ACCOMMODATION CHARGES,5902618281,1000073665
16.01.2024,Children and Adults,BASCULE LTD,"16,452.15",NURSERY ED GRANT 3 AND 4 YR OLDS,GRANTS,2103809877,1000037268
08.01.2024,Children and Adults,ZENOCH COMMUNITY HUB,"16,416.00",HOLIDAY ACTIVITIES & FOOD,EXTERNAL AGENCIES AND BODIES,5902616026,1000089476
29.01.2024,Children and Adults,ORCHARD HILL COLLEGE,"16,282.66",SPECIALIST POST-16,STATEMENTED FEES,2103815864,1000070978
25.01.2024,Housing,CHARLES HILL & CO SOLICITORS,"16,261.85",RESIDENT SERVICES BUSINESS SUPPORT,LEGAL FEES & COURT COSTS,5902619155,1000083841
10.01.2024,Housing,TEATREE PROPERTY LIMITED,"16,243.00",NIGHTLY TA (NSC),EXTERNAL AGENCIES AND BODIES,5902616400,1000089741
09.01.2024,Environment Neighbourhoods and Growth,LONDON COUNCILS,"16,200.00",ALG ACCOUNT,PROFESSIONAL FEES,5902616227,11237079
21.01.2024,Housing,AJM ADAPTIONS LTD,"16,183.65",CAPITAL PS (HOUSING GF),CAPITAL GRANTS,5902617522,1000080297
25.01.2024,Environment Neighbourhoods and Growth,FAITHFUL & GOULD,"16,130.00",CAPITAL PS (REGEN),CONSTRUCTION FEES  - EXTERNAL,5902619116,1000061390
15.01.2024,Children and Adults,BETHAM SUPPORT LIVING LTD,"16,120.00",LD LTS 18-64,SUPPORTED LIVING,2103809415,1000087649
29.01.2024,Children and Adults,PHOENIXPLACE,"16,055.00",NMSS/ INDEP SPECIAL,STATEMENTED FEES,2103815882,1000075565
31.01.2024,Children and Adults,LONDON SOUTH EAST ACADEMIES TRUST,"16,041.67",AC & FREE - MSTREAM,STATEMENTED FEES,2103817872,1000088592
19.01.2024,DSO,SANDERSONS BUILDING SERVICES LTD,"15,998.39",SR - VOIDS TEAM,OTHER CONTRACTORS,2103812916,3000002065
15.01.2024,Children and Adults,WILLCOB CARE LTD,"15,880.00",SPECIALIST CARE,PLACEMENTS - RESPITE,2103809789,1000090119
22.01.2024,Environment Neighbourhoods and Growth,KENT COUNTY COUNCIL - LASER,"15,859.01",DULWICH LEISURE CENTRE,ELECTRICITY,5902618671,1000012926
03.01.2024,Children and Adults,CHANGE GROW LIVE SERVICES LTD,"15,750.00",SSMTRG,OTHER CONTRACTORS,5902615503,1000082721
03.01.2024,Children and Adults,THE DRIVE CARE HOMES LTD,"15,741.40",DISABILITIES LAC,RESIDENTIAL CARE,2103804609,1000003889
18.01.2024,Environment Neighbourhoods and Growth,KENT COUNTY COUNCIL - LASER,"15,661.55",DULWICH LEISURE CENTRE,ELECTRICITY,5902618254,1000012926
14.01.2024,Environment Neighbourhoods and Growth,KENT COUNTY COUNCIL - LASER,"15,630.61",CAMBERWELL LEISURE CENTRE,ELECTRICITY,5902616914,1000012926
19.01.2024,Environment Neighbourhoods and Growth,KENT COUNTY COUNCIL - LASER,"15,630.61",CAMBERWELL LEISURE CENTRE,ELECTRICITY,5902618282,1000012926
30.01.2024,Children and Adults,RELA SUPPORT SERVICES LTD,"15,588.57",SEMI-IND CARELEAVERS,EXTERNAL AGENCIES AND BODIES,2103816526,1000073128
12.01.2024,Children and Adults,REDACTED PERSONAL DATA,"15,525.44",LD LTS 18-64,PAYMENTS TO CLIENTS (DIRECT PAYMENTS),2103807803,1000046071
29.01.2024,Children and Adults,ORCHARD HILL COLLEGE,"15,464.17",SPECIALIST POST-16,STATEMENTED FEES,2103815869,1000070978
30.01.2024,Children and Adults,ACORN CARE & EDUCATION LTD,"15,413.49",CHILDREN�S RESID,RESIDENTIAL CARE,2103816610,1000085841
25.01.2024,Housing,CALFORD SEADEN LLP,"15,409.43",CAPITAL PS (HRA),CONSTRUCTION FEES  - EXTERNAL,5902619137,1061592
18.01.2024,Housing,BROWNING EST MGMT ASSN,"15,291.82",BROWNING EMB,M&M ALLOWANCE CO-OPS,5902616889,1000059362
11.01.2024,Housing,STYLES HOUSE TMO,"15,281.75",STYLES HOUSE TMO,M&M ALLOWANCE CO-OPS,5902616925,1000072012
10.01.2024,Children and Adults,ST JAMES CE PRIMARY SCHOOL,"15,241.00",NURSERY ED GRANT 3 AND 4 YR OLDS,EARLY YEARS - 3 AND 4 YEAR OLDS,5902616644,5001000070
10.01.2024,Children and Adults,BRUNSWICK PARK PRIMARY SCHOOL,"15,167.00",LBS RB / SEN UNIT,HIGH NEEDS - TOP UP FUNDING,5902616506,5001000013
10.01.2024,Children and Adults,SNOWSFIELDS PRIMARY SCHOOL,"15,167.00",LBS RB / SEN UNIT,HIGH NEEDS - TOP UP FUNDING,5902616624,5001000061
26.01.2024,Housing,FAITHDEAN PLC,"15,143.52",CAPITAL PS (HRA),CONSTRUCTION MAIN CONTRACT -CERTIFICATED,2103815377,3000002188
29.01.2024,Children and Adults,NEWLANDS ACADEMY,"15,120.27",AC & FREE - SPECIAL,STATEMENTED FEES,2103815792,1000072567
29.01.2024,Children and Adults,NEWLANDS ACADEMY,"15,120.27",AC & FREE - SPECIAL,STATEMENTED FEES,2103815793,1000072567
29.01.2024,Children and Adults,NEWLANDS ACADEMY,"15,120.27",AC & FREE - SPECIAL,STATEMENTED FEES,2103815794,1000072567
29.01.2024,Children and Adults,NEWLANDS ACADEMY,"15,120.27",AC & FREE - SPECIAL,STATEMENTED FEES,2103815795,1000072567
29.01.2024,Children and Adults,NEWLANDS ACADEMY,"15,120.27",AC & FREE - SPECIAL,STATEMENTED FEES,2103815796,1000072567
29.01.2024,Children and Adults,NEWLANDS ACADEMY,"15,120.27",AC & FREE - SPECIAL,STATEMENTED FEES,2103815797,1000072567
29.01.2024,Children and Adults,NEWLANDS ACADEMY,"15,120.27",AC & FREE - SPECIAL,STATEMENTED FEES,2103815798,1000072567
29.01.2024,Children and Adults,NEWLANDS ACADEMY,"15,120.27",AC & FREE - SPECIAL,STATEMENTED FEES,2103815799,1000072567
29.01.2024,Children and Adults,NEWLANDS ACADEMY,"15,120.27",AC & FREE - SPECIAL,STATEMENTED FEES,2103815800,1000072567
29.01.2024,Children and Adults,NEWLANDS ACADEMY,"15,120.27",AC & FREE - SPECIAL,STATEMENTED FEES,2103815801,1000072567
29.01.2024,Children and Adults,NEWLANDS ACADEMY,"15,120.27",AC & FREE - SPECIAL,STATEMENTED FEES,2103815802,1000072567
29.01.2024,Children and Adults,NEWLANDS ACADEMY,"15,120.27",AC & FREE - SPECIAL,STATEMENTED FEES,2103815804,1000072567
29.01.2024,Children and Adults,NEWLANDS ACADEMY,"15,120.27",AC & FREE - SPECIAL,STATEMENTED FEES,2103815805,1000072567
29.01.2024,Children and Adults,NEWLANDS ACADEMY,"15,120.27",AC & FREE - SPECIAL,STATEMENTED FEES,2103815806,1000072567
29.01.2024,Children and Adults,NEWLANDS ACADEMY,"15,120.27",AC & FREE - SPECIAL,STATEMENTED FEES,2103815807,1000072567
29.01.2024,Children and Adults,NEWLANDS ACADEMY,"15,120.27",AC & FREE - SPECIAL,STATEMENTED FEES,2103815808,1000072567
29.01.2024,Children and Adults,NEWLANDS ACADEMY,"15,120.27",AC & FREE - SPECIAL,STATEMENTED FEES,2103815809,1000072567
29.01.2024,Children and Adults,NEWLANDS ACADEMY,"15,120.27",AC & FREE - SPECIAL,STATEMENTED FEES,2103815810,1000072567
29.01.2024,Children and Adults,NEWLANDS ACADEMY,"15,120.27",AC & FREE - SPECIAL,STATEMENTED FEES,2103815811,1000072567
29.01.2024,Children and Adults,NEWLANDS ACADEMY,"15,120.27",AC & FREE - SPECIAL,STATEMENTED FEES,2103815812,1000072567
29.01.2024,Children and Adults,NEWLANDS ACADEMY,"15,120.27",AC & FREE - SPECIAL,STATEMENTED FEES,2103815813,1000072567
29.01.2024,Children and Adults,NEWLANDS ACADEMY,"15,120.27",AC & FREE - SPECIAL,STATEMENTED FEES,2103815814,1000072567
29.01.2024,Children and Adults,NEWLANDS ACADEMY,"15,120.27",AC & FREE - SPECIAL,STATEMENTED FEES,2103815815,1000072567
29.01.2024,Children and Adults,NEWLANDS ACADEMY,"15,120.27",AC & FREE - SPECIAL,STATEMENTED FEES,2103815816,1000072567
29.01.2024,Children and Adults,NEWLANDS ACADEMY,"15,120.27",AC & FREE - SPECIAL,STATEMENTED FEES,2103815817,1000072567
29.01.2024,Children and Adults,NEWLANDS ACADEMY,"15,120.27",AC & FREE - SPECIAL,STATEMENTED FEES,2103815818,1000072567
29.01.2024,Children and Adults,NEWLANDS ACADEMY,"15,120.27",AC & FREE - SPECIAL,STATEMENTED FEES,2103815819,1000072567
29.01.2024,Children and Adults,NEWLANDS ACADEMY,"15,120.27",AC & FREE - SPECIAL,STATEMENTED FEES,2103815821,1000072567
29.01.2024,Children and Adults,NEWLANDS ACADEMY,"15,109.66",AC & FREE - SPECIAL,STATEMENTED FEES,2103815781,1000072567
29.01.2024,Children and Adults,NEWLANDS ACADEMY,"15,109.66",AC & FREE - SPECIAL,STATEMENTED FEES,2103815782,1000072567
29.01.2024,Children and Adults,NEWLANDS ACADEMY,"15,109.66",AC & FREE - SPECIAL,STATEMENTED FEES,2103815783,1000072567
29.01.2024,Children and Adults,NEWLANDS ACADEMY,"15,109.66",AC & FREE - SPECIAL,STATEMENTED FEES,2103815784,1000072567
29.01.2024,Children and Adults,NEWLANDS ACADEMY,"15,109.66",AC & FREE - SPECIAL,STATEMENTED FEES,2103815785,1000072567
29.01.2024,Children and Adults,NEWLANDS ACADEMY,"15,109.66",AC & FREE - SPECIAL,STATEMENTED FEES,2103815786,1000072567
29.01.2024,Children and Adults,NEWLANDS ACADEMY,"15,109.66",AC & FREE - SPECIAL,STATEMENTED FEES,2103815787,1000072567
29.01.2024,Children and Adults,NEWLANDS ACADEMY,"15,109.66",AC & FREE - SPECIAL,STATEMENTED FEES,2103815788,1000072567
12.01.2024,Housing,REDACTED PERSONAL DATA,"15,078.00",CAPITAL PS (HOUSING GF),CAPITAL GRANTS,5902617240,1000090607
15.01.2024,Housing,SOUTHWARK CITIZENS ADVICE,"15,000.00",RESIDENTS PARTICIPATION FUND,GRANTS,5902617905,1874379
12.01.2024,Children and Adults,REDACTED PERSONAL DATA,"14,990.08",LD LTS 18-64,PAYMENTS TO CLIENTS (DIRECT PAYMENTS),2103807601,1000070120
24.01.2024,Strategy and Communities,DECISION TIME LTD,"14,964.37",VCS COMM & SUPP TEAM,SOFTWARE,5902619000,1000085605
15.01.2024,Finance,WORKMAN LLP,"14,898.59","COURAGE YARD, SHAD THAMES",SERVICE CHARGES,2103808395,1000063692
22.01.2024,Children and Adults,RIVERSTON SCHOOL,"14,887.83",INDEP MAINSTREAM,STATEMENTED FEES,2103812986,11213696
03.01.2024,Children and Adults,THE DRIVE CARE HOMES LTD,"14,872.87",DISABILITIES LAC,EXTERNAL AGENCIES AND BODIES,2103804608,1000003889
09.01.2024,Housing,CARLISLE SECURITY SERVICES LTD,"14,857.92",CAMBERWELL,SECURITY SERVICES,5902616286,11212342
03.01.2024,Strategy and Communities,SOMALI INTEGRATION & DEVELOPMENT ASSOCIATION,"14,840.00",VCS GRANTS,GRANTS,5902615434,11048946
03.01.2024,Children and Adults,SEVA CHILDCARE LTD,"14,731.00",DISABILITIES LAC,RESIDENTIAL CARE,2103804607,1000090283
08.01.2024,Corporate,SCOTTISH EQUITABLE PLC,"14,608.46",A. V. C. TO OTHER PENSION,PAYROLL CREDITORS - EXTERNAL AVCS (LOCAL GOVT),2103805206,1000026367
03.01.2024,Strategy and Communities,THE MANNA CENTRE,"14,575.00",VCS GRANTS,GRANTS,5902615447,1000048508
18.01.2024,Environment Neighbourhoods and Growth,KENT COUNTY COUNCIL - LASER,"14,538.66",CAMBERWELL LEISURE CENTRE,ELECTRICITY,5902618255,1000012926
08.01.2024,Strategy and Communities,NUMBER 8 EVENTS LTD,"14,532.00",CORPORATE & DEPARTMENTAL EXPENDITURE,PROFESSIONAL FEES,5902615980,1000086691
10.01.2024,Housing,FINEFAIR LTD,"14,521.25",PSL PLACEMENTS,EXTERNAL AGENCIES AND BODIES,5902616883,1000075570
15.01.2024,Children and Adults,NASH CARE HOMES LTD,"14,470.72",LD LTS 18-64,RESIDENTIAL CARE,2103809241,1000080224
12.01.2024,Children and Adults,FRESH IDEAS & SOLUTIONS SERVICES CIC,"14,459.69",SPECIALIST CARE,PAYMENTS TO CLIENTS (DIRECT PAYMENTS),2103807065,1000070832
19.01.2024,Corporate,OLIVER GOLDSMITH PRIMARY SCHOOL,"14,370.06",EDUCATION VAT INPUTS,VAT CONTROL ACCOUNT,2103812162,5001000051
19.01.2024,Corporate,KEYWORTH PRIMARY SCHOOL,"14,334.18",EDUCATION VAT INPUTS,VAT CONTROL ACCOUNT,2103812165,5001000041
24.01.2024,DSO,E & E BUILDING SERVICES LTD,"14,324.69",SR - VOIDS TEAM,OTHER CONTRACTORS,2103814866,3000001176
31.01.2024,Children and Adults,CENTER ACADEMY SCHOOL,"14,300.00",NMSS/ INDEP SPECIAL,STATEMENTED FEES,2103817868,11295355
31.01.2024,Children and Adults,CENTER ACADEMY SCHOOL,"14,300.00",NMSS/ INDEP SPECIAL,STATEMENTED FEES,2103817869,11295355
01.01.2024,Housing,PULSE ASSOCIATES LTD (T/A PULSE CONSULT),"14,225.00",CAPITAL PS (HRA),CONSTRUCTION FEES  - EXTERNAL,5902615158,1000087233
23.01.2024,Children and Adults,BARTS HEALTH NHS TRUST,"14,183.93",SEXUAL HEALTH - STI,MEDICAL / HEALTH & SAFETY SERVICES,5902618923,1000055762
31.01.2024,Housing,VEOLIA ES SOUTHWARK LTD,"14,102.32",CAPITAL PS (HRA),CONSTRUCTION SITE COSTS,5902620138,1000056979
24.01.2024,DSO,SER CONTRACTOR LTD,"14,085.18",SR COMMUNAL - DELIVERY TEAM,OTHER CONTRACTORS,2103814869,3000002234
29.01.2024,DSO,SANDERSONS BUILDING SERVICES LTD,"14,077.87",SR - VOIDS TEAM,OTHER CONTRACTORS,2103815648,3000002065
10.01.2024,Children and Adults,KEYWORTH PRIMARY SCHOOL,"14,026.00",NURSERY ED GRANT 3 AND 4 YR OLDS,EARLY YEARS - 3 AND 4 YEAR OLDS,5902616577,5001000041
22.01.2024,Children and Adults,RIVERSTON SCHOOL,"13,986.00",INDEP MAINSTREAM,STATEMENTED FEES,2103812983,11213696
29.01.2024,Housing,CARLISLE SECURITY SERVICES LTD,"13,976.20",CAMBERWELL,SECURITY SERVICES,5902619612,11212342
10.01.2024,Children and Adults,IVYDALE PRIMARY SCHOOL,"13,895.00",NURSERY ED GRANT 3 AND 4 YR OLDS,EARLY YEARS - 3 AND 4 YEAR OLDS,5902616568,5001000038
15.01.2024,Children and Adults,CYGNET CARE SERVICES LTD,"13,891.72",LD LTS 18-64,RESIDENTIAL CARE,2103809526,1000050432
09.01.2024,Finance,VENN GROUP LTD,"13,860.00",IT MANAGEMENT,AGENCY STAFF,5902616186,1000033315
10.01.2024,Children and Adults,ALFRED SALTER PRIMARY SCHOOL,"13,750.00",LBS MAINSTREAM,HIGH NEEDS - TOP UP FUNDING,5902616487,5001000005
16.01.2024,Children and Adults,FRONTIER SUPPORT SERVICES LTD,"13,684.00",LD LTS 18-64,SUPPORTED LIVING,2103809948,1000072241
04.01.2024,Housing,BRISAC GONZALEZ LTD,"13,680.00",CAPITAL PS (HRA),CONSTRUCTION FEES - ARCHITECT,5902615753,1000087687
24.01.2024,Housing,CALFORD SEADEN LLP,"13,671.00",CAPITAL PS (HRA),CONSTRUCTION FEES  - EXTERNAL,5902619039,1061592
26.01.2024,Housing,DENHAN INTERNATIONAL LIMITED,"13,657.60",NIGHTLY TA (NSC),EXTERNAL AGENCIES AND BODIES,5902619473,1000075567
21.01.2024,Housing,DACS LTD,"13,614.74",CAPITAL PS (HOUSING GF),CAPITAL GRANTS,5902617637,1000079747
15.01.2024,Children and Adults,ZERO THREE CARE LIMITED,"13,601.48",LD LTS 18-64,SUPPORTED LIVING,2103809564,1000085367
15.01.2024,Children and Adults,SPECTRA CARE LTD,"13,585.72",LD LTS 18-64,SUPPORTED LIVING,2103809119,1000086280
10.01.2024,Children and Adults,ROBERT BROWNING PRIMARY SCHOOL,"13,583.00",LBS MAINSTREAM,HIGH NEEDS - TOP UP FUNDING,5902616613,5001000057
15.01.2024,Children and Adults,YPR LIMITED,"13,520.00",LD LTS 18-64,SUPPORTED LIVING,2103808917,1000086517
15.01.2024,Children and Adults,SAFFRONLAND HOMES (MUNDANIA),"13,512.00",LD LTS 18-64,RESIDENTIAL CARE,2103808640,1000072153
08.01.2024,Environment Neighbourhoods and Growth,METIS CONSULTANTS LIMITED,"13,512.00",CAPITAL PS (LEISURE),CONSTRUCTION FEES - ARCHITECT,5902615338,1000086330
29.01.2024,Housing,CARLISLE SECURITY SERVICES LTD,"13,507.20",CAMBERWELL,SECURITY SERVICES,5902619613,11212342
18.01.2024,Environment Neighbourhoods and Growth,KENT COUNTY COUNCIL - LASER,"13,425.41",CAMBERWELL LEISURE CENTRE,GAS,5902618256,1000012926
19.01.2024,Corporate,SOUTHWARK INCLUSIVE LEARNING SERVICE,"13,416.43",EDUCATION VAT INPUTS,VAT CONTROL ACCOUNT,2103812196,5001000105
15.01.2024,Children and Adults,SAFFRONLAND HOMES (MUNDANIA),"13,371.43",LD LTS 18-64,RESIDENTIAL CARE,2103809142,1000072153
29.01.2024,Children and Adults,ORCHARD HILL COLLEGE,"13,342.18",SPECIALIST POST-16,STATEMENTED FEES,2103815848,1000070978
29.01.2024,Children and Adults,ORCHARD HILL COLLEGE,"13,298.10",SPECIALIST POST-16,STATEMENTED FEES,2103815867,1000070978
03.01.2024,Governance and Assurance,PENNA PLC,"13,283.00",LEARNING & DEVELOPMENT,PAYMENTS FOR PERSONNEL MANAGEMENT SERVS,5902615620,1000050664
10.01.2024,Children and Adults,MICHAEL FARADAY PRIMARY SCHOOL,"13,260.00",NURSERY ED GRANT 3 AND 4 YR OLDS,EARLY YEARS - 3 AND 4 YEAR OLDS,5902616588,5001000048
29.01.2024,DSO,J KASH LTD,"13,247.44",DAMP & MOULD TEAM,OTHER CONTRACTORS,2103815637,3000002219
30.01.2024,Environment Neighbourhoods and Growth,KENT COUNTY COUNCIL - LASER,"13,230.28",THE CASTLE CENTRE,ELECTRICITY,5902619716,1000012926
19.01.2024,Environment Neighbourhoods and Growth,GLENDALE COUNTRYSIDE LTD,"13,213.46",TREES TERM CONTRACT,TREE MAINTENANCE,5902618422,1000070980
29.01.2024,Children and Adults,ORCHARD HILL COLLEGE,"13,185.22",SPECIALIST POST-16,STATEMENTED FEES,2103815855,1000070978
22.01.2024,Suspense,UNISON,"13,178.85",SUSPENSE ACCOUNT (COMPANY CODE 1000),PAYROLL CREDITORS - UNION DEDUCTIONS,2103813276,11060053
05.01.2024,Housing,COOPER CLOSE CO-OPERATIVE LTD,"13,176.75",COOPERS CLOSE CO-OP,M&M ALLOWANCE CO-OPS,5902615906,1216346
10.01.2024,Children and Adults,ST JAMES CE PRIMARY SCHOOL,"13,167.00",LBS MAINSTREAM,HIGH NEEDS - TOP UP FUNDING,5902616647,5001000070
15.01.2024,Children and Adults,PECULIAR CARE HOMES LTD,"13,148.00",LD LTS 18-64,SUPPORTED LIVING,2103809087,1000076991
15.01.2024,Children and Adults,PECULIAR CARE HOMES LTD,"13,129.36",LD LTS 18-64,SUPPORTED LIVING,2103809114,1000076991
31.01.2024,Housing,BOND TURNER  SOLICITORS,"13,125.00",DISREPAIR,PAYMENTS FOR LEGAL SERVICES,2103817810,1000085362
19.01.2024,Corporate,BETHLEM & MAUDSLEY HOSPITAL SCHOOL,"13,117.41",EDUCATION VAT INPUTS,VAT CONTROL ACCOUNT,2103812191,5001000010
12.01.2024,Children and Adults,SET SQUARE SURVEYORS LIMITED,"13,090.00",BOWLEY CLOSE,BUILDING R&M,5902617283,1000090675
29.01.2024,Children and Adults,ORCHARD HILL COLLEGE,"13,048.99",SPECIALIST POST-16,STATEMENTED FEES,2103815863,1000070978
19.01.2024,Housing,DUCTCLEAN (UK) LTD,"13,025.94",DUCTCLEAN,I-WORLD CONTRACTORS HOLDING ACCOUNT,2103812028,3000001635
29.01.2024,Children and Adults,ORCHARD HILL COLLEGE,"13,002.86",SPECIALIST POST-16,STATEMENTED FEES,2103815873,1000070978
10.01.2024,Children and Adults,SOUTHWARK PARK PRIMARY SCHOOL,"13,000.00",LBS MAINSTREAM,HIGH NEEDS - TOP UP FUNDING,5902616629,5001000062
10.01.2024,Children and Adults,ST ANTHONYS RC SCHOOL,"12,994.00",NURSERY ED GRANT 3 AND 4 YR OLDS,EARLY YEARS - 3 AND 4 YEAR OLDS,5902616630,5001000064
29.01.2024,Children and Adults,ORCHARD HILL COLLEGE,"12,980.42",SPECIALIST POST-16,STATEMENTED FEES,2103815876,1000070978
10.01.2024,Children and Adults,PHOENIX PRIMARY SCHOOL,"12,978.00",NURSERY ED GRANT 3 AND 4 YR OLDS,EARLY YEARS - 3 AND 4 YEAR OLDS,5902616551,5001000032
29.01.2024,Children and Adults,ORCHARD HILL COLLEGE,"12,952.46",SPECIALIST POST-16,STATEMENTED FEES,2103815849,1000070978
29.01.2024,Children and Adults,ORCHARD HILL COLLEGE,"12,889.53",SPECIALIST POST-16,STATEMENTED FEES,2103815859,1000070978
12.01.2024,Housing,PROPERTY FACILITIES GROUP PLC,"12,874.19",DISREPAIR,BUILDING R&M,2103806903,3000001420
22.01.2024,Governance and Assurance,IRON MOUNTAIN (UK) PLC,"12,872.85",REPAIR AND MAINTENANCE SERVICES,INFORMATION MANAGEMENT,5902618597,1000078591
31.01.2024,Children and Adults,LONDON SOUTH EAST ACADEMIES TRUST,"12,833.33",AC & FREE - MSTREAM,STATEMENTED FEES,2103817873,1000088592
15.01.2024,Children and Adults,CASSRA LLP T/A CROHAM PLACE,"12,811.24",LD LTS 18-64,NURSING PLACEMENTS FEES,2103808967,1000082899
10.01.2024,Housing,PINNICALE BUILDING SERVICES LIMITED,"12,804.00",CAPITAL PS (HOUSING GF),CAPITAL GRANTS,5902616775,1000082308
16.01.2024,Governance and Assurance,IMPROVEMENT AND DEVELOPMENT AGENCY,"12,800.00",HR PAYROLL COSTS,PROFESSIONAL FEES,5902617539,1000017731
29.01.2024,Children and Adults,ORCHARD HILL COLLEGE,"12,798.86",SPECIALIST POST-16,STATEMENTED FEES,2103815861,1000070978
29.01.2024,DSO,J KASH LTD,"12,798.72",TASK TEAM & HAT,OTHER CONTRACTORS,2103815637,3000002219
10.01.2024,Children and Adults,ALFRED SALTER PRIMARY SCHOOL,"12,785.00",NURSERY ED GRANT 3 AND 4 YR OLDS,EARLY YEARS - 3 AND 4 YEAR OLDS,5902616484,5001000005
29.01.2024,Housing,1ST ACE SECURITY LTD,"12,765.60",LAKANAL (TENANCY),SECURITY SERVICES,5902619544,1000006992
10.01.2024,Children and Adults,BESSEMER GRANGE PRIMARY SCHOOL,"12,750.00",LBS MAINSTREAM,HIGH NEEDS - TOP UP FUNDING,5902616497,5001000009
24.01.2024,Environment Neighbourhoods and Growth,CONSTELLIA PUBLIC LIMITED,"12,748.66",THE CASTLE CENTRE,PREMISES CLEANING,5902618691,1000088137
15.01.2024,Environment Neighbourhoods and Growth,HAVELOCK COURT (BUPA CARE),"12,742.64",NO RECOURSE TO PUBLIC FUNDS,NURSING PLACEMENTS FEES,2103809517,1000028902
29.01.2024,Children and Adults,ORCHARD HILL COLLEGE,"12,730.86",SPECIALIST POST-16,STATEMENTED FEES,2103815877,1000070978
18.01.2024,Housing,HARROW GREEN LTD,"12,716.78",RESIDENT SERVICES BUSINESS SUPPORT,REMOVAL EXPENSES,5902617176,1000076673
09.01.2024,Children and Adults,HIGHSHORE SCHOOL,"12,696.00",COVID-19 SCHOOLS GRANTS,SCHOOLS CAPITATION,2103805391,5001000046
24.01.2024,DSO,BUDMAX CONSTRUCTION LTD,"12,695.02",SR COMMUNAL - DELIVERY TEAM,OTHER CONTRACTORS,2103814867,3000001936
10.01.2024,Children and Adults,JOHN RUSKIN PRIMARY SCHOOL,"12,694.00",LBS RB / SEN UNIT,HIGH NEEDS - BASE FUNDING,5902616573,5001000040
16.01.2024,Finance,VIRGIN MEDIA,"12,680.34",IT MANAGEMENT,COMMS & COMPUTING CONTRACT CHARGES,5902617611,1000026457
31.01.2024,Environment Neighbourhoods and Growth,REDACTED PERSONAL DATA,"12,666.80",NO RECOURSE TO PUBLIC FUNDS,ACCOMMODATION CHARGES,5902620212,1000061134
26.01.2024,Environment Neighbourhoods and Growth,PROJECT CENTRE LTD,"12,659.16",TRANSPORT PROJECTS,OTHER CONTRACTORS,5902619433,1000072621
03.01.2024,Children and Adults,PERMANENT FUTURES LTD,"12,650.00",CAPITAL PS (SOC SERV),ICT ACQUISITION,5902615520,1000089361
12.01.2024,Children and Adults,PEOPLE PLUS GROUP LTD (INDEPENDENT LIVING SERVICES),"12,619.20",LD LTS 18-64,PAYMENTS TO CLIENTS (DIRECT PAYMENTS),2103807751,1000061886
31.01.2024,Environment Neighbourhoods and Growth,CLASS AFFINITY PROJECTS LIMITED,"12,609.96",LEISURE CENTRAL COST,EQUIPMENT PURCHASE & REPAIR,5902620176,1000089758
22.01.2024,Children and Adults,AMELIA'S HOUSE LIMITED,"12,600.00",DISABILITIES LAC,EXTERNAL AGENCIES AND BODIES,2103813260,1000083007
05.01.2024,Finance,HIAM ALI LTD,"12,586.40",CORONER'S,PROFESSIONAL FEES,5902615568,1000084044
19.01.2024,Corporate,CAMELOT PRIMARY SCHOOL,"12,585.02",EDUCATION VAT INPUTS,VAT CONTROL ACCOUNT,2103812160,5001000014
10.01.2024,Children and Adults,SOUTHWARK PARK PRIMARY SCHOOL,"12,582.00",NURSERY ED GRANT 3 AND 4 YR OLDS,EARLY YEARS - 3 AND 4 YEAR OLDS,5902616626,5001000062
29.01.2024,Children and Adults,ORCHARD HILL COLLEGE,"12,572.20",SPECIALIST POST-16,STATEMENTED FEES,2103815860,1000070978
09.01.2024,Children and Adults,EVELINA HOSPITAL SCHOOL,"12,558.00",COVID-19 SCHOOLS GRANTS,SCHOOLS CAPITATION,2103805397,5001000031
17.01.2024,Housing,VIGILANT SECURITY SERVICES UK,"12,528.00",DAVID BARKER HOSTEL,SECURITY SERVICES,5902617807,1000090073
29.01.2024,Children and Adults,ORCHARD HILL COLLEGE,"12,526.86",SPECIALIST POST-16,STATEMENTED FEES,2103815854,1000070978
10.01.2024,Housing,BOND TURNER  SOLICITORS,"12,500.00",DISREPAIR,PAYMENTS FOR LEGAL SERVICES,2103806785,1000085362
11.01.2024,Environment Neighbourhoods and Growth,GRADCORE LIMITED,"12,500.00",YOUTH FUND EMPLOYMENT,EXTERNAL AGENCIES AND BODIES,5902617139,1000090627
27.01.2024,Environment Neighbourhoods and Growth,ALEXANDRA ROSE CHARITY,"12,500.00",BUSINESS SUPPORT,GRANTS,5902618330,1000089616
10.01.2024,Children and Adults,BARTS HEALTH NHS TRUST,"12,488.38",SEXUAL HEALTH - STI,MEDICAL / HEALTH & SAFETY SERVICES,5902616765,1000055762
29.01.2024,Children and Adults,ORCHARD HILL COLLEGE,"12,481.30",SPECIALIST POST-16,STATEMENTED FEES,2103815871,1000070978
15.01.2024,Children and Adults,FERRY CARE LTD,"12,472.96",LD LTS 18-64,RESIDENTIAL CARE,2103809518,1000041775
31.01.2024,DSO,ARMINA LTD,"12,426.76",ROTHERHITHE & BERMONDSEY DD,OTHER CONTRACTORS,2103817866,3000002121
29.01.2024,Children and Adults,ORCHARD HILL COLLEGE,"12,413.52",SPECIALIST POST-16,STATEMENTED FEES,2103815857,1000070978
08.01.2024,Environment Neighbourhoods and Growth,METIS CONSULTANTS LIMITED,"12,344.58",SECTION 278 & 38,OTHER CONTRACTORS,5902615314,1000086330
22.01.2024,Children and Adults,RIVERSTON SCHOOL,"12,337.00",INDEP MAINSTREAM,STATEMENTED FEES,2103812982,11213696
10.01.2024,Environment Neighbourhoods and Growth,GOOSE GREEN PRIMARY AND NURSERY SCHOOL,"12,330.00",CAPITAL PS (LEISURE),CAPITAL GRANTS,5902616438,1000070613
22.01.2024,Children and Adults,RIVERSTON SCHOOL,"12,322.20",INDEP MAINSTREAM,STATEMENTED FEES,2103812981,11213696
24.01.2024,Housing,ANISTEN HOMES,"12,306.01",PSL PLACEMENTS,EXTERNAL AGENCIES AND BODIES,5902618995,1000084438
29.01.2024,Children and Adults,ORCHARD HILL COLLEGE,"12,300.20",SPECIALIST POST-16,STATEMENTED FEES,2103815856,1000070978
05.01.2024,Governance and Assurance,INNER CIRCLE CONSULTING,"12,272.16",HR PAYROLL COSTS,PROFESSIONAL FEES,5902615916,1000080627
15.01.2024,Children and Adults,AGINCARE (SOUTHWARK) LIMITED,"12,257.14",PHY LTS 18-64,NURSING PLACEMENTS FEES,2103809195,1000089635
11.01.2024,Environment Neighbourhoods and Growth,GAIST SOLUTIONS LTD,"12,224.64",CAPITAL PS (LEISURE),CONSTR'N SUB CONTRACT - NON CERTIFICATED,5902616950,1000083443
29.01.2024,Environment Neighbourhoods and Growth,GAIST SOLUTIONS LTD,"12,224.64",CAPITAL PS (LEISURE),CONSTR'N SUB CONTRACT - NON CERTIFICATED,5902618916,1000083443
15.01.2024,Children and Adults,AGINCARE (SOUTHWARK) LIMITED,"12,214.29",PHY LTS 65+,RESIDENTIAL CARE,2103809700,1000089635
10.01.2024,Children and Adults,BEDE HOUSE ASSOCIATION,"12,210.00",SHORT BREAKS INNV FUND,EXTERNAL AGENCIES AND BODIES,5902616768,1553877
11.01.2024,Suspense,LONDON PENSIONS FUND AUTHORITY,"12,170.26",SUSPENSE ACCOUNT (COMPANY CODE 1000),PAYROLL CREDITORS - OTHER PENSION FUNDS,2103806899,1000062252
19.01.2024,Corporate,GRANGE PRIMARY SCHOOL,"12,170.07",EDUCATION VAT INPUTS,VAT CONTROL ACCOUNT,2103812190,5001000029
15.01.2024,Children and Adults,REESON CARE HOMES LTD,"12,141.04",LD LTS 18-64,SUPPORTED LIVING,2103809801,1000084007
29.01.2024,Children and Adults,ORCHARD HILL COLLEGE,"12,132.63",SPECIALIST POST-16,STATEMENTED FEES,2103815862,1000070978
22.01.2024,Children and Adults,RIVERSTON SCHOOL,"12,125.00",INDEP MAINSTREAM,STATEMENTED FEES,2103812985,11213696
23.01.2024,Suspense,LONDON TOOLS LIMITED,"12,125.00",SUSPENSE ACCOUNT (COMPANY CODE 1000),CREDITORS -GR/IR CLEARING ACCOUNT,5902618788,1000003017
17.01.2024,Housing,VIGILANT SECURITY SERVICES UK,"12,104.00",MANOR PLACE HOSTEL,SECURITY SERVICES,5902617869,1000090073
29.01.2024,Children and Adults,ORCHARD HILL COLLEGE,"12,096.19",SPECIALIST POST-16,STATEMENTED FEES,2103815850,1000070978
29.01.2024,Children and Adults,ORCHARD HILL COLLEGE,"12,096.19",SPECIALIST POST-16,STATEMENTED FEES,2103815878,1000070978
31.01.2024,Housing,ASHFORDS LLP,"12,083.33",DISREPAIR,PAYMENTS FOR LEGAL SERVICES,2103817851,1000055865
03.01.2024,Children and Adults,PERMANENT FUTURES LTD,"12,075.00",CAPITAL PS (SOC SERV),ICT ACQUISITION,5902615514,1000089361
27.01.2024,Environment Neighbourhoods and Growth,KENT COUNTY COUNCIL - LASER,"12,052.44",DULWICH LEISURE CENTRE,GAS,5902618449,1000012926
12.01.2024,Children and Adults,PENDERELS TRUST LTD,"12,016.32",PHB - SEL ICB,RECOVERABLE COSTS INCL. HEALTH,2103807645,1000075856
12.01.2024,Children and Adults,REDACTED PERSONAL DATA,"12,010.80",CHILDREN PHB - SEL ICB,PAYMENTS TO CLIENTS (DIRECT PAYMENTS),2103807203,1000076363
03.01.2024,Strategy and Communities,SWK DAY CTR FOR ASYLUM SEEKERS,"12,010.06",VCS GRANTS,GRANTS,5902615444,1000040491
10.01.2024,Children and Adults,SOUTHWARK PARK PRIMARY SCHOOL,"12,000.00",EHCP INCLUSION FUND,HIGH NEEDS - TOP UP FUNDING,2103806762,5001000062
10.01.2024,Children and Adults,ST GEORGES CE SCHOOL,"12,000.00",EHCP INCLUSION FUND,HIGH NEEDS - TOP UP FUNDING,2103806767,5001000069
03.01.2024,Children and Adults,LATIN AMERICAN WOMEN'S RIGHTS SERVICES,"12,000.00",HEALTHY WEIGHT,EXTERNAL AGENCIES AND BODIES,5902615395,1000068356
24.01.2024,Environment Neighbourhoods and Growth,WALWORTH GARDEN LTD,"12,000.00",CAPITAL PS (REGEN),CAPITAL GRANTS,5902618935,1000042204
22.01.2024,Children and Adults,RIVERSTON SCHOOL,"11,982.00",INDEP MAINSTREAM,STATEMENTED FEES,2103812984,11213696
10.01.2024,Children and Adults,RYE OAK PRIMARY SCHOOL,"11,978.00",NURSERY ED GRANT 3 AND 4 YR OLDS,EARLY YEARS - 3 AND 4 YEAR OLDS,5902616614,5001000059
10.01.2024,Children and Adults,CAMELOT PRIMARY SCHOOL,"11,964.00",NURSERY ED GRANT 3 AND 4 YR OLDS,EARLY YEARS - 3 AND 4 YEAR OLDS,5902616508,5001000014
29.01.2024,Children and Adults,ORCHARD HILL COLLEGE,"11,938.99",SPECIALIST POST-16,STATEMENTED FEES,2103815865,1000070978
31.01.2024,Finance,CAPITA BUSINESS SERVICES LTD,"11,938.06",CAPITA,OTHER CONTRACTORS,5902619869,1000006291
24.01.2024,Housing,ANISTEN HOMES,"11,909.04",PSL PLACEMENTS,EXTERNAL AGENCIES AND BODIES,5902618999,1000084438
15.01.2024,Housing,LPS CONSULTING (LONDON) LIMITED,"11,900.00",DIRECTOR OF ASSET MANAGEMENT,PROFESSIONAL FEES,5902617472,1000084208
29.01.2024,Children and Adults,ORCHARD HILL COLLEGE,"11,892.42",SPECIALIST POST-16,STATEMENTED FEES,2103815866,1000070978
12.01.2024,Children and Adults,COMMITTED CARE HOUSING,"11,820.00",SEMI-IND LAC 16-17,EXTERNAL AGENCIES AND BODIES,2103806944,1000086257
15.01.2024,Housing,ARCHITECTURAL DECORATORS LTD,"11,811.10",CAPITAL PS (HRA),CONSTRUCTION MAIN CONTRACT -CERTIFICATED,2103809804,3000001065
15.01.2024,Children and Adults,OCEAN COMMUNITY SERVICES LTD,"11,772.88",LD LTS 18-64,RESIDENTIAL CARE,2103809484,1000050124
15.01.2024,Children and Adults,ALWAYS INCLUSIVE LTD,"11,760.00",LD LTS 18-64,SUPPORTED LIVING,2103809711,1000088268
19.01.2024,Housing,IGLOO REGENERATION LIMITED,"11,755.13",CAPITAL PS (HRA),CONSTRUCTION FEES,5902618313,1000083117
25.01.2024,Governance and Assurance,CASTLE WATER LTD,"11,746.68",160 TOOLEY ST.,WATER,5902619086,1000078867
29.01.2024,Children and Adults,DRUMBEAT DOWNHAM SCHOOL,"11,725.42",OTHER LA SPECIAL,STATEMENTED FEES,2103815831,1000072258
29.01.2024,Children and Adults,ORCHARD HILL COLLEGE,"11,712.10",SPECIALIST POST-16,STATEMENTED FEES,2103815872,1000070978
15.01.2024,Children and Adults,WELLSPRING CARE HOMES LIMITED,"11,702.08",LD LTS 18-64,SUPPORTED LIVING,2103809122,1000088216
10.01.2024,Environment Neighbourhoods and Growth,TYCO INTEGRATED FIRE & SECURITY,"11,692.66",TOWN CENTRE CCTV,EQUIPMENT PURCHASE & REPAIR,5902616789,1000077948
12.01.2024,Children and Adults,PEOPLE PLUS GROUP LTD (INDEPENDENT LIVING SERVICES),"11,663.20",LD LTS 18-64,PAYMENTS TO CLIENTS (DIRECT PAYMENTS),2103807461,1000061886
15.01.2024,Children and Adults,CARLTON NURSING HOMES LTD,"11,647.36",LD LTS 18-64,RESIDENTIAL CARE,2103809047,1000070431
10.01.2024,Environment Neighbourhoods and Growth,MARTIN ARNOLD LTD,"11,635.05",CAPITAL PS (REGEN),CONSTRUCTION FEES - EMPLOYERS AGENT,5902616471,1000076993
29.01.2024,Children and Adults,DRUMBEAT DOWNHAM SCHOOL,"11,625.00",OTHER LA SPECIAL,STATEMENTED FEES,2103815834,1000072258
29.01.2024,Children and Adults,DRUMBEAT DOWNHAM SCHOOL,"11,625.00",OTHER LA SPECIAL,STATEMENTED FEES,2103815835,1000072258
15.01.2024,Children and Adults,VOYAGE CARE (MOUNTEARL),"11,622.12",LD LTS 18-64,RESIDENTIAL CARE,2103809204,1000078173
15.01.2024,Children and Adults,THE CHILTERNS - OPTIMA CARE,"11,602.92",LD LTS 18-64,RESIDENTIAL CARE,2103809357,1000042209
15.01.2024,Children and Adults,GARLAND LODGE LTD,"11,589.76",LD LTS 18-64,SUPPORTED LIVING,2103809653,1000084016
19.01.2024,Environment Neighbourhoods and Growth,J & M OASIS LTD,"11,571.80",NO RECOURSE TO PUBLIC FUNDS,ACCOMMODATION CHARGES,5902618279,1000072169
16.01.2024,Finance,GUYS & ST THOMAS NHS FOUNDATION TRUST,"11,566.00",CORONER'S,OTHER CONTRACTORS,5902617760,1765536
29.01.2024,Children and Adults,ORCHARD HILL COLLEGE,"11,530.76",SPECIALIST POST-16,STATEMENTED FEES,2103815851,1000070978
18.01.2024,Housing,ADECCO UK LTD,"11,520.00",BUILDING SAFETY PROGRAMME,PROFESSIONAL FEES,5902618180,1000017669
15.01.2024,Children and Adults,ACHIEVE TOGETHER SERVICES LIMITED,"11,507.28",LD LTS 18-64,SUPPORTED LIVING,2103809384,1000089975
10.01.2024,Children and Adults,ST JOSEPHS CATHOLIC SCHOOL,"11,500.00",LBS MAINSTREAM,HIGH NEEDS - TOP UP FUNDING,5902616666,5001000076
31.01.2024,Environment Neighbourhoods and Growth,METIS CONSULTANTS LIMITED,"11,500.00",CAPITAL PS (LEISURE),CONSTRUCTION FEES - ARCHITECT,5902619875,1000086330
15.01.2024,Children and Adults,INSIGHT,"11,458.64",LD LTS 18-64,RESIDENTIAL CARE,2103809103,1825618
15.01.2024,Children and Adults,OPTIMA CARE (SHINE) LONDON LTD,"11,444.80",LD LTS 18-64,SUPPORTED LIVING,2103809613,1000079614
15.01.2024,Housing,CALFORD SEADEN LLP,"11,305.00",CAPITAL PS (HRA),CONSTRUCTION FEES  - EXTERNAL,5902617504,1061592
19.01.2024,Corporate,JOHN RUSKIN PRIMARY SCHOOL,"11,284.48",EDUCATION VAT INPUTS,VAT CONTROL ACCOUNT,2103812211,5001000040
17.01.2024,Environment Neighbourhoods and Growth,TRANSPORT FOR LONDON,"11,280.00",COMMERCIAL VEH CTRL A/C,CONGESTION CHARGE,5902617898,1000023986
15.01.2024,Children and Adults,OVAL CARE HOMES LTD,"11,268.00",LD LTS 18-64 AAD,SUPPORTED LIVING,2103809290,1000089506
10.01.2024,Children and Adults,BRUNSWICK PARK PRIMARY SCHOOL,"11,254.00",NURSERY ED GRANT 3 AND 4 YR OLDS,EARLY YEARS - 3 AND 4 YEAR OLDS,5902616502,5001000013
15.01.2024,Children and Adults,WELLSPRING CARE HOMES LIMITED,"11,252.00",LD LTS 18-64,SUPPORTED LIVING,2103809520,1000088216
10.01.2024,Children and Adults,CAMELOT PRIMARY SCHOOL,"11,250.00",LBS MAINSTREAM,HIGH NEEDS - TOP UP FUNDING,5902616511,5001000014
13.01.2024,Housing,BEACON PARTNERSHIP LLP,"11,220.00",AYLESBURY AGENCY COSTS,PROFESSIONAL FEES,5902616067,1000082300
12.01.2024,Children and Adults,PEOPLE PLUS GROUP LTD (INDEPENDENT LIVING SERVICES),"11,207.08",SPECIALIST CARE,PAYMENTS TO CLIENTS (DIRECT PAYMENTS),2103807273,1000061886
15.01.2024,Children and Adults,OPTIMA CARE (SHINE) LONDON LTD,"11,198.84",LD LTS 18-64,SUPPORTED LIVING,2103809366,1000079614
15.01.2024,Children and Adults,KARE HEALTHCARE LTD,"11,198.72",LD LTS 18-64,SUPPORTED LIVING,2103809124,1000089212
10.01.2024,Children and Adults,BARTS HEALTH NHS TRUST,"11,190.92",SEXUAL HEALTH - STI,MEDICAL / HEALTH & SAFETY SERVICES,5902616761,1000055762
15.01.2024,Children and Adults,BEECHCROFT SUPPORT LIMITED,"11,168.28",LD LTS 18-64,SUPPORTED LIVING,2103809372,1000085412
12.01.2024,Children and Adults,REDACTED PERSONAL DATA,"11,162.76",MEM LTS 18-64,PAYMENTS TO CLIENTS (DIRECT PAYMENTS),2103808213,1000087779
30.01.2024,Children and Adults,OXFORD BROOKES ENTERPRISES LTD,"11,158.43",PARTNERSHIP COMMISSIONING TEAM,EXTERNAL AGENCIES AND BODIES,5902619740,1000076102
15.01.2024,Environment Neighbourhoods and Growth,ASBESTOS SOLUTIONS LIMITED,"11,150.00",CAPITAL PS (REGEN),CONSTRUCTION MAIN CONTRACT,2103808362,3000002114
16.01.2024,Housing,CROWN HOUSING LTD,"11,144.50",NIGHTLY TA (NSC),EXTERNAL AGENCIES AND BODIES,5902617598,1000075070
15.01.2024,Children and Adults,SALUTEM SHARED SERVICES II LIMITED,"11,113.20",LD LTS 18-64,SUPPORTED LIVING,2103809439,1000088055
12.01.2024,Children and Adults,REDACTED PERSONAL DATA,"11,100.00",LD LTS 18-64,PAYMENTS TO CLIENTS (DIRECT PAYMENTS),2103808056,1000074131
18.01.2024,Housing,HARROW GREEN LTD,"11,092.64",RESIDENT SERVICES BUSINESS SUPPORT,REMOVAL EXPENSES,5902617233,1000076673
22.01.2024,Children and Adults,WANDSWORTH COUNCIL,"11,085.42",OTHER LA SPECIAL,STATEMENTED FEES,2103812979,1000020692
10.01.2024,Children and Adults,ST GEORGES CE SCHOOL,"11,083.00",LBS MAINSTREAM,HIGH NEEDS - TOP UP FUNDING,5902616643,5001000069
10.01.2024,Children and Adults,HEBER PRIMARY SCHOOL,"11,081.00",NURSERY ED GRANT 3 AND 4 YR OLDS,EARLY YEARS - 3 AND 4 YEAR OLDS,5902616559,5001000035
15.01.2024,Children and Adults,RICHARDSON DUSTON LIMITED,"11,070.52",PHY LTS 18-64,RESIDENTIAL CARE,2103808758,1000089236
22.01.2024,Children and Adults,WANDSWORTH COUNCIL,"11,051.15",OTHER LA SPECIAL,STATEMENTED FEES,2103812978,1000020692
29.01.2024,Children and Adults,ORCHARD HILL COLLEGE,"11,003.19",SPECIALIST POST-16,STATEMENTED FEES,2103815870,1000070978
10.01.2024,Children and Adults,JOHN RUSKIN PRIMARY SCHOOL,"11,000.00",LBS RB / SEN UNIT,HIGH NEEDS - TOP UP FUNDING,5902616575,5001000040
26.01.2024,Environment Neighbourhoods and Growth,PROJECT CENTRE LTD,"10,889.60",TRANSPORT PROJECTS,OTHER CONTRACTORS,5902619427,1000072621
09.01.2024,Environment Neighbourhoods and Growth,PROJECT CENTRE LTD,"10,888.50",TRANSPORT PROJECTS,OTHER CONTRACTORS,5902616391,1000072621
11.01.2024,Housing,CROWN HOUSING LTD,"10,850.00",TA PLACEMENTS,EXTERNAL AGENCIES AND BODIES,5902616359,1000075070
15.01.2024,Children and Adults,AGINCARE (SOUTHWARK) LIMITED,"10,842.86",PHY STS 18-64,HOMECARE - IC,2103809411,1000089635
11.01.2024,Housing,GEOFFREY OSBORNE LIMITED,"10,808.43",CAPITAL PS (HRA),CONSTRUCTION SITE COSTS,5902617081,1000048449
17.01.2024,Finance,TRANSPORT FOR LONDON GROUP PLANNING,"10,788.97",15/AP/1062 - MANOR PLACE DEPOT SE17,S106 A/C,5902617918,1000065130
15.01.2024,Children and Adults,BEECHCROFT SUPPORT LIMITED,"10,767.12",LD LTS 18-64,SUPPORTED LIVING,2103809371,1000085412
24.01.2024,Children and Adults,ACCESS MOBILITY TRANSPORT LTD,"10,743.50",SCH TRANS � TRAVEL,CAB FARES,5902619026,1000074637
30.01.2024,Environment Neighbourhoods and Growth,STREET TREE LTD,"10,741.50",CAPITAL PS (LEISURE),CONSTRUCTION FEES,5902619734,1000055901
15.01.2024,Children and Adults,FIRST CARE LODGE,"10,734.88",LD LTS 18-64,SUPPORTED LIVING,2103809379,1000084196
26.01.2024,Housing,J & M OASIS LTD,"10,732.20",NIGHTLY TA (NSC),EXTERNAL AGENCIES AND BODIES,5902619484,1000072169
22.01.2024,Children and Adults,RIVERSTON SCHOOL,"10,722.38",INDEP MAINSTREAM,STATEMENTED FEES,2103812989,11213696
09.01.2024,Children and Adults,COMMITTED CARE HOUSING,"10,718.36",SEMI-IND LAC 16-17,EXTERNAL AGENCIES AND BODIES,2103805727,1000086257
12.01.2024,Children and Adults,PEOPLE PLUS GROUP LTD (INDEPENDENT LIVING SERVICES),"10,707.20",LD LTS 18-64,PAYMENTS TO CLIENTS (DIRECT PAYMENTS),2103807417,1000061886
21.01.2024,Housing,SOUTH EAST BUILDING CONTRACTORS LTD,"10,693.60",CAPITAL PS (HOUSING GF),CAPITAL GRANTS,5902617780,1000049893
15.01.2024,Children and Adults,KARE HEALTHCARE LTD,"10,674.56",LD LTS 18-64,SUPPORTED LIVING,2103809543,1000089212
10.01.2024,Housing,STAR PEOPLE LTD,"10,663.60",PSL PLACEMENTS,EXTERNAL AGENCIES AND BODIES,5902616778,1000088790
09.01.2024,Children and Adults,CAMELOT PRIMARY SCHOOL,"10,657.50",COVID-19 SCHOOLS GRANTS,SCHOOLS CAPITATION,2103805376,5001000014
29.01.2024,Children and Adults,PHOENIXPLACE,"10,647.00",NMSS/ INDEP SPECIAL,STATEMENTED FEES,2103815881,1000075565
19.01.2024,Children and Adults,BLAK DIAMOND SOCIAL CARE LTD,"10,637.78",SEMI-IND LAC 16-17,EXTERNAL AGENCIES AND BODIES,2103812259,1000090161
04.01.2024,Housing,L H BRIDGE LTD,"10,628.00",CAPITAL PS (HOUSING GF),CAPITAL GRANTS,5902615716,1000056928
11.01.2024,Strategy and Communities,AGE UK LEWISHAM & SOUTHWARK,"10,625.00",VCS GRANTS,GRANTS,5902617117,1507154
15.01.2024,Children and Adults,LONDON CYRENIANS HOUSING LTD,"10,608.00",LD LTS 18-64,SUPPORTED LIVING,2103808909,1000078600
03.01.2024,Strategy and Communities,SURREY DOCKS FARM PROVIDENT SOCIETY,"10,600.00",VCS GRANTS,GRANTS,5902615440,1000000958
24.01.2024,Environment Neighbourhoods and Growth,CONSTELLIA PUBLIC LIMITED,"10,598.76",PECKHAM PULSE LEISURE CENTRE,PREMISES CLEANING,5902618684,1000088137
22.01.2024,Children and Adults,WANDSWORTH COUNCIL,"10,570.38",OTHER LA SPECIAL,STATEMENTED FEES,2103812977,1000020692
15.01.2024,Environment Neighbourhoods and Growth,ASBESTOS SOLUTIONS LIMITED,"10,550.00",CAPITAL PS (REGEN),CONSTRUCTION MAIN CONTRACT,2103808361,3000002114
17.01.2024,Housing,GOLDSTONE ESTATES LTD,"10,542.50",NIGHTLY TA (NSC),EXTERNAL AGENCIES AND BODIES,5902617988,1000076548
15.01.2024,Children and Adults,OPTIMA CARE (SHINE) LONDON LTD,"10,535.88",LD LTS 18-64,SUPPORTED LIVING,2103808681,1000079614
22.01.2024,Children and Adults,WANDSWORTH COUNCIL,"10,474.23",OTHER LA SPECIAL,STATEMENTED FEES,2103812980,1000020692
15.01.2024,Finance,BIDVEST NOONAN (UK) LTD,"10,473.94",TOWER WORKSHOPS,SECURITY SERVICES,5902617515,1000087102
15.01.2024,Children and Adults,ROYAL HOSPITAL FOR NEURODISABILITY,"10,463.12",PHY LTS 65+,NURSING PLACEMENTS FEES,2103808822,1010365
16.01.2024,Housing,DUCTCLEAN (UK) LTD,"10,460.89",DUCTCLEAN,I-WORLD CONTRACTORS HOLDING ACCOUNT,2103809868,3000001635
31.01.2024,Children and Adults,PHOENIX PRIMARY SCHOOL,"10,456.00",MATERNITY COVER,SCHOOLS CAPITATION,2103817796,5001000032
17.01.2024,Children and Adults,IVYDALE PRIMARY SCHOOL,"10,453.00",MATERNITY COVER,SCHOOLS CAPITATION,2103810475,5001000038
22.01.2024,Governance and Assurance,IRON MOUNTAIN (UK) PLC,"10,451.36",REPAIR AND MAINTENANCE SERVICES,INFORMATION MANAGEMENT,5902618598,1000078591
16.01.2024,Housing,M3 HOUSING LTD,"10,450.00",COMMERCIAL (QS),SUBSCRIPTIONS,5902617590,1000059696
15.01.2024,Children and Adults,BOUGHTON GREEN ROAD LIMITED,"10,427.64",PHY LTS 18-64,NURSING PLACEMENTS FEES,2103809343,1000089115
15.01.2024,Children and Adults,LOVING CARE LTD,"10,405.00",LD LTS 18-64,RESIDENTIAL CARE,2103809233,1000082873
15.01.2024,Children and Adults,INSIGHT,"10,368.64",LD LTS 18-64,RESIDENTIAL CARE,2103809045,1825618
24.01.2024,Housing,SECURENT LTD,"10,323.00",NIGHTLY TA (NSC),EXTERNAL AGENCIES AND BODIES,5902619014,1000079400
19.01.2024,Housing,HOMES 2 LET UK LTD,"10,300.00",TA PLACEMENTS,EXTERNAL AGENCIES AND BODIES,5902618192,1000079868
15.01.2024,Children and Adults,WELLSPRING CARE HOMES LIMITED,"10,296.00",LD LTS 18-64,SUPPORTED LIVING,2103809677,1000088216
30.01.2024,Children and Adults,INTEGRATED SERVICES PROGRAMME,"10,232.21",FRIENDS & FAMILY FOSTERING,EXTERNAL AGENCIES AND BODIES,2103816555,1642068
29.01.2024,Children and Adults,ORCHARD HILL COLLEGE,"10,228.11",SPECIALIST POST-16,STATEMENTED FEES,2103815846,1000070978
29.01.2024,Children and Adults,ORCHARD HILL COLLEGE,"10,228.11",SPECIALIST POST-16,STATEMENTED FEES,2103815879,1000070978
29.01.2024,Environment Neighbourhoods and Growth,KENT COUNTY COUNCIL - LASER,"10,219.64",SDM BUDGET,ELECTRICITY,5902619509,1000012926
19.01.2024,Environment Neighbourhoods and Growth,LEASEPLAN UK LTD,"10,195.37",COMMERCIAL VEH CTRL A/C,HIRED VEHICLES,5902618326,11014756
19.01.2024,Corporate,ENGLISH MARTYRS RC PRIMARY SCHOOL,"10,190.46",EDUCATION VAT INPUTS,VAT CONTROL ACCOUNT,2103812203,5001000030
15.01.2024,Children and Adults,ACHIEVE TOGETHER SERVICES LIMITED,"10,142.40",LD LTS 18-64,RESIDENTIAL CARE,2103808885,1000089975
10.01.2024,Children and Adults,ST JAMES THE GREAT RC SCHOOL,"10,137.00",NURSERY ED GRANT 3 AND 4 YR OLDS,EARLY YEARS - 3 AND 4 YEAR OLDS,5902616648,5001000071
12.01.2024,Housing,VIGILANT SECURITY SERVICES UK,"10,112.00",MANOR PLACE HOSTEL,SECURITY SERVICES,5902617278,1000090073
24.01.2024,Children and Adults,FRESH IDEAS & SOLUTIONS SERVICES CIC,"10,098.00",LD LTS 18-64,DAYCARE,2103814872,1000070832
18.01.2024,Housing,CITYGLEN LTD,"10,090.50",NIGHTLY TA (NSC),EXTERNAL AGENCIES AND BODIES,5902618197,1000026239
10.01.2024,Children and Adults,IVYDALE PRIMARY SCHOOL,"10,083.00",LBS MAINSTREAM,HIGH NEEDS - TOP UP FUNDING,5902616570,5001000038
12.01.2024,Children and Adults,COMMITTED CARE HOUSING,"10,058.86",SEMI-IND LAC 16-17,EXTERNAL AGENCIES AND BODIES,2103806943,1000086257
15.01.2024,Children and Adults,CARETECH COMMUNITY SERVICES LTD,"10,034.64",LD LTS 18-64,RESIDENTIAL CARE,2103808725,1000066698
19.01.2024,Corporate,GROUP FINANCE SOLUTIONS CONSULTING,"10,030.00",ERP PROGRAMME BUDGET,PROFESSIONAL FEES,5902617204,1000090315
29.01.2024,Children and Adults,MITIE PROPERTY SERVICES (UK) LTD,"10,016.62",CAPITAL PS (EDUCATION),CONSTRUCTION,2103816271,4010766
10.01.2024,Children and Adults,ST JAMES CE PRIMARY SCHOOL,"10,000.00",EHCP INCLUSION FUND,HIGH NEEDS - TOP UP FUNDING,2103806768,5001000070
10.01.2024,Children and Adults,ST JOSEPHS CATHOLIC SCHOOL,"10,000.00",EHCP INCLUSION FUND,HIGH NEEDS - TOP UP FUNDING,2103806769,5001000076
11.01.2024,Housing,ASPEN BUILD (EAST ANGLIA) LTD,"10,000.00",CAPITAL PS (HRA),CONSTRUCTION MAIN CONTRACT -CERTIFICATED,2103806848,3000002075
31.01.2024,Children and Adults,NELL GWYNN NURSERY SCHOOL,"10,000.00",NELL GWYNN CHILDRENS CENTRE,EARLY YEARS - 2 YEAR OLD,2103817795,5001000049
11.01.2024,Housing,POTTER RAPER LTD,"10,000.00",DEVELOPMENT DELIVERY,CONSULTANTS SERVICES,5902616905,1009369
17.01.2024,Children and Adults,ALLPAY LTD (CHILDRENS ALLOWANCE),"10,000.00",C & F FINANCE TEAM,OTHER PAYMENTS FOR CLIENTS,5902618041,1000080484
22.01.2024,Children and Adults,BRADFORD BIRTH TO 19 TEACHING SCHOOL,"10,000.00",SUPPORTING FAMILIES,EXTERNAL AGENCIES AND BODIES,5902618635,1000086088
30.01.2024,Environment Neighbourhoods and Growth,KENT COUNTY COUNCIL - LASER,"10,000.00",PECKHAM LIBRARY,ELECTRICITY,5902619753,1000012926
18.01.2024,Housing,HILTON INTERNATIONAL HOTELS (UK) LTD,"9,982.00",NIGHTLY TA (NSC),EXTERNAL AGENCIES AND BODIES,5902617268,1000052384
08.01.2024,Environment Neighbourhoods and Growth,METIS CONSULTANTS LIMITED,"9,965.50",CAPITAL PS (LEISURE),CAPITAL GRANTS,5902616013,1000086330
12.01.2024,Children and Adults,I.E. INFORMAL EDUCATION LTD,"9,954.11",AP & HOSPITAL SCHLS,STATEMENTED FEES,2103806916,1000090544
12.01.2024,Children and Adults,I.E. INFORMAL EDUCATION LTD,"9,954.11",AP & HOSPITAL SCHLS,STATEMENTED FEES,2103806917,1000090544
15.01.2024,Children and Adults,OPTIMA CARE (SHINE) LONDON LTD,"9,946.12",LD LTS 18-64,SUPPORTED LIVING,2103809533,1000079614
15.01.2024,Children and Adults,OPTIMA CARE (SHINE) LONDON LTD,"9,946.12",LD LTS 18-64,SUPPORTED LIVING,2103809534,1000079614
31.01.2024,Children and Adults,BROADLANDS HALL LIMITED,"9,940.00",DISABILITIES LAC,EXTERNAL AGENCIES AND BODIES,2103817706,1000084303
15.01.2024,Children and Adults,OZUMBA TRAINING AND CONSULTANCY SERVICES,"9,914.72",LD LTS 18-64,SUPPORTED LIVING,2103809617,1000090089
22.01.2024,Governance and Assurance,IRON MOUNTAIN (UK) PLC,"9,911.12",REPAIR AND MAINTENANCE SERVICES,INFORMATION MANAGEMENT,5902618579,1000078591
15.01.2024,Children and Adults,BEECHCROFT SUPPORT LIMITED,"9,909.96",LD LTS 18-64,SUPPORTED LIVING,2103809373,1000085412
24.01.2024,Children and Adults,CHIPTECH INTERNATIONAL LIMITED,"9,900.00",TELECARE EQUIPMENT,EQUIPMENT PURCHASE & REPAIR,5902619048,1000088502
31.01.2024,Governance and Assurance,IRON MOUNTAIN (UK) PLC,"9,885.79",REPAIR AND MAINTENANCE SERVICES,INFORMATION MANAGEMENT,5902620160,1000078591
15.01.2024,Children and Adults,LONDON CYRENIANS HOUSING LTD,"9,876.16",LD LTS 18-64,SUPPORTED LIVING,2103808679,1000078600
11.01.2024,Finance,HIAM ALI LTD,"9,875.40",CORONER'S,PROFESSIONAL FEES,5902617065,1000084044
15.01.2024,Children and Adults,INSIGHT,"9,857.96",LD LTS 18-64,RESIDENTIAL CARE,2103808873,1825618
29.01.2024,Children and Adults,ORCHARD HILL COLLEGE,"9,852.96",SPECIALIST POST-16,STATEMENTED FEES,2103815875,1000070978
08.01.2024,Children and Adults,BLOOM PROCUREMENT SERVICES LTD,"9,850.00",CAPITAL PS (EDUCATION),CONSTRUCTION FEES  - EXTERNAL,5902616041,1000082531
30.01.2024,Environment Neighbourhoods and Growth,NATIONWIDE ACCOMMODATION,"9,828.00",UKRAINIAN REFUGEES,ACCOMMODATION CHARGES,5902619828,1000076112
23.01.2024,Children and Adults,KENT COUNTY COUNCIL - LASER,"9,807.34",CENTRAL SUPPORT,ELECTRICITY,5902618845,1000012926
09.01.2024,Housing,KIND & COMPANY (BUILDERS) LTD,"9,802.38",CAPITAL PS (HRA),CONSTRUCTION SITE COSTS,2103805771,3000001608
19.01.2024,Corporate,GROUP FINANCE SOLUTIONS CONSULTING,"9,800.00",ERP PROGRAMME BUDGET,PROFESSIONAL FEES,5902617495,1000090315
15.01.2024,Children and Adults,GL EDUCATION GROUP LTD,"9,800.00",FAMILY HUBS GRANT,EXTERNAL AGENCIES AND BODIES,5902617499,1000039587
15.01.2024,Children and Adults,CASSRA LLP T/A CROHAM PLACE,"9,780.00",PHY LTS 18-64,NURSING PLACEMENTS FEES,2103809640,1000082899
10.01.2024,Children and Adults,BELLENDEN PRIMARY SCHOOL,"9,764.00",NURSERY ED GRANT 3 AND 4 YR OLDS,EARLY YEARS - 3 AND 4 YEAR OLDS,5902616488,5001000007
15.01.2024,Children and Adults,HIGH VIEW CARE SERVICES LTD,"9,745.92",SUB LTS 18-64,RESIDENTIAL CARE,2103809272,1000065920
19.01.2024,Corporate,ST ANTHONYS RC SCHOOL,"9,743.90",EDUCATION VAT INPUTS,VAT CONTROL ACCOUNT,2103812174,5001000064
15.01.2024,Children and Adults,FIRST CARE LODGE,"9,730.24",LD LTS 18-64,SUPPORTED LIVING,2103808683,1000084196
15.01.2024,Children and Adults,SUNLITE RECRUITMENT COMPANY LIMITED,"9,720.00",SEMI-IND CARELEAVERS,EXTERNAL AGENCIES AND BODIES,2103809734,1000089704
15.01.2024,Children and Adults,ASD UNIQUE SERVICES LTD,"9,665.80",LD LTS 18-64,RESIDENTIAL CARE,2103808675,1000038819
15.01.2024,Children and Adults,LONDON RESIDENTIAL HEALTHCARE LTD,"9,658.09",DISCHARGE TO ACCESS,NURSING PLACEMENTS FEES,2103808718,1000030895
11.01.2024,Environment Neighbourhoods and Growth,P D CONSTRUCTION LTD,"9,650.00",BURGESS AREA TEAM,OTHER R&M,2103806845,4001883
04.01.2024,Housing,SOUTH EAST BUILDING CONTRACTORS LTD,"9,643.54",CAPITAL PS (HOUSING GF),CAPITAL GRANTS,5902615632,1000049893
16.01.2024,Environment Neighbourhoods and Growth,PRIDE DEVELOPMENTS,"9,626.03",CAPITAL PS (REGEN),CONSTRUCTION MAIN CONTRACT,2103809856,3000002126
12.01.2024,Children and Adults,COMMITTED CARE HOUSING,"9,622.00",SEMI-IND LAC 16-17,EXTERNAL AGENCIES AND BODIES,2103806945,1000086257
15.01.2024,Children and Adults,BRANDON TRUST,"9,618.96",LD LTS 18-64,SUPPORTED LIVING,2103808879,1000042417
15.01.2024,Children and Adults,CARETECH COMMUNITY SERVICES LTD,"9,553.40",LD LTS 18-64,RESIDENTIAL CARE,2103809227,1000066698
18.01.2024,Children and Adults,REDACTED PERSONAL DATA,"9,550.00",SFS MGMT & SUPPORT,LEGAL FEES & COURT COSTS,2103810480,1000064570
09.01.2024,Children and Adults,OASIS PLACES LTD,"9,521.43",RESID PARENT ASSESS,RESIDENTIAL CARE,2103805630,1000077696
23.01.2024,Children and Adults,OASIS PLACES LTD,"9,521.43",RESID PARENT ASSESS,RESIDENTIAL CARE,2103813869,1000077696
11.01.2024,Housing,CAPITAL SERVICES LONDON LTD,"9,500.00",COMMERCIAL (QS),PROFESSIONAL FEES,5902615953,1000082548
10.01.2024,Environment Neighbourhoods and Growth,REDACTED PERSONAL DATA,"9,500.00",NORTH WEST,GRANTS,5902616896,1000090647
15.01.2024,Children and Adults,RAINTREE CARE LTD,"9,480.00",LD LTS 18-64 AAD,SUPPORTED LIVING,2103809445,1000087495
17.01.2024,Housing,VIGILANT SECURITY SERVICES UK,"9,475.20",MANOR PLACE HOSTEL,SECURITY SERVICES,5902617866,1000090073
10.01.2024,Housing,BOND TURNER  SOLICITORS,"9,458.33",DISREPAIR,PAYMENTS FOR LEGAL SERVICES,2103806790,1000085362
15.01.2024,Children and Adults,VALUE IN CARE LTD,"9,452.72",LD LTS 18-64,RESIDENTIAL CARE,2103774735,1000041975
15.01.2024,Children and Adults,VALUE IN CARE LTD,"9,452.72",LD LTS 18-64,RESIDENTIAL CARE,2103787079,1000041975
15.01.2024,Children and Adults,VALUE IN CARE LTD,"9,452.72",LD LTS 18-64,RESIDENTIAL CARE,2103799290,1000041975
10.01.2024,Environment Neighbourhoods and Growth,MACE LTD,"9,450.00",CAPITAL PS (REGEN),CONSTRUCTION FEES,5902616711,1000067959
15.01.2024,Children and Adults,CHOICE SUPPORT,"9,434.40",LD LTS 18-64,SUPPORTED LIVING,2103809186,1104183
15.01.2024,Children and Adults,ALWAYS INCLUSIVE LTD,"9,422.40",LD LTS 18-64,SUPPORTED LIVING,2103808815,1000088268
10.01.2024,Children and Adults,THE ST THOMAS THE APOSTLE COLLEGE,"9,417.00",LBS MAINSTREAM,HIGH NEEDS - TOP UP FUNDING,5902616658,5001000074
10.01.2024,Children and Adults,THE GROVE CHILDRENS CENTRE,"9,417.00",LBS MAINSTREAM,HIGH NEEDS - TOP UP FUNDING,5902616688,5001000090
12.01.2024,Children and Adults,I.E. INFORMAL EDUCATION LTD,"9,416.05",AP & HOSPITAL SCHLS,STATEMENTED FEES,2103806915,1000090544
08.01.2024,Environment Neighbourhoods and Growth,METIS CONSULTANTS LIMITED,"9,412.69",CAPITAL PS (LEISURE),CONSTRUCTION FEES - ARCHITECT,5902615343,1000086330
09.01.2024,Children and Adults,TUKE SCHOOL,"9,384.00",COVID-19 SCHOOLS GRANTS,SCHOOLS CAPITATION,2103805392,5001000097
29.01.2024,Children and Adults,DRUMBEAT DOWNHAM SCHOOL,"9,380.33",OTHER LA SPECIAL,STATEMENTED FEES,2103815836,1000072258
28.01.2024,Environment Neighbourhoods and Growth,J C CONSULTANT SERVICES LTD,"9,375.00",RADAR-IOM,PROFESSIONAL FEES,5902618915,1000042476
31.01.2024,Environment Neighbourhoods and Growth,C D SURVEYS LTD,"9,350.00",CAPITAL PS (LEISURE),CONSTRUCTION FEES - QUANTITY SURVEYOR,5902620124,1000047700
10.01.2024,Children and Adults,RYE OAK PRIMARY SCHOOL,"9,333.00",LBS MAINSTREAM,HIGH NEEDS - TOP UP FUNDING,5902616619,5001000059
10.01.2024,Children and Adults,ST ANTHONYS RC SCHOOL,"9,333.00",LBS MAINSTREAM,HIGH NEEDS - TOP UP FUNDING,5902616633,5001000064
30.01.2024,Children and Adults,COMMITTED CARE HOUSING,"9,322.00",SEMI-IND LAC 16-17,EXTERNAL AGENCIES AND BODIES,2103816544,1000086257
29.01.2024,Children and Adults,DRUMBEAT DOWNHAM SCHOOL,"9,300.00",OTHER LA SPECIAL,STATEMENTED FEES,2103815839,1000072258
29.01.2024,Children and Adults,DRUMBEAT DOWNHAM SCHOOL,"9,300.00",OTHER LA SPECIAL,STATEMENTED FEES,2103815840,1000072258
19.01.2024,Housing,SOUTH EAST BUILDING CONTRACTORS LTD,"9,297.34",CAPITAL PS (HRA),UTILITIES INSTALLATION,5902618447,1000049893
08.01.2024,Finance,INFOSYS LIMITED,"9,294.00",CAPITAL PS (STRAT SERV),ICT ACQUISITION,5902615991,1000088973
15.01.2024,Children and Adults,GREEN CARE AND SUPPORT LIMITED,"9,276.80",LD LTS 18-64,SUPPORTED LIVING,2103809378,1000087661
15.01.2024,Children and Adults,FIRST CARE LODGE,"9,256.00",LD LTS 18-64,SUPPORTED LIVING,2103808892,1000084196
01.01.2024,Housing,PULSE ASSOCIATES LTD (T/A PULSE CONSULT),"9,250.00",CAPITAL PS (HRA),CONSTRUCTION FEES  - EXTERNAL,5902615156,1000087233
03.01.2024,Children and Adults,IMPERIAL COLLEGE LONDON,"9,250.00",SCHOLARSHIP SCHEME,EXTERNAL AGENCIES AND BODIES,5902615571,1000041205
03.01.2024,Children and Adults,KINGS COLLEGE LONDON,"9,250.00",SCHOLARSHIP SCHEME,EXTERNAL AGENCIES AND BODIES,5902615586,1000021115
23.01.2024,Children and Adults,KINGS COLLEGE LONDON,"9,250.00",SCHOLARSHIP SCHEME,EXTERNAL AGENCIES AND BODIES,5902618853,1000021115
23.01.2024,Children and Adults,UNIVERSITY OF ROEHAMPTON,"9,250.00",SCHOLARSHIP SCHEME,EXTERNAL AGENCIES AND BODIES,5902618854,1000045798
23.01.2024,Children and Adults,LONDON SOUTH BANK UNIVERSITY,"9,250.00",SCHOLARSHIP SCHEME,EXTERNAL AGENCIES AND BODIES,5902618878,1000051012
23.01.2024,Children and Adults,UNIVERSITY OF KENT,"9,250.00",SCHOLARSHIP SCHEME,EXTERNAL AGENCIES AND BODIES,5902618913,1000047022
08.01.2024,Housing,QUINARY LTD,"9,238.00",NIGHTLY TA (NSC),EXTERNAL AGENCIES AND BODIES,5902616014,1000029106
09.01.2024,Environment Neighbourhoods and Growth,PROJECT CENTRE LTD,"9,211.00",TRANSPORT PROJECTS,OTHER CONTRACTORS,5902616385,1000072621
15.01.2024,Children and Adults,CHOICE CARE GROUP,"9,200.08",LD LTS 18-64,RESIDENTIAL CARE,2103808693,1572506
17.01.2024,Environment Neighbourhoods and Growth,TRILO (UK) T/A THE GRASS GROUP,"9,199.01",MANAGEMENT TEAM,MATERIALS,5902617846,1000067481
15.01.2024,Children and Adults,LONDON CYRENIANS HOUSING LTD,"9,196.40",LD LTS 18-64,SUPPORTED LIVING,2103808908,1000078600
15.01.2024,Children and Adults,CHOICE CARE GROUP,"9,181.28",LD LTS 18-64,RESIDENTIAL CARE,2103809090,1572506
10.01.2024,Children and Adults,OLIVER GOLDSMITH PRIMARY SCHOOL,"9,171.00",NURSERY ED GRANT 3 AND 4 YR OLDS,EARLY YEARS - 3 AND 4 YEAR OLDS,5902616593,5001000051
10.01.2024,Children and Adults,ST JOSEPHS CATHOLIC PRIMARY SCHOOL,"9,164.00",NURSERY ED GRANT 3 AND 4 YR OLDS,EARLY YEARS - 3 AND 4 YEAR OLDS,5902616667,5001000078
17.01.2024,Housing,LODGISTICS ESTATES,"9,143.40",PSL PLACEMENTS,EXTERNAL AGENCIES AND BODIES,5902617867,1000080324
12.01.2024,Children and Adults,REDACTED PERSONAL DATA,"9,142.28",LD LTS 18-64 AAD,PAYMENTS TO CLIENTS (DIRECT PAYMENTS),2103807721,1000080806
29.01.2024,Housing,SITTARA LTD,"9,130.00",TA PLACEMENTS,EXTERNAL AGENCIES AND BODIES,5902619516,1000080857
15.01.2024,Children and Adults,LEONARD CHESHIRE (CHIPSTEAD LAKE),"9,126.12",PHY LTS 18-64,RESIDENTIAL CARE,2103809515,1000049764
11.01.2024,Children and Adults,PHS GROUP PLC,"9,117.63",100 GROSVENORTERRACE,OTHER CONTRACTORS,5902616972,1851993
22.01.2024,DSO,J KASH LTD,"9,113.20",DAMP & MOULD TEAM,OTHER CONTRACTORS,2103812958,3000002219
15.01.2024,Children and Adults,THE AVENUES TRUST,"9,091.48",LD LTS 18-64,RESIDENTIAL CARE,2103808738,1981708
15.01.2024,Children and Adults,CHOICE CARE GROUP,"9,089.08",LD LTS 18-64,RESIDENTIAL CARE,2103809286,1572506
15.01.2024,Children and Adults,CHOICE SUPPORT,"9,079.36",LD LTS 65+,SUPPORTED LIVING,2103809532,1104183
12.01.2024,Children and Adults,REDACTED PERSONAL DATA,"9,079.20",PHB - SEL ICB,RECOVERABLE COSTS INCL. HEALTH,2103807590,1000044274
12.01.2024,Finance,WE ARE WATERLOO LTD,"9,054.00",WATERLOO QUARTER,EXTERNAL AGENCIES AND BODIES,5902617155,1000057618
12.01.2024,Children and Adults,COMMITTED CARE HOUSING,"9,000.14",SEMI-IND LAC 16-17,EXTERNAL AGENCIES AND BODIES,2103806951,1000086257
10.01.2024,Children and Adults,KEYWORTH PRIMARY SCHOOL,"9,000.00",LBS MAINSTREAM,HIGH NEEDS - TOP UP FUNDING,5902616580,5001000041
12.01.2024,Children and Adults,KENT COUNTY COUNCIL,"9,000.00",ALS INTER AGENCY,EXTERNAL AGENCIES AND BODIES,5902617303,1000053817
15.01.2024,Finance,HITACHI SOLUTIONS EUROPE LIMITED,"9,000.00",APPLICATIONS,SUBSCRIPTIONS,5902617405,1000084180
17.01.2024,Finance,TRANSPORT FOR LONDON GROUP PLANNING,"9,000.00","61-63 GREAT SUFFOLK ST, LDN, SE1 0BU",S106 A/C,5902617918,1000065130
18.01.2024,Housing,ADECCO UK LTD,"9,000.00",BUILDING SAFETY PROGRAMME,PROFESSIONAL FEES,5902618177,1000017669
30.01.2024,Children and Adults,ROADWORKS MEDIA,"9,000.00",YJS MGMT & SUPPORT,EXTERNAL AGENCIES AND BODIES,5902619660,1000081375
15.01.2024,Children and Adults,FIR TREE LODGE (SEE ABILITY),"8,995.40",LD LTS 18-64,RESIDENTIAL CARE,2103809039,1000052257
15.01.2024,Children and Adults,SAFFRONLAND HOMES (MINEHEAD),"8,979.36",LD LTS 65+,RESIDENTIAL CARE,2103809718,1000072152
15.01.2024,Children and Adults,SAFFRONLAND HOMES (HESTIA),"8,978.92",LD LTS 18-64,RESIDENTIAL CARE,2103809302,1000021616
15.01.2024,Children and Adults,SAFFRONLAND HOMES (HESTIA),"8,978.92",LD LTS 18-64,RESIDENTIAL CARE,2103809578,1000021616
31.01.2024,Children and Adults,LONDON SOUTH EAST ACADEMIES TRUST,"8,972.83",AC & FREE - MSTREAM,STATEMENTED FEES,2103817874,1000088592
15.01.2024,Children and Adults,ALLEN CARR'S EASYWAY (INTERNATIONAL,"8,932.00",STOP SMOKING,EXTERNAL AGENCIES AND BODIES,5902617476,1000090277
15.01.2024,Children and Adults,CARETECH COMMUNITY SERVICES LTD,"8,927.16",LD LTS 18-64,RESIDENTIAL CARE,2103809605,1000066698
15.01.2024,Children and Adults,SAFFRONLAND HOMES (HESTIA),"8,906.00",LD LTS 18-64,RESIDENTIAL CARE,2103809525,1000021616
15.01.2024,Children and Adults,DIAGRAMA HEALTH CARE,"8,859.44",LD LTS 18-64,RESIDENTIAL CARE,2103808767,1000075492
29.01.2024,Children and Adults,ORCHARD HILL COLLEGE,"8,845.71",SPECIALIST POST-16,STATEMENTED FEES,2103815847,1000070978
29.01.2024,Children and Adults,ORCHARD HILL COLLEGE,"8,845.71",SPECIALIST POST-16,STATEMENTED FEES,2103815880,1000070978
24.01.2024,Children and Adults,AON SOLUTIONS UK LTD,"8,840.00",DIRECTOR OF EDUCATION,PROFESSIONAL FEES,5902619072,1000000036
09.01.2024,Housing,ROOFF LTD,"8,838.50",CAPITAL PS (HRA),CONSTRUCTION MAIN CONTRACT -CERTIFICATED,2103805767,3000001090
09.01.2024,Children and Adults,BETHLEM & MAUDSLEY HOSPITAL SCHOOL,"8,832.00",COVID-19 SCHOOLS GRANTS,SCHOOLS CAPITATION,2103805398,5001000010
15.01.2024,Children and Adults,RIGHT SUPPORT MANAGEMENT LTD,"8,825.84",LD LTS 18-64,SUPPORTED LIVING,2103809536,1000070289
15.01.2024,Children and Adults,ASHINGHAM HOUSE LIMITED,"8,819.16",LD LTS 18-64,RESIDENTIAL CARE,2103809028,1000016504
08.01.2024,Environment Neighbourhoods and Growth,LEX AUTOLEASE,"8,818.08",COMMERCIAL VEH CTRL A/C,HIRED VEHICLES,5902616146,1000069462
23.01.2024,Environment Neighbourhoods and Growth,NORBURY PROPERTY SERVICES (LONDON) LTD,"8,810.00",NO RECOURSE TO PUBLIC FUNDS,ACCOMMODATION CHARGES,5902618775,1000075566
15.01.2024,Children and Adults,BEECHCROFT SUPPORT LIMITED,"8,806.72",MH LTS 18-64,SUPPORTED LIVING,2103809654,1000085412
15.01.2024,Children and Adults,BRITISH HOME & HOSPITAL FOR INCURABLES,"8,789.16",PHY LTS 65+,NURSING PLACEMENTS FEES,2103809212,1001606
22.01.2024,Housing,BRESLIN CONSTRUCTION LTD,"8,787.50",COMMERCIAL PROPERTIES,BUILDING R&M,2103812964,3000001948
03.01.2024,Children and Adults,NEWCASTLE COLLEGE GROUP,"8,773.82",FURTHER EDUCATION,STATEMENTED FEES,2103804571,1000080965
15.01.2024,Children and Adults,BROADHAM CARE LIMITED,"8,752.16",LD LTS 18-64,RESIDENTIAL CARE,2103809238,1000057411
15.01.2024,Housing,BRITISH GAS TRADING LTD,"8,746.34",RESIDENT SERVICES BUSINESS SUPPORT,ELECTRICITY,5902617370,1000055977
10.01.2024,Suspense,LONDON TOOLS LIMITED,"8,730.00",SUSPENSE ACCOUNT (COMPANY CODE 1000),CREDITORS -GR/IR CLEARING ACCOUNT,5902616848,1000003017
09.01.2024,Children and Adults,EVERYONE HEALTH LTD,"8,728.33",HEALTH INTERVENTIONS,EXTERNAL AGENCIES AND BODIES,5902616202,1000084159
10.01.2024,Children and Adults,EVERYONE HEALTH LTD,"8,728.33",HEALTH INTERVENTIONS,EXTERNAL AGENCIES AND BODIES,5902616213,1000084159
29.01.2024,Housing,BAILY  GARNER LLP,"8,702.30",CAPITAL PS (HRA),CONSTRUCTION FEES - EMPLOYERS AGENT,5902619531,1000663
10.01.2024,Children and Adults,RYE OAK PRIMARY SCHOOL,"8,694.00",LBS RB / SEN UNIT,HIGH NEEDS - BASE FUNDING,5902616616,5001000059
24.01.2024,Children and Adults,PRIDE DEVELOPMENTS,"8,683.80",CAPITAL PS (SOC SERV),CONSTRUCTION MAIN CONTRACT,2103813892,3000002126
15.01.2024,Children and Adults,HIGH VIEW CARE SERVICES LTD,"8,682.80",PHY LTS 18-64,RESIDENTIAL CARE,2103809459,1000053562
26.01.2024,Finance,GUYS & ST THOMAS NHS FOUNDATION TRUST,"8,674.00",MORTUARY,OTHER CONTRACTORS,5902619453,1765536
10.01.2024,Children and Adults,ALBION PRIMARY SCHOOL,"8,667.00",LBS MAINSTREAM,HIGH NEEDS - TOP UP FUNDING,5902616483,5001000000
10.01.2024,Children and Adults,ST FRANCIS'S RC PRIMARY SCHOOL,"8,667.00",LBS MAINSTREAM,HIGH NEEDS - TOP UP FUNDING,5902616637,5001000067
15.01.2024,Children and Adults,BRITISH HOME & HOSPITAL FOR INCURABLES,"8,664.00",PHY LTS 18-64,NURSING PLACEMENTS FEES,2103808840,1001606
09.01.2024,Children and Adults,ST JAMES CE PRIMARY SCHOOL,"8,663.75",COVID-19 SCHOOLS GRANTS,SCHOOLS CAPITATION,2103805368,5001000070
15.01.2024,Children and Adults,BRANDON TRUST,"8,647.00",LD LTS 18-64,SUPPORTED LIVING,2103809689,1000042417
15.01.2024,Children and Adults,SAFFRONLAND HOMES (HESTIA),"8,612.20",LD LTS 18-64,RESIDENTIAL CARE,2103809712,1000021616
31.01.2024,Environment Neighbourhoods and Growth,PROJECT CENTRE LTD,"8,600.13",TRANSPORT PROJECTS,OTHER CONTRACTORS,5902619857,1000072621
29.01.2024,Environment Neighbourhoods and Growth,LONDON SOUTH BANK UNIVERSITY,"8,600.00",CLIMATE CHANGE,OTHER CONTRACTORS,5902619495,1000051012
18.01.2024,Environment Neighbourhoods and Growth,ALTIA SOLUTIONS LTD,"8,585.00",TRADING STANDARDS,PROFESSIONAL FEES,5902618118,1000060360
10.01.2024,Children and Adults,MICHAEL FARADAY PRIMARY SCHOOL,"8,583.00",LBS MAINSTREAM,HIGH NEEDS - TOP UP FUNDING,5902616591,5001000048
22.01.2024,Children and Adults,LONDON BUBBLE THEATRE COMPANY,"8,571.00",YJS MGMT & SUPPORT,EXTERNAL AGENCIES AND BODIES,5902618567,11022517
15.01.2024,Housing,CHRIS DAVIS CONSULTANCY LTD,"8,550.00",CAPITAL PS (HRA),CONSTRUCTION,5902617471,1000084202
17.01.2024,Housing,ALEXANDER MILLS CONSULTING LTD,"8,550.00",BUILDING SAFETY PROGRAMME,CONSULTANTS SERVICES,5902617810,1000088721
18.01.2024,Housing,ADECCO UK LTD,"8,550.00",BUILDING SAFETY PROGRAMME,PROFESSIONAL FEES,5902618181,1000017669
09.01.2024,Children and Adults,JOHN RUSKIN PRIMARY SCHOOL,"8,540.50",COVID-19 SCHOOLS GRANTS,SCHOOLS CAPITATION,2103805346,5001000040
24.01.2024,Environment Neighbourhoods and Growth,CONSTELLIA PUBLIC LIMITED,"8,510.18",DULWICH LEISURE CENTRE,PREMISES CLEANING,5902618681,1000088137
15.01.2024,Children and Adults,BOUGHTON GREEN ROAD LIMITED,"8,505.00",PHY LTS 18-64,NURSING PLACEMENTS FEES,2103808714,1000089115
31.01.2024,Housing,HODGE JONES & ALLEN SOLICITORS,"8,500.00",DISREPAIR,PAYMENTS FOR LEGAL SERVICES,2103817830,11011881
03.01.2024,Strategy and Communities,AAINA WOMEN GROUP,"8,499.34",VCS GRANTS,GRANTS,5902615441,1000002442
22.01.2024,Housing,ADECCO UK LTD,"8,487.00",BUILDING SAFETY PROGRAMME,PROFESSIONAL FEES,5902618488,1000017669
15.01.2024,Children and Adults,AGINCARE (SOUTHWARK) LIMITED,"8,485.71",PHY LTS 65+,RESIDENTIAL CARE,2103809696,1000089635
15.01.2024,Children and Adults,L & Q LIVING,"8,485.00",LD LTS 18-64,SUPPORTED LIVING,2103809116,1000057917
15.01.2024,Children and Adults,GARLAND LODGE LTD,"8,444.80",LD LTS 18-64,SUPPORTED LIVING,2103809370,1000084016
15.01.2024,Children and Adults,OPTIMA CARE (SHINE) LONDON LTD,"8,433.00",LD LTS 18-64,SUPPORTED LIVING,2103809365,1000079614
12.01.2024,Housing,EQUANS REGENERATION (APOLLO) LTD,"8,407.61",CAPITAL PS (HRA),CONSTRUCTION MAIN CONTRACT -CERTIFICATED,2103806861,4000449
19.01.2024,Corporate,CRAWFORD PRIMARY SCHOOL,"8,402.95",EDUCATION VAT INPUTS,VAT CONTROL ACCOUNT,2103812167,5001000024
29.01.2024,Housing,BAILY  GARNER LLP,"8,400.00",CAPITAL PS (HRA),CONSTRUCTION FEES - EMPLOYERS AGENT,5902619530,1000663
15.01.2024,Children and Adults,SAFFRONLAND HOMES (MINEHEAD),"8,377.68",LD LTS 18-64,RESIDENTIAL CARE,2103809236,1000072152
16.01.2024,Environment Neighbourhoods and Growth,SHELL UK OIL PRODUCTS LTD,"8,370.51",COMMERCIAL VEH CTRL A/C,VEHICLE FUEL,5902617692,1000081254
10.01.2024,Children and Adults,GRANGE PRIMARY SCHOOL,"8,364.00",NURSERY ED GRANT 3 AND 4 YR OLDS,EARLY YEARS - 3 AND 4 YEAR OLDS,5902616541,5001000029
15.01.2024,Housing,LIBRA CONSTRUCTION SERVICES LTD,"8,360.46",DISREPAIR,BUILDING R&M,2103808368,3000000875
15.01.2024,Children and Adults,SAFFRONLAND HOMES (MINEHEAD),"8,352.12",LD LTS 18-64,RESIDENTIAL CARE,2103809356,1000072152
15.01.2024,Housing,BRITISH GAS TRADING LTD,"8,351.76",RESIDENT SERVICES BUSINESS SUPPORT,ELECTRICITY,5902617368,1000055977
15.01.2024,Children and Adults,P.A.K.S,"8,348.00",PHY LTS 18-64,RESIDENTIAL CARE,2103809699,1000078011
31.01.2024,Housing,OSBORNES SOLICITORS,"8,333.33",DISREPAIR,PAYMENTS FOR LEGAL SERVICES,2103817806,1000052598
04.01.2024,Housing,DACS LTD,"8,330.75",CAPITAL PS (HOUSING GF),CAPITAL GRANTS,5902615751,1000079747
15.01.2024,Children and Adults,KARE HEALTHCARE LTD,"8,320.00",PHY LTS 65+,SUPPORTED LIVING,2103808818,1000089212
15.01.2024,Children and Adults,ASHMEAD HEALTHCARE LTD,"8,278.24",LD LTS 18-64,RESIDENTIAL CARE,2103809528,1000077917
17.01.2024,Environment Neighbourhoods and Growth,HIGHTECH WATER SERVICES LIMITED,"8,265.00",CAPITAL PS (LEISURE),"PLANT, MACHINERY & EQUIPMENT ACQUISITION",5902617971,1000089824
19.01.2024,Corporate,HEBER PRIMARY SCHOOL,"8,255.64",EDUCATION VAT INPUTS,VAT CONTROL ACCOUNT,2103812152,5001000035
15.01.2024,Children and Adults,GLENPAT HOMES,"8,239.12",LD LTS 18-64,RESIDENTIAL CARE,2103809511,1000059312
15.01.2024,Housing,STABILIS ASSOCIATES LTD,"8,208.00",REPAIRS OPERATIONS,PROFESSIONAL FEES,5902617402,1000082512
15.01.2024,Children and Adults,ALWAYS INCLUSIVE LTD,"8,199.36",LD LTS 18-64,SUPPORTED LIVING,2103809658,1000088268
15.01.2024,Children and Adults,GREEN CARE AND SUPPORT LIMITED,"8,195.20",LD LTS 18-64,SUPPORTED LIVING,2103809377,1000087661
19.01.2024,Corporate,IVYDALE PRIMARY SCHOOL,"8,184.54",EDUCATION VAT INPUTS,VAT CONTROL ACCOUNT,2103812221,5001000038
15.01.2024,Children and Adults,CHOICE SUPPORT,"8,168.84",LD LTS 18-64,SUPPORTED LIVING,2103809555,1104183
15.01.2024,Children and Adults,BEECHCROFT SUPPORT LIMITED,"8,161.36",LD LTS 18-64,SUPPORTED LIVING,2103809656,1000085412
25.01.2024,Housing,CALFORD SEADEN LLP,"8,141.28",CAPITAL PS (HRA),CONSTRUCTION FEES  - EXTERNAL,5902619138,1061592
15.01.2024,Children and Adults,GLEN CARE GROUP,"8,141.12",LD LTS 18-64,RESIDENTIAL CARE,2103761155,1000050223
15.01.2024,Children and Adults,GLEN CARE GROUP,"8,141.12",LD LTS 18-64,RESIDENTIAL CARE,2103774781,1000050223
15.01.2024,Children and Adults,GLEN CARE GROUP,"8,141.12",LD LTS 18-64,RESIDENTIAL CARE,2103787130,1000050223
15.01.2024,Children and Adults,GLEN CARE GROUP,"8,141.12",LD LTS 18-64,RESIDENTIAL CARE,2103799269,1000050223
15.01.2024,Children and Adults,GLEN CARE GROUP,"8,141.12",LD LTS 18-64,RESIDENTIAL CARE,2103809099,1000050223
31.01.2024,Children and Adults,REDACTED PERSONAL DATA,"8,128.00",AP & HOSPITAL SCHLS,STATEMENTED FEES,2103817886,1000090637
15.01.2024,Children and Adults,CHOICE CARE GROUP,"8,118.80",LD LTS 18-64,RESIDENTIAL CARE,2103809231,1572506
10.01.2024,Children and Adults,ENGLISH MARTYRS RC PRIMARY SCHOOL,"8,114.00",NURSERY ED GRANT 3 AND 4 YR OLDS,EARLY YEARS - 3 AND 4 YEAR OLDS,5902616545,5001000030
26.01.2024,Finance,REAL ASSET MANAGEMENT LTD,"8,100.00",CORPORATE SERVICES AND F&G,SOFTWARE,5902619289,1000066157
31.01.2024,Housing,SOUTHWARK LAW CENTRE,"8,100.00",RESIDENT SERVICES BUSINESS SUPPORT,LEGAL FEES & COURT COSTS,5902620022,1931684
14.01.2024,Environment Neighbourhoods and Growth,PECKHAM PALMS LTD,"8,083.33",BUSINESS SUPPORT,GRANTS,5902616881,1000081205
31.01.2024,Housing,THEORI HOUSING MANAGEMENT SERVICES,"8,076.74",NIGHTLY TA (NSC),EXTERNAL AGENCIES AND BODIES,5902619882,1000079264
08.01.2024,Finance,LEADTEC LIMITED,"8,075.00",CAPITAL PS (STRAT SERV),ICT ACQUISITION,5902615974,1000088992
15.01.2024,Children and Adults,COUNTRY COURT CARE HOMES 2 LTD,"8,071.14",PHY LTS 65+,NURSING PLACEMENTS FEES,2103809021,1000080172
15.01.2024,Children and Adults,ALWAYS INCLUSIVE LTD,"8,064.00",LD LTS 18-64,SUPPORTED LIVING,2103809059,1000088268
24.01.2024,Environment Neighbourhoods and Growth,CONSTELLIA PUBLIC LIMITED,"8,060.48",CAMBERWELL LEISURE CENTRE,PREMISES CLEANING,5902618676,1000088137
10.01.2024,Children and Adults,ST JOHNS RC PRIMARY SCHOOL,"8,047.00",NURSERY ED GRANT 3 AND 4 YR OLDS,EARLY YEARS - 3 AND 4 YEAR OLDS,5902616659,5001000075
29.01.2024,Children and Adults,THAMES WATER UTILITIES LTD,"8,030.00",CAPITAL PS (EDUCATION),CONSTRUCTION SITE COSTS,5902619494,1000051868
25.01.2024,Governance and Assurance,CASTLE WATER LTD,"8,017.10",160 TOOLEY ST.,WATER,5902619086,1000078867
15.01.2024,Children and Adults,LEONARD CHESHIRE (THICKET ROAD),"8,004.84",LD LTS 18-64,RESIDENTIAL CARE,2103808936,1000049761
18.01.2024,Governance and Assurance,CORPORATE DOCUMENT SERVICES LTD,"8,003.07",REPAIR AND MAINTENANCE SERVICES,PRINTING,5902618127,11324274
24.01.2024,Children and Adults,INTERPRETING DIRECT CO (UK) LTD,"8,001.00",CENTRAL SUPPORT,INTERPRETING SERVICES,5902619055,1000070133
10.01.2024,Children and Adults,THE GROVE CHILDRENS CENTRE,"8,000.00",NURSERY ED GRANT 3 AND 4 YR OLDS,EARLY YEARS - 3 AND 4 YEAR OLDS,2103806755,5001000090
10.01.2024,Children and Adults,ROBERT BROWNING PRIMARY SCHOOL,"8,000.00",EHCP INCLUSION FUND,HIGH NEEDS - TOP UP FUNDING,2103806760,5001000057
10.01.2024,Children and Adults,ST FRANCIS'S RC PRIMARY SCHOOL,"8,000.00",EHCP INCLUSION FUND,HIGH NEEDS - TOP UP FUNDING,2103806766,5001000067
15.01.2024,Children and Adults,THE LONDON CARE GROUP,"8,000.00",LD LTS 18-64,SUPPORTED LIVING,2103808954,1000090111
15.01.2024,Children and Adults,ACHIEVE TOGETHER SERVICES LIMITED,"7,988.00",LD LTS 18-64,RESIDENTIAL CARE,2103808784,1000089975
19.01.2024,Corporate,ALFRED SALTER PRIMARY SCHOOL,"7,969.86",EDUCATION VAT INPUTS,VAT CONTROL ACCOUNT,2103812156,5001000005
15.01.2024,Children and Adults,HIGH VIEW CARE SERVICES LTD,"7,957.88",MEM LTS 18-64,NURSING PLACEMENTS FEES,2103809546,1000053562
12.01.2024,Housing,ARMINA LTD,"7,950.67",DISREPAIR,BUILDING R&M,2103806905,3000002121
03.01.2024,Strategy and Communities,LONDON WILDLIFE TRUST,"7,950.00",VCS GRANTS,GRANTS,5902615432,1832374
15.01.2024,Children and Adults,WILLCOB CARE LTD,"7,940.00",SPECIALIST CARE,PLACEMENTS - RESPITE,2103809788,1000090119
15.01.2024,Children and Adults,REESON CARE HOMES LTD,"7,931.04",LD LTS 18-64,SUPPORTED LIVING,2103809803,1000084007
22.01.2024,Housing,SHUTTLEWORTH (UK) LTD,"7,920.00",NIGHTLY TA (NSC),EXTERNAL AGENCIES AND BODIES,5902618713,1000056468
31.01.2024,Children and Adults,BROADLANDS HALL LIMITED,"7,900.00",DISABILITIES LAC,RESIDENTIAL CARE,2103817707,1000084303
31.01.2024,DSO,ARMINA LTD,"7,872.39",WALWORTH DD,OTHER CONTRACTORS,2103817866,3000002121
15.01.2024,Children and Adults,VOYAGE LTD (EVESLEIGH KENT),"7,859.88",PHY LTS 18-64,RESIDENTIAL CARE,2103809325,1000041320
15.01.2024,Children and Adults,PHS GROUP PLC,"7,842.86",46 HALF MOON LANE,OTHER CONTRACTORS,5902617383,1851993
19.01.2024,Children and Adults,HAVERSTOCK,"7,831.67",CAPITAL PS (EDUCATION),CONSTRUCTION FEES - ARCHITECT,5902618347,1000074288
15.01.2024,Children and Adults,CHOICE SUPPORT,"7,818.80",LD LTS 18-64,SUPPORTED LIVING,2103808874,1104183
03.01.2024,Strategy and Communities,PECAN LTD,"7,817.50",VCS GRANTS,GRANTS,5902615438,11263114
15.01.2024,Children and Adults,DISABILITIES TRUST,"7,815.40",PHY LTS 18-64,NURSING PLACEMENTS FEES,2103808865,1000043358
17.01.2024,Housing,CALFORD SEADEN LLP,"7,810.62",CAPITAL PS (HRA),CONSTRUCTION FEES  - EXTERNAL,5902617827,1061592
12.01.2024,Children and Adults,I.E. INFORMAL EDUCATION LTD,"7,801.87",AP & HOSPITAL SCHLS,STATEMENTED FEES,2103806914,1000090544
15.01.2024,Children and Adults,SAFFRONLAND HOMES (MINEHEAD),"7,800.00",LD LTS 18-64,RESIDENTIAL CARE,2103809631,1000072152
08.01.2024,Finance,INVUSE LIMITED,"7,800.00",CAPITAL PS (STRAT SERV),ICT ACQUISITION,5902616116,1000087372
15.01.2024,Children and Adults,SUNRISE REHABILITATION CENTRE,"7,789.60",LD LTS 18-64,SUPPORTED LIVING,2103808684,1000086998
09.01.2024,Children and Adults,EVERYONE HEALTH LTD,"7,777.00",HEALTHY WEIGHT,EXTERNAL AGENCIES AND BODIES,5902616206,1000084159
10.01.2024,Children and Adults,EVERYONE HEALTH LTD,"7,777.00",HEALTHY WEIGHT,EXTERNAL AGENCIES AND BODIES,5902616214,1000084159
09.01.2024,Children and Adults,NATIONAL AUTISTIC SOCIETY,"7,770.00",EARLY AUTISM SUPPORT,TRAINING,5902616289,1000080449
15.01.2024,Children and Adults,VALUE IN CARE LTD,"7,761.08",LD LTS 18-64,RESIDENTIAL CARE,2103760831,1000041975
15.01.2024,Children and Adults,VALUE IN CARE LTD,"7,761.08",LD LTS 18-64,RESIDENTIAL CARE,2103775194,1000041975
15.01.2024,Children and Adults,VALUE IN CARE LTD,"7,761.08",LD LTS 18-64,RESIDENTIAL CARE,2103787590,1000041975
15.01.2024,Children and Adults,VALUE IN CARE LTD,"7,761.08",LD LTS 18-64,RESIDENTIAL CARE,2103799712,1000041975
15.01.2024,Children and Adults,VALUE IN CARE LTD,"7,761.08",LD LTS 18-64,RESIDENTIAL CARE,2103809529,1000041975
15.01.2024,Children and Adults,PLUS SERVICES,"7,721.60",LD LTS 18-64,RESIDENTIAL CARE,2103809554,1000021241
15.01.2024,Children and Adults,VOYAGE CARE (MOUNTEARL),"7,713.64",LD LTS 18-64,RESIDENTIAL CARE,2103809449,1000078173
31.01.2024,Housing,FIRST DISPUTE  MANAGEMENT LIMITED,"7,708.33",DISREPAIR,PAYMENTS FOR LEGAL SERVICES,2103817839,1000090244
15.01.2024,Children and Adults,AGINCARE (SOUTHWARK) LIMITED,"7,700.00",DISCHARGE TO ACCESS,NURSING PLACEMENTS FEES,2103809413,1000089635
31.01.2024,Children and Adults,FAITHFUL & GOULD,"7,699.00",CAPITAL PS (EDUCATION),CONSTRUCTION FEES  - EXTERNAL,5902620095,1000061390
15.01.2024,Children and Adults,BRANDON TRUST,"7,694.72",LD LTS 18-64,SUPPORTED LIVING,2103808976,1000042417
12.01.2024,Children and Adults,I.E. INFORMAL EDUCATION LTD,"7,686.60",AP & HOSPITAL SCHLS,STATEMENTED FEES,2103806913,1000090544
15.01.2024,Children and Adults,CHOICE SUPPORT,"7,685.84",LD LTS 18-64,SUPPORTED LIVING,2103808993,1104183
10.01.2024,Children and Adults,SNOWSFIELDS PRIMARY SCHOOL,"7,667.00",LBS RB / SEN UNIT,HIGH NEEDS - BASE FUNDING,5902616622,5001000061
11.01.2024,Suspense,TRAVIS PERKINS TRADING COMPANY LTD,"7,666.80",SUSPENSE ACCOUNT (COMPANY CODE 1000),CREDITORS -GR/IR CLEARING ACCOUNT,5902617069,1514319
15.01.2024,Children and Adults,ACHIEVE TOGETHER SERVICES LIMITED,"7,666.12",LD LTS 18-64,SUPPORTED LIVING,2103809427,1000089975
15.01.2024,Children and Adults,ACHIEVE TOGETHER SERVICES LIMITED,"7,662.68",LD LTS 18-64,RESIDENTIAL CARE,2103809193,1000089975
30.01.2024,Children and Adults,SYNERGY FOSTERING LTD,"7,657.00",FRIENDS & FAMILY FOSTERING,EXTERNAL AGENCIES AND BODIES,2103816550,1000031559
23.01.2024,Environment Neighbourhoods and Growth,WATERMAN INFRASTRUCTURE & ENVIRONMENT LTD,"7,643.50",FLOOD RISK MANAGEMENT,HIGHWAYS TERM CONTRACT,5902618848,1000060529
15.01.2024,Children and Adults,RESIDENTIAL CARE SERVICES LTD,"7,628.20",LD LTS 18-64,SUPPORTED LIVING,2103808910,1000082629
09.01.2024,Environment Neighbourhoods and Growth,SHELL UK OIL PRODUCTS LTD,"7,626.88",COMMERCIAL VEH CTRL A/C,VEHICLE FUEL,5902616233,1000081254
18.01.2024,Housing,DRISCOLL KINGSTON SOLICITORS,"7,625.00",DISREPAIR,PAYMENTS FOR LEGAL SERVICES,2103810531,1000082357
08.01.2024,Housing,CONTAKT LTD,"7,600.00",ENG CONTRACTS,PROFESSIONAL FEES,5902616065,1000089730
16.01.2024,Governance and Assurance,EXCEL EXECUTIVE LTD,"7,599.37",REPAIR AND MAINTENANCE SERVICES,CAB FARES,5902617624,1000080424
22.01.2024,Environment Neighbourhoods and Growth,ZFA ACCOMMODATION LTD,"7,595.00",UKRAINIAN REFUGEES,ACCOMMODATION CHARGES,5902618532,1000082620
10.01.2024,Children and Adults,HEBER PRIMARY SCHOOL,"7,583.00",LBS MAINSTREAM,HIGH NEEDS - TOP UP FUNDING,5902616561,5001000035
15.01.2024,Children and Adults,BRANDON TRUST,"7,564.52",LD LTS 18-64,SUPPORTED LIVING,2103808695,1000042417
15.01.2024,Children and Adults,BRANDON TRUST,"7,564.52",LD LTS 18-64,SUPPORTED LIVING,2103808779,1000042417
15.01.2024,Children and Adults,BRANDON TRUST,"7,564.52",LD LTS 18-64,SUPPORTED LIVING,2103808878,1000042417
15.01.2024,Children and Adults,BRANDON TRUST,"7,564.52",LD LTS 18-64,SUPPORTED LIVING,2103809191,1000042417
15.01.2024,Children and Adults,COUNTRY COURT CARE HOMES 2 LTD,"7,563.24",PHY LTS 65+,NURSING PLACEMENTS FEES,2103808857,1000080172
15.01.2024,Children and Adults,COUNTRY COURT CARE HOMES 2 LTD,"7,563.24",PHY LTS 65+,NURSING PLACEMENTS FEES,2103809634,1000080172
31.01.2024,Children and Adults,KINGSDALE FOUNDATION SCHOOL,"7,560.00",TRADE UNIONS,SCHOOLS CAPITATION,2103817788,1000065405
15.01.2024,Children and Adults,CHOICE SUPPORT,"7,551.88",LD LTS 18-64,SUPPORTED LIVING,2103809419,1104183
12.01.2024,Children and Adults,REDACTED PERSONAL DATA,"7,550.00",LD LTS 18-64,PAYMENTS TO CLIENTS (DIRECT PAYMENTS),2103808125,1000086296
15.01.2024,Children and Adults,GARLAND LODGE LTD,"7,546.24",LD LTS 18-64,SUPPORTED LIVING,2103808912,1000084016
18.01.2024,Children and Adults,KEYRING-LIVING SUPPORT NETWORKS LTD,"7,544.87",LD LTS 18-64,EXTERNAL AGENCIES AND BODIES,5902617361,1486496
18.01.2024,Children and Adults,KEYRING-LIVING SUPPORT NETWORKS LTD,"7,544.87",LD LTS 18-64,EXTERNAL AGENCIES AND BODIES,5902617362,1486496
15.01.2024,Children and Adults,AGINCARE (SOUTHWARK) LIMITED,"7,542.86",PHY LTS 65+,RESIDENTIAL CARE,2103808717,1000089635
15.01.2024,Children and Adults,CHOICE SUPPORT,"7,535.60",LD LTS 65+,SUPPORTED LIVING,2103809317,1104183
15.01.2024,Children and Adults,GREEN CARE AND SUPPORT LIMITED,"7,529.60",LD LTS 18-64,SUPPORTED LIVING,2103808685,1000087661
09.01.2024,Environment Neighbourhoods and Growth,SHELL UK OIL PRODUCTS LTD,"7,527.58",COMMERCIAL VEH CTRL A/C,VEHICLE FUEL,5902616223,1000081254
15.01.2024,Children and Adults,REDACTED PERSONAL DATA,"7,512.96",LD LTS 18-64,SUPPORTED LIVING,2103809253,1000088380
10.01.2024,Children and Adults,CHERRY GARDEN SCHOOL,"7,510.00",TRUST FUND DRAW DOWN,SCHOOLS CAPITATION,2103806679,5001000020
12.01.2024,Children and Adults,PEOPLE PLUS GROUP LTD (INDEPENDENT LIVING SERVICES),"7,509.58",PHY LTS 65+,DISCRETIONARY FLEXIBLE FEES & INCOME,2103808116,1000061886
15.01.2024,Children and Adults,WELLSPRING CARE HOMES LIMITED,"7,508.00",LD LTS 18-64,SUPPORTED LIVING,2103809215,1000088216
10.01.2024,Children and Adults,ST JOHNS & ST CLEMENTS CE SCHOOL,"7,500.00",LBS RB / SEN UNIT,HIGH NEEDS - TOP UP FUNDING,5902616654,5001000073
10.01.2024,Children and Adults,TOWER BRIDGE PRIMARY SCHOOL,"7,500.00",LBS MAINSTREAM,HIGH NEEDS - TOP UP FUNDING,5902616692,5001000095
11.01.2024,Environment Neighbourhoods and Growth,REDACTED PERSONAL DATA,"7,500.00",UKRAINIAN PROGRAMME,GRANTS,5902616992,6300000255
15.01.2024,Housing,ARMINA LTD,"7,480.02",DISREPAIR,BUILDING R&M,2103808343,3000002121
15.01.2024,Children and Adults,BEECHCROFT SUPPORT LIMITED,"7,475.52",LD LTS 18-64,SUPPORTED LIVING,2103809655,1000085412
15.01.2024,Children and Adults,LONDON CYRENIANS HOUSING LTD,"7,470.12",LD LTS 18-64,SUPPORTED LIVING,2103809115,1000078600
13.01.2024,Finance,NEC SOFTWARE SOLUTIONS UK LTD,"7,468.00",ADMINISTRATIVE SUPPORT,SOFTWARE,5902617062,1000087043
31.01.2024,Housing,ANTONY HODARI  SOLICITORS,"7,463.56",TA HOSTELS,PAYMENTS FOR LEGAL SERVICES,2103817781,1000031040
06.01.2024,Housing,ADECCO UK LTD,"7,462.65",BUILDING SAFETY PROGRAMME,PROFESSIONAL FEES,5902615494,1000017669
15.01.2024,Children and Adults,ALWAYS INCLUSIVE LTD,"7,450.56",LD LTS 18-64,SUPPORTED LIVING,2103809249,1000088268
12.01.2024,Children and Adults,I.E. INFORMAL EDUCATION LTD,"7,430.38",AP & HOSPITAL SCHLS,STATEMENTED FEES,2103806912,1000090544
15.01.2024,Children and Adults,LONDON CYRENIANS HOUSING LTD,"7,427.20",LD LTS 18-64,SUPPORTED LIVING,2103809620,1000078600
30.01.2024,Environment Neighbourhoods and Growth,PROJECT CENTRE LTD,"7,420.00",TRANSPORT PROJECTS,OTHER CONTRACTORS,5902619776,1000072621
10.01.2024,Children and Adults,GRANGE PRIMARY SCHOOL,"7,417.00",LBS MAINSTREAM,HIGH NEEDS - TOP UP FUNDING,5902616544,5001000029
31.01.2024,Housing,OSBORNES SOLICITORS,"7,416.67",DISREPAIR,PAYMENTS FOR LEGAL SERVICES,2103817823,1000052598
15.01.2024,Children and Adults,HIGH VIEW CARE SERVICES LTD,"7,398.72",MH LTS 18-64,RESIDENTIAL CARE,2103809237,1000065920
15.01.2024,Children and Adults,CHOICE SUPPORT,"7,395.32",LD LTS 18-64,RESIDENTIAL CARE,2103809239,1104183
12.01.2024,DSO,RTS WASTE MANAGEMENT LTD,"7,386.30",VOIDS OVERHEADS,WASTE DISPOSAL CONTRACT,5902617207,1000061248
15.01.2024,Children and Adults,AGINCARE (SOUTHWARK) LIMITED,"7,385.71",DISCHARGE TO ACCESS,NURSING PLACEMENTS FEES,2103809698,1000089635
10.01.2024,Children and Adults,HOMERTON UNIVERSITY HOSPITAL NHS FOUNDATION TRUST,"7,355.21",SEXUAL HEALTH - STI,MEDICAL / HEALTH & SAFETY SERVICES,5902616710,1000075435
19.01.2024,Corporate,DULWICH WOOD PRIMARY SCHOOL,"7,352.04",EDUCATION VAT INPUTS,VAT CONTROL ACCOUNT,2103812178,5001000042
23.01.2024,Suspense,LONDON TOOLS LIMITED,"7,350.00",SUSPENSE ACCOUNT (COMPANY CODE 1000),CREDITORS -GR/IR CLEARING ACCOUNT,5902618781,1000003017
25.01.2024,Environment Neighbourhoods and Growth,METIS CONSULTANTS LIMITED,"7,350.00",CAPITAL PS (LEISURE),CONSTRUCTION,5902619113,1000086330
15.01.2024,Children and Adults,BURGESS AUTISTIC TRUST,"7,349.48",LD LTS 18-64,SUPPORTED LIVING,2103809367,1000044550
19.01.2024,Environment Neighbourhoods and Growth,LEASEPLAN UK LTD,"7,337.83",COMMERCIAL VEH CTRL A/C,HIRED VEHICLES,5902618325,11014756
10.01.2024,Children and Adults,BRUNSWICK PARK PRIMARY SCHOOL,"7,333.00",LBS RB / SEN UNIT,HIGH NEEDS - BASE FUNDING,5902616504,5001000013
10.01.2024,Children and Adults,BRUNSWICK PARK PRIMARY SCHOOL,"7,333.00",LBS MAINSTREAM,HIGH NEEDS - TOP UP FUNDING,5902616507,5001000013
10.01.2024,Children and Adults,ST JAMES THE GREAT RC SCHOOL,"7,333.00",LBS MAINSTREAM,HIGH NEEDS - TOP UP FUNDING,5902616651,5001000071
19.01.2024,Finance,DSI BILLING SERVICES LTD,"7,313.08",ADMINISTRATIVE SUPPORT,POSTAGES,5902617269,1000058640
15.01.2024,Children and Adults,BRANDON TRUST,"7,299.92",LD LTS 18-64,SUPPORTED LIVING,2103809327,1000042417
09.01.2024,Children and Adults,MFFL SOLUTIONS LTD,"7,284.00",HOLIDAY ACTIVITIES & FOOD,EXTERNAL AGENCIES AND BODIES,5902616361,1000086575
22.01.2024,Environment Neighbourhoods and Growth,INNER CIRCLE CONSULTING,"7,275.00",STRATEGIC DIRECTOR'S OFFICE E AND L,CONSULTANTS SERVICES,5902618623,1000080627
30.01.2024,Environment Neighbourhoods and Growth,GERALD EVE LLP,"7,260.00",DAMILOLA TAYLOR CENTRE,PROFESSIONAL FEES,5902619748,1000077002
15.01.2024,Children and Adults,ALWAYS INCLUSIVE LTD,"7,250.88",LD LTS 18-64,SUPPORTED LIVING,2103808814,1000088268
10.01.2024,Children and Adults,BOUCHER C OF E PRIMARY SCHOOL,"7,250.00",LBS MAINSTREAM,HIGH NEEDS - TOP UP FUNDING,5902616501,5001000011
15.01.2024,Children and Adults,SALISBURY SUPPORT 4 AUTISM LTD,"7,235.20",LD LTS 18-64,SUPPORTED LIVING,2103809590,1000082674
19.01.2024,Corporate,DULWICH VILLAGE CE INFANTS SCHOOL,"7,207.93",EDUCATION VAT INPUTS,VAT CONTROL ACCOUNT,2103812213,5001000027
12.01.2024,Children and Adults,PEOPLE PLUS GROUP LTD (INDEPENDENT LIVING SERVICES),"7,200.00",LD LTS 18-64 AAD,PAYMENTS TO CLIENTS (DIRECT PAYMENTS),2103807393,1000061886
22.01.2024,Finance,AMPLIFY TECHNOLOGY LIMITED,"7,200.00",SAP & PAYROLL STAFFING COSTS,CONSULTANTS SERVICES,5902617804,1000090570
29.01.2024,Finance,BPS CHARTERED SURVEYORS,"7,180.00",STRATEGIC APPLICATIONS,PROFESSIONAL FEES,5902619501,1000077923
15.01.2024,Housing,EQUANS REGENERATION (APOLLO) LTD,"7,178.22",CAPITAL PS (HRA),CONSTRUCTION MAIN CONTRACT -CERTIFICATED,2103808349,4000449
09.01.2024,Children and Adults,BRUNSWICK PARK PRIMARY SCHOOL,"7,171.75",COVID-19 SCHOOLS GRANTS,SCHOOLS CAPITATION,2103805349,5001000013
10.01.2024,Children and Adults,ENGLISH MARTYRS RC PRIMARY SCHOOL,"7,167.00",LBS MAINSTREAM,HIGH NEEDS - TOP UP FUNDING,5902616548,5001000030
15.01.2024,Children and Adults,COUNTRY COURT CARE HOMES 2 LTD,"7,163.24",DISCHARGE TO ACCESS,NURSING PLACEMENTS FEES,2103808852,1000080172
10.01.2024,Housing,HEXAGON HOUSING ASSOCIATION LTD,"7,153.14",JOE RICHARDS HOSTEL,EXTERNAL AGENCIES AND BODIES,5902616442,1000014698
15.01.2024,Children and Adults,BRANDON TRUST,"7,142.20",LD LTS 18-64,SUPPORTED LIVING,2103808835,1000042417
15.01.2024,Children and Adults,BRANDON TRUST,"7,141.32",LD LTS 18-64,SUPPORTED LIVING,2103808706,1000042417
15.01.2024,Children and Adults,BRANDON TRUST,"7,141.32",LD LTS 18-64,SUPPORTED LIVING,2103809433,1000042417
15.01.2024,Children and Adults,BRANDON TRUST,"7,141.32",LD LTS 18-64,SUPPORTED LIVING,2103809435,1000042417
15.01.2024,Children and Adults,ALWAYS INCLUSIVE LTD,"7,138.56",LD LTS 18-64,SUPPORTED LIVING,2103808816,1000088268
15.01.2024,Children and Adults,ALWAYS INCLUSIVE LTD,"7,138.56",LD LTS 18-64,SUPPORTED LIVING,2103809540,1000088268
15.01.2024,Children and Adults,OVAL CARE HOMES LTD,"7,113.60",LD LTS 18-64,SUPPORTED LIVING,2103808939,1000089506
19.01.2024,Corporate,ST JOHNS RC PRIMARY SCHOOL,"7,092.84",EDUCATION VAT INPUTS,VAT CONTROL ACCOUNT,2103812163,5001000075
15.01.2024,Children and Adults,GREEN CARE AND SUPPORT LIMITED,"7,072.00",LD LTS 18-64,SUPPORTED LIVING,2103808817,1000087661
15.01.2024,Children and Adults,CHOICE SUPPORT,"7,064.12",LD LTS 18-64,SUPPORTED LIVING,2103809188,1104183
15.01.2024,Children and Adults,CLACTON FAMILY TRUST RESIDENTIAL HOME,"7,062.52",LD LTS 18-64,SUPPORTED LIVING,2103808813,1000086761
30.01.2024,Children and Adults,E A JIGSAW CARE LIMITED,"7,062.07",SEMI-IND LAC 16-17,OTHER PAYMENTS FOR CLIENTS,2103816505,1000084233
15.01.2024,Children and Adults,ST JOHNS NURSING HOME LTD,"7,059.20",DISCHARGE TO ACCESS,NURSING PLACEMENTS FEES,2103808771,1000047405
31.01.2024,Environment Neighbourhoods and Growth,KENT COUNTY COUNCIL - LASER,"7,055.22",SOUTHWARK ATHLETICS CENTRE,ELECTRICITY,5902620101,1000012926
31.01.2024,Environment Neighbourhoods and Growth,KENT COUNTY COUNCIL - LASER,"7,055.22",SOUTHWARK ATHLETICS CENTRE,ELECTRICITY,5902620103,1000012926
31.01.2024,Environment Neighbourhoods and Growth,KENT COUNTY COUNCIL - LASER,"7,055.22",SOUTHWARK ATHLETICS CENTRE,ELECTRICITY,5902620106,1000012926
27.01.2024,Finance,DSI BILLING SERVICES LTD,"7,053.15",ADMINISTRATIVE SUPPORT,POSTAGES,5902619127,1000058640
15.01.2024,Children and Adults,ACHIEVE TOGETHER SERVICES LIMITED,"7,052.50",LD LTS 18-64,OTHER PAYMENTS FOR CLIENTS,2103808842,1000089975
30.01.2024,Housing,HMRC STAMP TAXES ONLY SDLT,"7,050.00",CAPITAL PS (HRA),LAND & BUILDINGS ACQUISITION,5902619662,1000052141
15.01.2024,Children and Adults,CRAEGMOOR HEALTHCARE,"7,047.92",LD LTS 18-64,RESIDENTIAL CARE,2103808898,1323845
26.01.2024,Housing,SHARPE PRITCHARD LLP,"7,044.50",CAPITAL PS (HRA),CONSTRUCTION FEES - LEGAL,5902619486,1790085
19.01.2024,Corporate,ST GEORGES RC SCHOOL,"7,042.91",EDUCATION VAT INPUTS,VAT CONTROL ACCOUNT,2103812153,5001000068
15.01.2024,Children and Adults,GREEN CARE AND SUPPORT LIMITED,"7,040.00",LD LTS 18-64 AAD,SUPPORTED LIVING,2103809401,1000087661
16.01.2024,Housing,DIAMOND PROPERTY MANAGEMENT LTD,"7,037.00",TA PLACEMENTS,EXTERNAL AGENCIES AND BODIES,5902617634,1000088789
15.01.2024,Children and Adults,CHOICE SUPPORT,"7,036.76",LD LTS 18-64,SUPPORTED LIVING,2103809312,1104183
29.01.2024,Children and Adults,DRUMBEAT DOWNHAM SCHOOL,"7,035.25",OTHER LA SPECIAL,STATEMENTED FEES,2103815841,1000072258
29.01.2024,Housing,BUGLER DEVELOPMENTS LIMITED,"7,022.34",CAPITAL PS (HRA),CONSTRUCTION MAIN CONTRACT -CERTIFICATED,2103816270,3000002217
12.01.2024,Children and Adults,PEOPLE PLUS GROUP LTD (INDEPENDENT LIVING SERVICES),"7,018.20",LD LTS 18-64,DISCRETIONARY FLEXIBLE FEES & INCOME,2103807916,1000061886
12.01.2024,Children and Adults,PEOPLE PLUS GROUP LTD (INDEPENDENT LIVING SERVICES),"7,014.72",PHB - SEL ICB,RECOVERABLE COSTS INCL. HEALTH,2103807598,1000061886
15.01.2024,Children and Adults,VOYAGE LTD (EVESLEIGH KENT),"7,010.28",LD LTS 18-64,RESIDENTIAL CARE,2103808749,1000041320
09.01.2024,Children and Adults,THE ST THOMAS THE APOSTLE COLLEGE,"7,008.75",COVID-19 SCHOOLS GRANTS,SCHOOLS CAPITATION,2103805329,5001000074
13.01.2024,Environment Neighbourhoods and Growth,QUADRON SERVICES LIMITED,"7,000.00",CEMETERIES,GROUNDS MAINTENANCE,5902616388,1000066528
10.01.2024,Children and Adults,ST SAVIOURS & ST OLAVES SCHOOL,"7,000.00",LBS MAINSTREAM,HIGH NEEDS - TOP UP FUNDING,5902616678,5001000084
10.01.2024,Children and Adults,PHOENIX PRIMARY SCHOOL,"6,996.25",COVID-19 SCHOOLS GRANTS,SCHOOLS CAPITATION,2103805342,5001000032
18.01.2024,Children and Adults,SUPRA UK LTD,"6,988.50",TELECARE EQUIPMENT,EQUIPMENT PURCHASE & REPAIR,5902618217,1000048522
15.01.2024,Children and Adults,CHOICE SUPPORT,"6,988.32",LD LTS 18-64,SUPPORTED LIVING,2103809291,1104183
17.01.2024,Environment Neighbourhoods and Growth,GOLDSTONE ESTATES LTD,"6,977.30",NO RECOURSE TO PUBLIC FUNDS,ACCOMMODATION CHARGES,5902617806,1000076548
29.01.2024,Children and Adults,DRUMBEAT DOWNHAM SCHOOL,"6,975.00",OTHER LA SPECIAL,STATEMENTED FEES,2103815844,1000072258
29.01.2024,Children and Adults,DRUMBEAT DOWNHAM SCHOOL,"6,975.00",OTHER LA SPECIAL,STATEMENTED FEES,2103815845,1000072258
08.01.2024,Finance,INFOSYS LIMITED,"6,971.00",CAPITAL PS (STRAT SERV),ICT ACQUISITION,5902615988,1000088973
22.01.2024,Suspense,HSF HEALTH PLAN,"6,958.93",SUSPENSE ACCOUNT (COMPANY CODE 1000),PAYROLL - 3RD PARTY DEDUCTIONS,2103813278,1000053489
15.01.2024,Children and Adults,COGNITHAN LTD,"6,952.20",PHY LTS 18-64,SUPPORTED LIVING,2103809269,1000090046
05.01.2024,Children and Adults,NATIONAL FOSTERING AGENCY LTD,"6,928.02",FRIENDS & FAMILY FOSTERING,EXTERNAL AGENCIES AND BODIES,2103804886,1000038868
15.01.2024,Children and Adults,CHOICE SUPPORT,"6,924.68",LD LTS 18-64,SUPPORTED LIVING,2103809006,1104183
15.01.2024,Children and Adults,ARIA HEALTHCARE GROUP LTD,"6,921.16",PHY LTS 18-64,NURSING PLACEMENTS FEES,2103809674,1000090139
15.01.2024,Children and Adults,VOYAGE LTD (EVESLEIGH KENT),"6,921.12",LD LTS 18-64,RESIDENTIAL CARE,2103809169,1000041320
19.01.2024,Children and Adults,PERMANENT FUTURES LTD,"6,900.00",CAPITAL PS (SOC SERV),ICT ACQUISITION,5902618358,1000089361
03.01.2024,Strategy and Communities,PECAN LTD,"6,890.00",VCS GRANTS,GRANTS,5902615439,11263114
10.01.2024,Children and Adults,PILGRIM'S WAY PRIMARY SCHOOL,"6,889.00",NURSERY ED GRANT 3 AND 4 YR OLDS,EARLY YEARS - 3 AND 4 YEAR OLDS,5902616602,5001000054
17.01.2024,Environment Neighbourhoods and Growth,RS REAL ESTATE LTD,"6,865.00",NO RECOURSE TO PUBLIC FUNDS,ACCOMMODATION CHARGES,5902617954,1000072485
15.01.2024,Children and Adults,CARE UK,"6,851.52",PHY LTS 65+,NURSING PLACEMENTS FEES,2103809153,1000063363
17.01.2024,Environment Neighbourhoods and Growth,THE PARTICIPATION PEOPLE,"6,849.50",COMMUNITY SAFETY FUND,PROFESSIONAL FEES,5902618095,1000074059
24.01.2024,Children and Adults,BRESLIN CONSTRUCTION LTD,"6,840.00",COMMISSIONING DIRECTORATE,SECURITY EQUIPMENT F&F,5902618959,1000078031
15.01.2024,Children and Adults,INDEPENDENCE HOMES LTD,"6,834.12",LD LTS 18-64,SUPPORTED LIVING,2103809452,1000058961
22.01.2024,Housing,RESOLUTE  LEGAL,"6,833.33",DISREPAIR,PAYMENTS FOR LEGAL SERVICES,2103812999,1000087819
31.01.2024,Environment Neighbourhoods and Growth,KENT COUNTY COUNCIL - LASER,"6,827.60",SOUTHWARK ATHLETICS CENTRE,ELECTRICITY,5902620100,1000012926
11.01.2024,Environment Neighbourhoods and Growth,KENT COUNTY COUNCIL - LASER,"6,827.59",GMH GERALDINE MARY HARMSWORTH,ELECTRICITY,5902617072,1000012926
19.01.2024,Corporate,RYE OAK PRIMARY SCHOOL,"6,825.42",EDUCATION VAT INPUTS,VAT CONTROL ACCOUNT,2103812180,5001000059
13.01.2024,Finance,SAPPHIRE CONSULTANCY LIMITED,"6,825.00",SMART DIGITAL TRANSFORMATION,OTHER CONTRACTORS,5902616771,1000089101
31.01.2024,Housing,LIVING ACCOMMODATION LTD,"6,820.00",NIGHTLY TA (NSC),EXTERNAL AGENCIES AND BODIES,5902620258,1000063985
15.01.2024,Children and Adults,STEPPING STONES RESETTLEMENT UNIT,"6,810.64",LD LTS 18-64,RESIDENTIAL CARE,2103808869,1000032806
29.01.2024,Environment Neighbourhoods and Growth,KENT COUNTY COUNCIL - LASER,"6,803.16",CANADA WATER LIBRARY,GAS,5902619537,1000012926
03.01.2024,Housing,BRITISH GAS TRADING LTD,"6,775.64",RESIDENT SERVICES BUSINESS SUPPORT,ELECTRICITY,5902615589,1000055977
10.01.2024,Children and Adults,OLIVER GOLDSMITH PRIMARY SCHOOL,"6,750.00",LBS MAINSTREAM,HIGH NEEDS - TOP UP FUNDING,5902616596,5001000051
15.01.2024,Children and Adults,SAFFRONLAND HOMES,"6,737.12",LD LTS 65+,RESIDENTIAL CARE,2103809100,11172608
16.01.2024,Environment Neighbourhoods and Growth,NIBLOCK (BUILDERS) LTD,"6,722.14",CAPITAL PS (REGEN),CONSTRUCTION MAIN CONTRACT -CERTIFICATED,5902617645,1000088153
15.01.2024,Children and Adults,HARBLEDOWN LODGE,"6,720.00",PHY LTS 65+,NURSING PLACEMENTS FEES,2103809019,1000068526
17.01.2024,Housing,VIGILANT SECURITY SERVICES UK,"6,720.00",DAVID BARKER HOSTEL,SECURITY SERVICES,5902617808,1000090073
30.01.2024,Children and Adults,FUTURES FOR CHILDREN LIMITED,"6,713.98",FRIENDS & FAMILY FOSTERING,EXTERNAL AGENCIES AND BODIES,2103816596,1000041984
15.01.2024,Children and Adults,CHOICE SUPPORT,"6,713.00",LD LTS 18-64,SUPPORTED LIVING,2103809311,1104183
23.01.2024,Environment Neighbourhoods and Growth,REDACTED PERSONAL DATA,"6,700.00",UKRAINIAN PROGRAMME,GRANTS,5902618804,6300000077
19.01.2024,Housing,HARROW GREEN LTD,"6,694.00",RESIDENT SERVICES BUSINESS SUPPORT,REMOVAL EXPENSES,5902617162,1000076673
15.01.2024,Children and Adults,CHOICE SUPPORT,"6,686.84",LD LTS 18-64,SUPPORTED LIVING,2103809530,1104183
30.01.2024,Children and Adults,THE XCEL 2000 PARTNERSHIP LTD,"6,668.66",FRIENDS & FAMILY FOSTERING,EXTERNAL AGENCIES AND BODIES,2103816563,1000024427
10.01.2024,Children and Adults,PETER HILLS CE SCHOOL,"6,667.00",LBS RB / SEN UNIT,HIGH NEEDS - BASE FUNDING,5902616599,5001000053
10.01.2024,Children and Adults,ROBERT BROWNING PRIMARY SCHOOL,"6,667.00",LBS RB / SEN UNIT,HIGH NEEDS - BASE FUNDING,5902616611,5001000057
10.01.2024,Housing,COYNE LEARMONTH (CROSBY) LIMITED,"6,666.67",DISREPAIR,PAYMENTS FOR LEGAL SERVICES,2103806807,1000088221
22.01.2024,Housing,FIRST DISPUTE  MANAGEMENT LIMITED,"6,666.67",DISREPAIR,PAYMENTS FOR LEGAL SERVICES,2103813003,1000090244
15.01.2024,Children and Adults,PRIORY,"6,665.48",PHY LTS 18-64,NURSING PLACEMENTS FEES,2103809500,1000015902
12.01.2024,Children and Adults,REDACTED PERSONAL DATA,"6,644.40",LD LTS 18-64,PAYMENTS TO CLIENTS (DIRECT PAYMENTS),2103808065,1000060258
08.01.2024,Environment Neighbourhoods and Growth,LEISURE PEOPLE LIMITED,"6,641.93",LEISURE CENTRAL COST,RECRUITMENT ADVERTISING,5902616037,1000089699
30.01.2024,Children and Adults,INTEGRATED SERVICES PROGRAMME,"6,638.69",FRIENDS & FAMILY FOSTERING,EXTERNAL AGENCIES AND BODIES,2103816582,1642068
09.01.2024,Children and Adults,SOUTHWARK PARK PRIMARY SCHOOL,"6,633.75",COVID-19 SCHOOLS GRANTS,SCHOOLS CAPITATION,2103805381,5001000062
30.01.2024,Children and Adults,MOSAIC FOSTER CARE LTD,"6,626.25",FRIENDS & FAMILY FOSTERING,EXTERNAL AGENCIES AND BODIES,2103816552,1000076259
15.01.2024,Children and Adults,PLUS SERVICES,"6,619.56",LD LTS 65+,SUPPORTED LIVING,2103809112,1000021241
19.01.2024,Corporate,ILDERTON PRIMARY SCHOOL,"6,617.88",EDUCATION VAT INPUTS,VAT CONTROL ACCOUNT,2103812183,5001000037
05.01.2024,Children and Adults,LIKA FAMILY FOSTERING,"6,607.43",FRIENDS & FAMILY FOSTERING,EXTERNAL AGENCIES AND BODIES,2103804871,1000080099
31.01.2024,Housing,LIVING ACCOMMODATION LTD,"6,600.00",NIGHTLY TA (NSC),EXTERNAL AGENCIES AND BODIES,5902620259,1000063985
09.01.2024,Children and Adults,CRAWFORD PRIMARY SCHOOL,"6,597.50",COVID-19 SCHOOLS GRANTS,SCHOOLS CAPITATION,2103805385,5001000024
21.01.2024,Finance,BPS CHARTERED SURVEYORS,"6,580.00",MAJOR APPLICATIONS,PROFESSIONAL FEES,5902617428,1000077923
22.01.2024,Housing,OLIVER LANDON LTD,"6,572.00",NIGHTLY TA (NSC),EXTERNAL AGENCIES AND BODIES,5902618628,1000082788
16.01.2024,Environment Neighbourhoods and Growth,FABRIKAT (NOTTINGHAM) LTD,"6,563.30",PUBLIC LIGHTING,MATERIALS,5902617777,1036223
09.01.2024,Children and Adults,SOUTHWARK INCLUSIVE LEARNING SERVICE,"6,555.00",COVID-19 SCHOOLS GRANTS,SCHOOLS CAPITATION,2103805396,5001000105
29.01.2024,Housing,SALTASH ENTERPRISES LTD,"6,542.78",CAPITAL PS (HRA),CONSTRUCTION MAIN CONTRACT -CERTIFICATED,2103816283,4013605
03.01.2024,Children and Adults,PROSPERO RECRUITMENT LTD,"6,540.00",VIRTUAL SCHOOL PP,EXTERNAL AGENCIES AND BODIES,5902615581,1000082492
09.01.2024,Housing,BRIDGEWATER ROOFING CONTRACTORS LTD,"6,534.27",MAJOR REPAIRS,BUILDING R&M,2103805232,3000001482
24.01.2024,Children and Adults,REDACTED PERSONAL DATA,"6,514.28",STAYPUT- FOST CARERS,PAYMENTS TO CARERS,2103814728,1000010849
15.01.2024,Children and Adults,BRANDON TRUST,"6,507.16",LD LTS 18-64,SUPPORTED LIVING,2103809434,1000042417
19.01.2024,Environment Neighbourhoods and Growth,GLENDALE COUNTRYSIDE LTD,"6,498.96",TREES TERM CONTRACT,TREE MAINTENANCE,5902618408,1000070980
15.01.2024,Housing,PRB ESTATES LTD,"6,487.60",DUCTCLEAN,I-WORLD CONTRACTORS HOLDING ACCOUNT,2103808374,3000001691
31.01.2024,Housing,M&S LAW  LTD,"6,478.50",DISREPAIR,PAYMENTS FOR LEGAL SERVICES,2103817846,1000089057
10.01.2024,Housing,DRISCOLL KINGSTON SOLICITORS,"6,458.33",DISREPAIR,PAYMENTS FOR LEGAL SERVICES,2103806784,1000082357
15.01.2024,Children and Adults,OPTIMA CARE (SHINE) LONDON LTD,"6,453.84",LD LTS 18-64,SUPPORTED LIVING,2103808680,1000079614
25.01.2024,Housing,LONDON CLAPHAM SOUTH LTD,"6,450.00",NIGHTLY TA (NSC),EXTERNAL AGENCIES AND BODIES,5902619158,1000087760
15.01.2024,Children and Adults,KEMPTON CARE AND SUPPORT SERVICES LTD,"6,448.00",LD LTS 18-64,SUPPORTED LIVING,2103809252,1000087491
15.01.2024,Children and Adults,KEEVA CARE LIMITED,"6,428.60",LD LTS 18-64,SUPPORTED LIVING,2103808916,1000086100
15.01.2024,Children and Adults,AGINCARE (SOUTHWARK) LIMITED,"6,428.57",PHY LTS 65+,NURSING PLACEMENTS FEES,2103809015,1000089635
12.01.2024,Housing,NOWMEDICAL LTD,"6,420.00",HOUSING OPTIONS,PROFESSIONAL FEES,5902617220,1000068185
15.01.2024,Children and Adults,BRANDON TRUST,"6,417.64",LD LTS 18-64,SUPPORTED LIVING,2103809206,1000042417
31.01.2024,Children and Adults,LONDON SOUTH EAST ACADEMIES TRUST,"6,416.66",AC & FREE - MSTREAM,STATEMENTED FEES,2103817871,1000088592
15.01.2024,Children and Adults,THE MEATH,"6,414.28",LD LTS 18-64,RESIDENTIAL CARE,2103808746,1000056796
15.01.2024,Children and Adults,AGINCARE (SOUTHWARK) LIMITED,"6,407.14",PHY LTS 65+,RESIDENTIAL CARE,2103809416,1000089635
15.01.2024,Children and Adults,BRANDON TRUST,"6,395.28",LD LTS 18-64,SUPPORTED LIVING,2103808888,1000042417
15.01.2024,Children and Adults,BRANDON TRUST,"6,369.36",LD LTS 18-64,SUPPORTED LIVING,2103808707,1000042417
15.01.2024,Children and Adults,BRANDON TRUST,"6,369.36",LD LTS 18-64,SUPPORTED LIVING,2103809679,1000042417
26.01.2024,Environment Neighbourhoods and Growth,KENT COUNTY COUNCIL - LASER,"6,367.79",CREMATORIUM,ELECTRICITY,5902618817,1000012926
19.01.2024,Corporate,ST JAMES CE PRIMARY SCHOOL,"6,363.94",EDUCATION VAT INPUTS,VAT CONTROL ACCOUNT,2103812194,5001000070
15.01.2024,Children and Adults,ACHIEVE TOGETHER SERVICES LIMITED,"6,363.60",MEM LTS 18-64,SUPPORTED LIVING,2103808884,1000089975
27.01.2024,Housing,AJM ADAPTIONS LTD,"6,360.00",CAPITAL PS (HOUSING GF),CAPITAL GRANTS,5902618391,1000080297
15.01.2024,Children and Adults,HC-ONE LTD (TOWER BRIDGE CARE HOME),"6,351.43",MEM LTS 65+,NURSING PLACEMENTS FEES,2103809133,1000067670
27.01.2024,Environment Neighbourhoods and Growth,TOWER HAMLETS YOUTH SPORT FOUNDATION,"6,349.00",NORTH WEST,GRANTS,5902618383,1000087465
30.01.2024,Environment Neighbourhoods and Growth,FABRIKAT (NOTTINGHAM) LTD,"6,348.30",PUBLIC LIGHTING,MATERIALS,5902619829,1036223
09.01.2024,Environment Neighbourhoods and Growth,PROJECT CENTRE LTD,"6,344.00",TRANSPORT PROJECTS,OTHER CONTRACTORS,5902616384,1000072621
11.01.2024,Children and Adults,BARNARDOS SERVICES LTD,"6,340.00",NMSS/ INDEP SPECIAL,STATEMENTED FEES,2103763798,1000063730
29.01.2024,Children and Adults,DRUMBEAT DOWNHAM SCHOOL,"6,333.33",OTHER LA SPECIAL,STATEMENTED FEES,2103815833,1000072258
05.01.2024,Children and Adults,NATIONAL FOSTERING AGENCY LTD,"6,332.68",FRIENDS & FAMILY FOSTERING,EXTERNAL AGENCIES AND BODIES,2103804873,1000038868
14.01.2024,Children and Adults,CHANGE GROW LIVE SERVICES LTD,"6,330.50",SSMTRG,OTHER CONTRACTORS,5902616069,1000082721
30.01.2024,Children and Adults,INTEGRATED SERVICES PROGRAMME,"6,326.21",FRIENDS & FAMILY FOSTERING,EXTERNAL AGENCIES AND BODIES,2103816570,1642068
30.01.2024,Children and Adults,INTEGRATED SERVICES PROGRAMME,"6,326.21",FRIENDS & FAMILY FOSTERING,EXTERNAL AGENCIES AND BODIES,2103816574,1642068
30.01.2024,Children and Adults,INTEGRATED SERVICES PROGRAMME,"6,326.21",FRIENDS & FAMILY FOSTERING,EXTERNAL AGENCIES AND BODIES,2103816589,1642068
26.01.2024,Children and Adults,CLOCKWISE & CARE LTD,"6,314.00",SEMI-IND CARELEAVERS,EXTERNAL AGENCIES AND BODIES,2103815413,1000090131
15.01.2024,Children and Adults,BRANDON TRUST,"6,309.00",LD LTS 18-64,SUPPORTED LIVING,2103809436,1000042417
15.01.2024,Children and Adults,ACCORDIA SUPPORTED LIVINGS SERVICES LTD,"6,308.64",LD LTS 18-64,SUPPORTED LIVING,2103808995,1000089509
15.01.2024,Children and Adults,AGINCARE (SOUTHWARK) LIMITED,"6,285.71",PHY LTS 65+,RESIDENTIAL CARE,2103809141,1000089635
15.01.2024,Children and Adults,RYDE HOUSE,"6,282.96",LD LTS 18-64,SUPPORTED LIVING,2103809121,1022373
22.01.2024,Housing,ALLIED REMEDIAL TREATMENTS LTD,"6,280.97",DISREPAIR,BUILDING R&M,2103813291,4000538
30.01.2024,Children and Adults,HYTHE HOUSE SUPPORT LTD,"6,269.31",FRIENDS & FAMILY FOSTERING,EXTERNAL AGENCIES AND BODIES,2103816586,1000081618
26.01.2024,Housing,POTTER RAPER LTD,"6,266.73",CAPITAL PS (HRA),CONSTRUCTION FEES - EMPLOYERS AGENT,5902619387,1009369
10.01.2024,Housing,KENT COUNTY COUNCIL - LASER,"6,263.72",HEATING ACCOUNT,ELECTRICITY,5902616409,1000012926
19.01.2024,Corporate,ST FRANCIS'S RC PRIMARY SCHOOL,"6,256.14",EDUCATION VAT INPUTS,VAT CONTROL ACCOUNT,2103812187,5001000067
15.01.2024,Children and Adults,SALUTEM SHARED SERVICES III LTD,"6,252.40",PHY LTS 65+,RESIDENTIAL CARE,2103809584,1000088099
17.01.2024,Environment Neighbourhoods and Growth,BIG LOCAL WORKS,"6,250.00",BUSINESS SUPPORT,GRANTS,5902618089,1000082263
15.01.2024,Children and Adults,ACHIEVE TOGETHER SERVICES LIMITED,"6,248.76",LD LTS 18-64,RESIDENTIAL CARE,2103808980,1000089975
23.01.2024,Children and Adults,HOMERTON UNIVERSITY HOSPITAL NHS FOUNDATION TRUST,"6,247.77",SEXUAL HEALTH - STI,MEDICAL / HEALTH & SAFETY SERVICES,5902618914,1000075435
15.01.2024,Children and Adults,GREEN CARE AND SUPPORT LIMITED,"6,240.00",LD LTS 18-64,SUPPORTED LIVING,2103808920,1000087661
15.01.2024,Children and Adults,SUNRISE REHABILITATION CENTRE,"6,240.00",MH LTS 18-64,SUPPORTED LIVING,2103809374,1000086998
15.01.2024,Children and Adults,NEXUS PROGRAMME LTD,"6,240.00",LD LTS 18-64,SUPPORTED LIVING,2103809663,1000025336
04.01.2024,Children and Adults,WHIPPERSNAPPERS CIC,"6,237.00",SHORT BREAKS INNV FUND,EXTERNAL AGENCIES AND BODIES,5902615626,1000062256
09.01.2024,Children and Adults,CHERRY GARDEN SCHOOL,"6,235.00",COVID-19 SCHOOLS GRANTS,SCHOOLS CAPITATION,2103805395,5001000020
15.01.2024,Children and Adults,CHOICE SUPPORT,"6,222.16",LD LTS 18-64,SUPPORTED LIVING,2103809362,1104183
09.01.2024,Children and Adults,BROOK HOUSE CARE CENTRE,"6,214.29",PHY LTS 65+,PLACEMENTS - RESPITE,2103805633,1000081938
15.01.2024,Children and Adults,RAINBOW FOSTERING SERVICES LTD,"6,200.00",FRIENDS & FAMILY FOSTERING,EXTERNAL AGENCIES AND BODIES,2103808439,1000076620
15.01.2024,Children and Adults,HOAMA GROUP LTD,"6,200.00",PHY LTS 18-64,NURSING PLACEMENTS FEES,2103808720,1000090553
30.01.2024,Children and Adults,SAFE HAVEN ACCOMODATION LTD,"6,180.57",SEMI-IND LAC 16-17,EXTERNAL AGENCIES AND BODIES,2103816533,1000081573
16.01.2024,Housing,LONDON CLAPHAM SOUTH LTD,"6,180.00",NIGHTLY TA (NSC),EXTERNAL AGENCIES AND BODIES,5902617753,1000087760
10.01.2024,Children and Adults,PHOENIX PRIMARY SCHOOL,"6,167.00",LBS MAINSTREAM,HIGH NEEDS - TOP UP FUNDING,5902616554,5001000032
10.01.2024,Children and Adults,DULWICH WOOD PRIMARY SCHOOL,"6,167.00",LBS MAINSTREAM,HIGH NEEDS - TOP UP FUNDING,5902616582,5001000042
17.01.2024,Children and Adults,GRANGE PRIMARY SCHOOL,"6,160.00",TRADE UNIONS,SCHOOLS CAPITATION,2103810473,5001000029
15.01.2024,Housing,PENNINGTON CHOICES LTD,"6,156.23",PENNINGTON,I-WORLD CONTRACTORS HOLDING ACCOUNT,5902617318,1000067888
15.01.2024,Children and Adults,BRANDON TRUST,"6,150.48",LD LTS 18-64,SUPPORTED LIVING,2103809437,1000042417
23.01.2024,Environment Neighbourhoods and Growth,WATERMAN INFRASTRUCTURE & ENVIRONMENT LTD,"6,148.84",FLOOD RISK MANAGEMENT,HIGHWAYS TERM CONTRACT,5902618847,1000060529
15.01.2024,Children and Adults,AGINCARE (SOUTHWARK) LIMITED,"6,128.57",LD LTS 65+,RESIDENTIAL CARE,2103809143,1000089635
26.01.2024,Finance,GUYS & ST THOMAS NHS FOUNDATION TRUST,"6,126.00",MORTUARY,OTHER CONTRACTORS,5902619448,1765536
31.01.2024,Children and Adults,EDGE TRAINING AND CONSULTANCY LTD,"6,125.00",ASW - PROFESSIONAL DEVELOPMENT,TRAINING,5902619402,1000057249
30.01.2024,Children and Adults,ASCENT FOSTERING AGENCY LTD,"6,117.23",FRIENDS & FAMILY FOSTERING,EXTERNAL AGENCIES AND BODIES,2103816591,1000074714
03.01.2024,Finance,MNE BUILDING SERVICES LTD,"6,112.50",14-20 SHAND STREET,PROFESSIONAL FEES,5902615398,1000090584
10.01.2024,Children and Adults,PETER HILLS CE SCHOOL,"6,112.00",NURSERY ED GRANT 3 AND 4 YR OLDS,EARLY YEARS - 3 AND 4 YEAR OLDS,5902616597,5001000053
10.01.2024,Children and Adults,CRAWFORD PRIMARY SCHOOL,"6,111.00",NURSERY ED GRANT 3 AND 4 YR OLDS,EARLY YEARS - 3 AND 4 YEAR OLDS,5902616532,5001000024
12.01.2024,Housing,FRANKHAM CONSULTANCY GROUP LTD,"6,107.00",DISREPAIR,BUILDING R&M,5902617266,1000043952
15.01.2024,Children and Adults,CHOICE SUPPORT,"6,098.92",LD LTS 18-64,SUPPORTED LIVING,2103809132,1104183
26.01.2024,Environment Neighbourhoods and Growth,PROJECT CENTRE LTD,"6,095.03",TRANSPORT PROJECTS,OTHER CONTRACTORS,5902619442,1000072621
12.01.2024,Children and Adults,BROADLANDS HALL LIMITED,"6,095.00",INDEP MAINSTREAM,STATEMENTED FEES,2103806919,1000084303
03.01.2024,Strategy and Communities,SOUTHWARK TRAVELLERS' ACTION,"6,095.00",VCS GRANTS,GRANTS,5902615458,1000077795
15.01.2024,Children and Adults,INSIGHT,"6,089.44",LD LTS 18-64,RESIDENTIAL CARE,2103808800,1825618
18.01.2024,Children and Adults,FOSTERING FOR YOU LTD,"6,089.33",FRIENDS & FAMILY FOSTERING,EXTERNAL AGENCIES AND BODIES,2103810695,1000080380
30.01.2024,Children and Adults,INSPIRE SUPPORT WORKERS LTD,"6,073.76",SOCIAL ISOLATION,HOMECARE - SPOT,2103816318,1000080725
15.01.2024,Children and Adults,COMMUNITY INTEGRATED CARE,"6,072.12",LD LTS 18-64,SUPPORTED LIVING,2103808911,1000072886
19.01.2024,Housing,ADECCO UK LTD,"6,062.40",BUILDING SAFETY PROGRAMME,PROFESSIONAL FEES,5902618464,1000017669
06.01.2024,Housing,ADECCO UK LTD,"6,057.00",BUILDING SAFETY PROGRAMME,PROFESSIONAL FEES,5902615519,1000017669
12.01.2024,Housing,ALLPAY LTD,"6,054.47",SERVICE LEVEL AGREEMENTS,BANK CHARGES,5902617259,1000043001
18.01.2024,Governance and Assurance,CORPORATE DOCUMENT SERVICES LTD,"6,051.98",REPAIR AND MAINTENANCE SERVICES,PRINTING,5902618127,11324274
16.01.2024,Children and Adults,ASSOCIATION OF DIRECTORS OF PUBLIC HEALTH (ADPH),"6,050.00",PH DIRECTOR'S TEAM,SUBSCRIPTIONS,5902617687,1000019739
15.01.2024,Children and Adults,SAFFRONLAND HOMES (MUNDANIA),"6,047.36",LD LTS 18-64,RESIDENTIAL CARE,2103809503,1000072153
18.01.2024,Housing,RS REAL ESTATE LTD,"6,045.00",TA PLACEMENTS,EXTERNAL AGENCIES AND BODIES,5902618188,1000072485
15.01.2024,Children and Adults,TRANSFORM SUPPORTED ACCOMMODATION,"6,038.04",LD LTS 18-64,SUPPORTED LIVING,2103808915,1000084155
15.01.2024,Children and Adults,NORTHBROOK HOMES LTD,"6,036.16",LD LTS 18-64,RESIDENTIAL CARE,2103808897,1000083242
15.01.2024,Children and Adults,GARLAND LODGE LTD,"6,032.00",LD LTS 18-64,SUPPORTED LIVING,2103809652,1000084016
15.01.2024,Children and Adults,CHOICE SUPPORT,"6,031.32",LD LTS 18-64,SUPPORTED LIVING,2103808806,1104183
19.01.2024,Corporate,CATHEDRAL SCHOOL OF ST SAVIOUR & MARY,"6,022.75",EDUCATION VAT INPUTS,VAT CONTROL ACCOUNT,2103812192,5001000088
15.01.2024,Children and Adults,BRANDON TRUST,"6,019.44",LD LTS 65+,SUPPORTED LIVING,2103808977,1000042417
15.01.2024,Environment Neighbourhoods and Growth,CYCLE CONFIDENT LTD,"6,003.91",NON LCN CYCLE TRAINING,PROFESSIONAL FEES,5902616944,1000070228
10.01.2024,Children and Adults,ALBION PRIMARY SCHOOL,"6,000.00",PUPIL PREMIUM,SCHOOLS CAPITATION,2103806590,5001000000
10.01.2024,Children and Adults,ALFRED SALTER PRIMARY SCHOOL,"6,000.00",PUPIL PREMIUM,SCHOOLS CAPITATION,2103806591,5001000005
10.01.2024,Children and Adults,BEORMUND PRIMARY SCHOOL,"6,000.00",PUPIL PREMIUM,SCHOOLS CAPITATION,2103806593,5001000008
10.01.2024,Children and Adults,BESSEMER GRANGE PRIMARY SCHOOL,"6,000.00",PUPIL PREMIUM,SCHOOLS CAPITATION,2103806594,5001000009
10.01.2024,Children and Adults,BOUCHER C OF E PRIMARY SCHOOL,"6,000.00",PUPIL PREMIUM,SCHOOLS CAPITATION,2103806596,5001000011
10.01.2024,Children and Adults,BRUNSWICK PARK PRIMARY SCHOOL,"6,000.00",PUPIL PREMIUM,SCHOOLS CAPITATION,2103806597,5001000013
10.01.2024,Children and Adults,CAMELOT PRIMARY SCHOOL,"6,000.00",PUPIL PREMIUM,SCHOOLS CAPITATION,2103806598,5001000014
10.01.2024,Children and Adults,CHARLOTTE  SHARMAN PRIMARY SCHOOL,"6,000.00",PUPIL PREMIUM,SCHOOLS CAPITATION,2103806599,5001000016
10.01.2024,Children and Adults,CHERRY GARDEN SCHOOL,"6,000.00",PUPIL PREMIUM,SCHOOLS CAPITATION,2103806600,5001000020
10.01.2024,Children and Adults,CRAMPTON PRIMARY SCHOOL,"6,000.00",PUPIL PREMIUM,SCHOOLS CAPITATION,2103806602,5001000023
10.01.2024,Children and Adults,CRAWFORD PRIMARY SCHOOL,"6,000.00",PUPIL PREMIUM,SCHOOLS CAPITATION,2103806603,5001000024
10.01.2024,Children and Adults,DULWICH VILLAGE CE INFANTS SCHOOL,"6,000.00",PUPIL PREMIUM,SCHOOLS CAPITATION,2103806605,5001000027
10.01.2024,Children and Adults,ENGLISH MARTYRS RC PRIMARY SCHOOL,"6,000.00",PUPIL PREMIUM,SCHOOLS CAPITATION,2103806607,5001000030
10.01.2024,Children and Adults,FRIARS PRIMARY (FOUNDATION) SCHOOL,"6,000.00",PUPIL PREMIUM,SCHOOLS CAPITATION,2103806609,5001000033
10.01.2024,Children and Adults,GOODRICH PRIMARY SCHOOL,"6,000.00",PUPIL PREMIUM,SCHOOLS CAPITATION,2103806610,5001000028
10.01.2024,Children and Adults,HAYMERLE SCHOOL,"6,000.00",PUPIL PREMIUM,SCHOOLS CAPITATION,2103806612,5001000045
10.01.2024,Children and Adults,HEBER PRIMARY SCHOOL,"6,000.00",PUPIL PREMIUM,SCHOOLS CAPITATION,2103806613,5001000035
10.01.2024,Children and Adults,HIGHSHORE SCHOOL,"6,000.00",PUPIL PREMIUM,SCHOOLS CAPITATION,2103806614,5001000046
10.01.2024,Children and Adults,HOLLYDALE PRIMARY SCHOOL,"6,000.00",PUPIL PREMIUM,SCHOOLS CAPITATION,2103806615,5001000036
10.01.2024,Children and Adults,ILDERTON PRIMARY SCHOOL,"6,000.00",PUPIL PREMIUM,SCHOOLS CAPITATION,2103806616,5001000037
10.01.2024,Children and Adults,KEYWORTH PRIMARY SCHOOL,"6,000.00",PUPIL PREMIUM,SCHOOLS CAPITATION,2103806619,5001000041
10.01.2024,Children and Adults,PHOENIX PRIMARY SCHOOL,"6,000.00",PUPIL PREMIUM,SCHOOLS CAPITATION,2103806623,5001000032
10.01.2024,Children and Adults,PILGRIM'S WAY PRIMARY SCHOOL,"6,000.00",PUPIL PREMIUM,SCHOOLS CAPITATION,2103806624,5001000054
10.01.2024,Children and Adults,ROBERT BROWNING PRIMARY SCHOOL,"6,000.00",PUPIL PREMIUM,SCHOOLS CAPITATION,2103806626,5001000057
10.01.2024,Children and Adults,ST JOSEPHS CATHOLIC SCHOOL,"6,000.00",PUPIL PREMIUM,SCHOOLS CAPITATION,2103806629,5001000076
10.01.2024,Children and Adults,SOUTHWARK PARK PRIMARY SCHOOL,"6,000.00",PUPIL PREMIUM,SCHOOLS CAPITATION,2103806632,5001000062
10.01.2024,Children and Adults,ST ANTHONYS RC SCHOOL,"6,000.00",PUPIL PREMIUM,SCHOOLS CAPITATION,2103806633,5001000064
10.01.2024,Children and Adults,ST FRANCIS'S RC PRIMARY SCHOOL,"6,000.00",PUPIL PREMIUM,SCHOOLS CAPITATION,2103806634,5001000067
10.01.2024,Children and Adults,ST GEORGES RC SCHOOL,"6,000.00",PUPIL PREMIUM,SCHOOLS CAPITATION,2103806635,5001000068
10.01.2024,Children and Adults,ST GEORGES CE SCHOOL,"6,000.00",PUPIL PREMIUM,SCHOOLS CAPITATION,2103806636,5001000069
10.01.2024,Children and Adults,ST JAMES CE PRIMARY SCHOOL,"6,000.00",PUPIL PREMIUM,SCHOOLS CAPITATION,2103806637,5001000070
10.01.2024,Children and Adults,ST JAMES THE GREAT RC SCHOOL,"6,000.00",PUPIL PREMIUM,SCHOOLS CAPITATION,2103806638,5001000071
10.01.2024,Children and Adults,ST JOHNS & ST CLEMENTS CE SCHOOL,"6,000.00",PUPIL PREMIUM,SCHOOLS CAPITATION,2103806639,5001000073
10.01.2024,Children and Adults,ST JOHNS RC PRIMARY SCHOOL,"6,000.00",PUPIL PREMIUM,SCHOOLS CAPITATION,2103806640,5001000075
10.01.2024,Children and Adults,ST JOSEPHS CATHOLIC INFANTS SCHOOL,"6,000.00",PUPIL PREMIUM,SCHOOLS CAPITATION,2103806641,5001000018
10.01.2024,Children and Adults,ST JOSEPHS RC JUNIOR  SCHOOL,"6,000.00",PUPIL PREMIUM,SCHOOLS CAPITATION,2103806642,5001000017
10.01.2024,Children and Adults,ST JOSEPHS CATHOLIC PRIMARY SCHOOL,"6,000.00",PUPIL PREMIUM,SCHOOLS CAPITATION,2103806643,5001000078
10.01.2024,Children and Adults,ST JUDES CHURCH OF ENGLAND PRIMARY,"6,000.00",PUPIL PREMIUM,SCHOOLS CAPITATION,2103806644,5001000019
10.01.2024,Children and Adults,ST MARY MAGDALENE CE SCHOOL,"6,000.00",PUPIL PREMIUM,SCHOOLS CAPITATION,2103806645,5001000080
10.01.2024,Children and Adults,ST SAVIOURS & ST OLAVES SCHOOL,"6,000.00",PUPIL PREMIUM,SCHOOLS CAPITATION,2103806647,5001000084
10.01.2024,Children and Adults,CATHEDRAL SCHOOL OF ST SAVIOUR & MARY,"6,000.00",PUPIL PREMIUM,SCHOOLS CAPITATION,2103806648,5001000088
10.01.2024,Children and Adults,TOWER BRIDGE PRIMARY SCHOOL,"6,000.00",PUPIL PREMIUM,SCHOOLS CAPITATION,2103806650,5001000095
10.01.2024,Children and Adults,TUKE SCHOOL,"6,000.00",PUPIL PREMIUM,SCHOOLS CAPITATION,2103806651,5001000097
10.01.2024,Children and Adults,VICTORY SCHOOL,"6,000.00",PUPIL PREMIUM,SCHOOLS CAPITATION,2103806652,5001000098
10.01.2024,Children and Adults,THE CHARTER SCHOOLS EDUCATIONAL TRUST,"6,000.00",EHCP INCLUSION FUND,HIGH NEEDS - TOP UP FUNDING,2103806757,1000066949
10.01.2024,Children and Adults,TOWER BRIDGE PRIMARY SCHOOL,"6,000.00",EHCP INCLUSION FUND,HIGH NEEDS - TOP UP FUNDING,2103806763,5001000095
10.01.2024,Children and Adults,ALFRED SALTER PRIMARY SCHOOL,"6,000.00",EHCP INCLUSION FUND,HIGH NEEDS - TOP UP FUNDING,2103806764,5001000005
10.01.2024,Children and Adults,ST MARY MAGDALENE CE SCHOOL,"6,000.00",EHCP INCLUSION FUND,HIGH NEEDS - TOP UP FUNDING,2103806770,5001000080
10.01.2024,Children and Adults,COMPASS SCHOOLS TRUST,"6,000.00",EHCP INCLUSION FUND,HIGH NEEDS - TOP UP FUNDING,2103806773,1000076195
15.01.2024,Children and Adults,RAINTREE CARE LTD,"6,000.00",LD LTS 18-64,SUPPORTED LIVING,2103808689,1000087495
15.01.2024,Children and Adults,VALORUM CARE GROUP LIMITED,"6,000.00",PHY LTS 65+,NURSING PLACEMENTS FEES,2103809598,1000089869
15.01.2024,Children and Adults,RAINTREE CARE LTD,"6,000.00",LD LTS 18-64 AAD,SUPPORTED LIVING,2103809672,1000087495
31.01.2024,Housing,BOND TURNER  SOLICITORS,"6,000.00",DISREPAIR,PAYMENTS FOR LEGAL SERVICES,2103817849,1000085362
17.01.2024,Housing,LHG THORNTON HEATH LTD,"6,000.00",NIGHTLY TA (NSC),EXTERNAL AGENCIES AND BODIES,5902617843,1000086942
18.01.2024,Housing,RENT CONNECT HOUSING LTD,"5,986.10",NIGHTLY TA (NSC),EXTERNAL AGENCIES AND BODIES,5902618262,1000074815
03.01.2024,Children and Adults,REDACTED PERSONAL DATA,"5,978.58",SEMI-IND CARELEAVERS,EXTERNAL AGENCIES AND BODIES,2103804583,1000090206
31.01.2024,Children and Adults,REDACTED PERSONAL DATA,"5,978.35",SEMI-IND CARELEAVERS,EXTERNAL AGENCIES AND BODIES,2103818057,1000090206
10.01.2024,Children and Adults,THE CHARTER SCHOOLS EDUCATIONAL TRUST,"5,968.00",FREE FRUIT,SCHOOLS CAPITATION,2103806743,1000066949
05.01.2024,Children and Adults,NATIONAL FOSTERING AGENCY LTD,"5,965.02",DISABILITIES LAC,EXTERNAL AGENCIES AND BODIES,2103804883,1000038868
15.01.2024,Children and Adults,ST JOHNS NURSING HOME LTD,"5,962.60",PHY LTS 18-64,NURSING PLACEMENTS FEES,2103809078,1000047405
15.01.2024,Children and Adults,BZ FOR CARE LTD,"5,952.00",LD LTS 18-64,SUPPORTED LIVING,2103809408,1000089618
15.01.2024,Children and Adults,BRITISH HOME & HOSPITAL FOR INCURABLES,"5,948.48",PHY LTS 18-64,NURSING PLACEMENTS FEES,2103809265,1001606
30.01.2024,Children and Adults,INSPIRE SUPPORT WORKERS LTD,"5,947.60",LD LTS 18-64,SUPPORTED LIVING,2103816319,1000080725
15.01.2024,Children and Adults,AVONDALE HOUSE,"5,936.32",LD LTS 18-64,SUPPORTED LIVING,2103809248,1000086483
03.01.2024,Strategy and Communities,SOUTHWARK CITIZENS ADVICE,"5,936.00",VCS GRANTS,GRANTS,5902615433,1874379
15.01.2024,Children and Adults,PLUS SERVICES,"5,916.76",LD LTS 18-64,SUPPORTED LIVING,2103809611,1000021241
10.01.2024,Children and Adults,KEYWORTH PRIMARY SCHOOL,"5,908.75",COVID-19 SCHOOLS GRANTS,SCHOOLS CAPITATION,2103805374,5001000041
15.01.2024,Children and Adults,VOYAGE LTD (EVESLEIGH KENT),"5,907.80",LD LTS 18-64,RESIDENTIAL CARE,2103809509,1000041320
